NUMERO_MANDATO;RIGA_MANDATO;QUIET;IMPORTO_RIGA;IMPORTO_MANDATO;BENEFICIARIO;CIG;DATA_MANDATO;CAPITOLO;ARTICOLO;NUMERO_IMPEGNO;TITOLO;DESCR_TITOLO;LIVELLO_II;DESCR_LIVELLO_II;LIVELLO_III;DESCR_LIVELLO_III;LIVELLO_IV;DESCR_LIVELLO_IV;LIVELLO_V;DESCR_LIVELLO_V;DATA_PAG_EFF
1312;1;9999999;156,18;156,18;OMESSO NOMINATIVO NEL RISPETTO DELLA NORMATIVA SULLA PROTEZIONE DATI PERSONALI; ;03/04/2023;8395;0;1359;1;Spese correnti;4;Trasferimenti correnti;2;Trasferimenti correnti a Famiglie;2;Interventi assistenziali;999;Altri assegni e sussidi assistenziali;05/04/2023
1313;1;9999999;710,94;710,94;OMESSO NOMINATIVO NEL RISPETTO DELLA NORMATIVA SULLA PROTEZIONE DATI PERSONALI; ;03/04/2023;8396;0;336;1;Spese correnti;4;Trasferimenti correnti;2;Trasferimenti correnti a Famiglie;2;Interventi assistenziali;999;Altri assegni e sussidi assistenziali;05/04/2023
1314;1;9999999;2.821,25;2.821,25;SCOMPARIN SERVICE & GARDENS DI SCOMPARIN MICHELE;Z5C38E58E2;03/04/2023;5720;2;1190;1;Spese correnti;3;Acquisto di beni e servizi;2;Acquisto di servizi;9;Manutenzione ordinaria e riparazioni;11;Manutenzione ordinaria e riparazioni di altri beni materiali;05/04/2023
1315;1;9999999;353,8;353,8;INIZIATIVE UNINDUSTRIA SRL; ;03/04/2023;8204;4;121;1;Spese correnti;3;Acquisto di beni e servizi;2;Acquisto di servizi;99;Altri servizi;999;Altri servizi diversi n.a.c.;05/04/2023
1316;1;9999999;600;600;OMESSO NOMINATIVO NEL RISPETTO DELLA NORMATIVA SULLA PROTEZIONE DATI PERSONALI; ;03/04/2023;8361;0;354;1;Spese correnti;4;Trasferimenti correnti;2;Trasferimenti correnti a Famiglie;2;Interventi assistenziali;999;Altri assegni e sussidi assistenziali;05/04/2023
1317;1;9999999;150;150;OMESSO NOMINATIVO NEL RISPETTO DELLA NORMATIVA SULLA PROTEZIONE DATI PERSONALI; ;03/04/2023;8361;0;355;1;Spese correnti;4;Trasferimenti correnti;2;Trasferimenti correnti a Famiglie;2;Interventi assistenziali;999;Altri assegni e sussidi assistenziali;05/04/2023
1318;1;9999999;906,5;906,5;OMESSO NOMINATIVO NEL RISPETTO DELLA NORMATIVA SULLA PROTEZIONE DATI PERSONALI; ;03/04/2023;8361;0;357;1;Spese correnti;4;Trasferimenti correnti;2;Trasferimenti correnti a Famiglie;2;Interventi assistenziali;999;Altri assegni e sussidi assistenziali;05/04/2023
1319;1;9999999;595,7;595,7;OMESSO NOMINATIVO NEL RISPETTO DELLA NORMATIVA SULLA PROTEZIONE DATI PERSONALI; ;03/04/2023;8361;0;356;1;Spese correnti;4;Trasferimenti correnti;2;Trasferimenti correnti a Famiglie;2;Interventi assistenziali;999;Altri assegni e sussidi assistenziali;05/04/2023
1320;1;9999999;1.275,65;1.275,65;COMUNE DI PREGANZIOL; ;03/04/2023;13218;0;577;2;Spese in conto capitale;2;Investimenti fissi lordi e acquisto di terreni;1;Beni materiali;9;Beni immobili;3;Fabbricati ad uso scolastico;05/04/2023
1321;1;9999999;1.705,85;1.705,85;COMUNE DI PREGANZIOL; ;03/04/2023;13215;0;1339;2;Spese in conto capitale;2;Investimenti fissi lordi e acquisto di terreni;1;Beni materiali;9;Beni immobili;3;Fabbricati ad uso scolastico;05/04/2023
1322;1;9999999;3.168,02;3.168,02;COMUNE DI PREGANZIOL; ;03/04/2023;13215;0;1339;2;Spese in conto capitale;2;Investimenti fissi lordi e acquisto di terreni;1;Beni materiali;9;Beni immobili;3;Fabbricati ad uso scolastico;05/04/2023
1323;1;9999999;3.439,77;3.439,77;COMUNE DI PREGANZIOL; ;04/04/2023;13217;0;996;2;Spese in conto capitale;2;Investimenti fissi lordi e acquisto di terreni;1;Beni materiali;9;Beni immobili;3;Fabbricati ad uso scolastico;11/04/2023
1324;1;9999999;686,9;686,9;COMUNE DI PREGANZIOL; ;04/04/2023;13218;0;577;2;Spese in conto capitale;2;Investimenti fissi lordi e acquisto di terreni;1;Beni materiali;9;Beni immobili;3;Fabbricati ad uso scolastico;11/04/2023
1325;1;9999999;1.852,19;1.852,19;COMUNE DI PREGANZIOL; ;04/04/2023;13217;0;996;2;Spese in conto capitale;2;Investimenti fissi lordi e acquisto di terreni;1;Beni materiali;9;Beni immobili;3;Fabbricati ad uso scolastico;11/04/2023
1326;1;9999999;3.999,99;3.999,99;PULITORI ED AFFINI SPA;87752258BF;04/04/2023;1794;0;656;1;Spese correnti;3;Acquisto di beni e servizi;2;Acquisto di servizi;13;Servizi ausiliari per il funzionamento dell'ente;2;Servizi di pulizia e lavanderia;11/04/2023
1327;1;9999999;10.581,87;10.581,87;VERITAS  S.P.A.;Z0D3855C00;04/04/2023;7435;2;989;1;Spese correnti;3;Acquisto di beni e servizi;2;Acquisto di servizi;9;Manutenzione ordinaria e riparazioni;4;Manutenzione ordinaria e riparazioni di impianti e macchinari;11/04/2023
1328;1;9999999;191,09;191,09;KUWAIT PETROLEUM ITALIA SPA;Z9C36EAB07;04/04/2023;2197;0;271;1;Spese correnti;3;Acquisto di beni e servizi;1;Acquisto di beni;2;Altri beni di consumo;2;Carburanti, combustibili e lubrificanti;11/04/2023
1329;1;9999999;447,66;447,66;KUWAIT PETROLEUM ITALIA SPA;Z9C36EAB07;04/04/2023;1307;0;270;1;Spese correnti;3;Acquisto di beni e servizi;1;Acquisto di beni;2;Altri beni di consumo;2;Carburanti, combustibili e lubrificanti;11/04/2023
1334;1;9999999;432,18;432,18;OMESSO NOMINATIVO NEL RISPETTO DELLA NORMATIVA SULLA PROTEZIONE DATI PERSONALI; ;04/04/2023;8361;0;1316;1;Spese correnti;4;Trasferimenti correnti;2;Trasferimenti correnti a Famiglie;2;Interventi assistenziali;999;Altri assegni e sussidi assistenziali;11/04/2023
1335;1;9999999;407,35;407,35;COMUNE DI PREGANZIOL - ECONOMO PEZZATO ELENA; ;04/04/2023;719;1;64;1;Spese correnti;3;Acquisto di beni e servizi;2;Acquisto di servizi;5;Utenze e canoni;999;Utenze e canoni per altri servizi n.a.c.;11/04/2023
1336;1;9999999;2;2;COMUNE DI PREGANZIOL - ECONOMO PEZZATO ELENA; ;04/04/2023;1147;1;94;1;Spese correnti;3;Acquisto di beni e servizi;1;Acquisto di beni;2;Altri beni di consumo;999;Altri beni e materiali di consumo n.a.c.;11/04/2023
1338;1;9999999;31;31;COMUNE DI PREGANZIOL - ECONOMO PEZZATO ELENA; ;04/04/2023;1779;0;70;1;Spese correnti;3;Acquisto di beni e servizi;1;Acquisto di beni;1;Giornali, riviste e pubblicazioni;2;Pubblicazioni;11/04/2023
1339;1;9999999;13;122;COMUNE DI PREGANZIOL - ECONOMO PEZZATO ELENA; ;04/04/2023;1802;0;71;1;Spese correnti;3;Acquisto di beni e servizi;2;Acquisto di servizi;9;Manutenzione ordinaria e riparazioni;1;Manutenzione ordinaria e riparazioni di mezzi di trasporto ad uso civile, di sicurezza e ordine pubblico;11/04/2023
1339;2;9999999;22;122;COMUNE DI PREGANZIOL - ECONOMO PEZZATO ELENA; ;04/04/2023;1802;0;71;1;Spese correnti;3;Acquisto di beni e servizi;2;Acquisto di servizi;9;Manutenzione ordinaria e riparazioni;1;Manutenzione ordinaria e riparazioni di mezzi di trasporto ad uso civile, di sicurezza e ordine pubblico;11/04/2023
1339;3;9999999;27;122;COMUNE DI PREGANZIOL - ECONOMO PEZZATO ELENA; ;04/04/2023;1802;0;71;1;Spese correnti;3;Acquisto di beni e servizi;2;Acquisto di servizi;9;Manutenzione ordinaria e riparazioni;1;Manutenzione ordinaria e riparazioni di mezzi di trasporto ad uso civile, di sicurezza e ordine pubblico;11/04/2023
1339;4;9999999;30;122;COMUNE DI PREGANZIOL - ECONOMO PEZZATO ELENA; ;04/04/2023;1802;0;71;1;Spese correnti;3;Acquisto di beni e servizi;2;Acquisto di servizi;9;Manutenzione ordinaria e riparazioni;1;Manutenzione ordinaria e riparazioni di mezzi di trasporto ad uso civile, di sicurezza e ordine pubblico;11/04/2023
1339;5;9999999;30;122;COMUNE DI PREGANZIOL - ECONOMO PEZZATO ELENA; ;04/04/2023;1802;0;71;1;Spese correnti;3;Acquisto di beni e servizi;2;Acquisto di servizi;9;Manutenzione ordinaria e riparazioni;1;Manutenzione ordinaria e riparazioni di mezzi di trasporto ad uso civile, di sicurezza e ordine pubblico;11/04/2023
1340;1;9999999;13;135,15;COMUNE DI PREGANZIOL - ECONOMO PEZZATO ELENA; ;04/04/2023;2190;1;109;1;Spese correnti;3;Acquisto di beni e servizi;1;Acquisto di beni;2;Altri beni di consumo;999;Altri beni e materiali di consumo n.a.c.;11/04/2023
1340;2;9999999;17,7;135,15;COMUNE DI PREGANZIOL - ECONOMO PEZZATO ELENA; ;04/04/2023;2190;1;109;1;Spese correnti;3;Acquisto di beni e servizi;1;Acquisto di beni;2;Altri beni di consumo;999;Altri beni e materiali di consumo n.a.c.;11/04/2023
1340;3;9999999;22,85;135,15;COMUNE DI PREGANZIOL - ECONOMO PEZZATO ELENA; ;04/04/2023;2190;1;109;1;Spese correnti;3;Acquisto di beni e servizi;1;Acquisto di beni;2;Altri beni di consumo;999;Altri beni e materiali di consumo n.a.c.;11/04/2023
1340;4;9999999;37,6;135,15;COMUNE DI PREGANZIOL - ECONOMO PEZZATO ELENA; ;04/04/2023;2190;1;109;1;Spese correnti;3;Acquisto di beni e servizi;1;Acquisto di beni;2;Altri beni di consumo;999;Altri beni e materiali di consumo n.a.c.;11/04/2023
1340;5;9999999;44;135,15;COMUNE DI PREGANZIOL - ECONOMO PEZZATO ELENA; ;04/04/2023;2190;1;109;1;Spese correnti;3;Acquisto di beni e servizi;1;Acquisto di beni;2;Altri beni di consumo;999;Altri beni e materiali di consumo n.a.c.;11/04/2023
1342;1;9999999;19,45;19,45;COMUNE DI PREGANZIOL - ECONOMO PEZZATO ELENA; ;04/04/2023;4506;1;68;1;Spese correnti;3;Acquisto di beni e servizi;1;Acquisto di beni;2;Altri beni di consumo;999;Altri beni e materiali di consumo n.a.c.;11/04/2023
1343;1;9999999;5,9;20,9;COMUNE DI PREGANZIOL - ECONOMO PEZZATO ELENA; ;04/04/2023;7412;0;90;1;Spese correnti;3;Acquisto di beni e servizi;1;Acquisto di beni;2;Altri beni di consumo;999;Altri beni e materiali di consumo n.a.c.;11/04/2023
1343;2;9999999;15;20,9;COMUNE DI PREGANZIOL - ECONOMO PEZZATO ELENA; ;04/04/2023;7412;0;90;1;Spese correnti;3;Acquisto di beni e servizi;1;Acquisto di beni;2;Altri beni di consumo;999;Altri beni e materiali di consumo n.a.c.;11/04/2023
1344;1;9999999;15;15;COMUNE DI PREGANZIOL - ECONOMO PEZZATO ELENA; ;04/04/2023;8134;0;108;1;Spese correnti;3;Acquisto di beni e servizi;1;Acquisto di beni;2;Altri beni di consumo;999;Altri beni e materiali di consumo n.a.c.;11/04/2023
1346;1;9999999;241,89;241,89;EDILVERDE S.R.L.;Z82398837C;04/04/2023;1300;0;150;1;Spese correnti;3;Acquisto di beni e servizi;1;Acquisto di beni;2;Altri beni di consumo;999;Altri beni e materiali di consumo n.a.c.;11/04/2023
1347;1;9999999;20.405,00;20.405,00;MINISTERO ECONOMIA E FINANZE - DIP. FINANZE; ;04/04/2023;1023;0;368;1;Spese correnti;4;Trasferimenti correnti;1;Trasferimenti correnti a Amministrazioni Pubbliche;1;Trasferimenti correnti a Amministrazioni Centrali;999;Trasferimenti correnti a altre Amministrazioni Centrali n.a.c.;11/04/2023
1348;1;9999999;-20;220;PUBLIKA S.R.L.;Z2039E629A;06/04/2023;1779;0;257;1;Spese correnti;3;Acquisto di beni e servizi;1;Acquisto di beni;1;Giornali, riviste e pubblicazioni;1;Giornali e riviste;11/04/2023
1348;2;9999999;240;220;PUBLIKA S.R.L.;Z2039E629A;06/04/2023;1779;0;257;1;Spese correnti;3;Acquisto di beni e servizi;1;Acquisto di beni;1;Giornali, riviste e pubblicazioni;1;Giornali e riviste;11/04/2023
1349;1;9999999;640,4;640,4;COMUNE DI MOGLIANO VENETO; ;06/04/2023;2452;1;307;1;Spese correnti;4;Trasferimenti correnti;1;Trasferimenti correnti a Amministrazioni Pubbliche;2;Trasferimenti correnti a Amministrazioni Locali;3;Trasferimenti correnti a Comuni;11/04/2023
1350;1;9999999;422,22;422,22;COMUNE DI MOGLIANO VENETO; ;06/04/2023;2452;1;307;1;Spese correnti;4;Trasferimenti correnti;1;Trasferimenti correnti a Amministrazioni Pubbliche;2;Trasferimenti correnti a Amministrazioni Locali;3;Trasferimenti correnti a Comuni;11/04/2023
1351;1;9999999;12.681,70;12.681,70;ASSOCIAZIONE COMUNI MARCA TREVIGIANA; ;06/04/2023;4261;2;1019;1;Spese correnti;3;Acquisto di beni e servizi;2;Acquisto di servizi;99;Altri servizi;999;Altri servizi diversi n.a.c.;11/04/2023
1352;1;9999999;793;793;SOC. IMM. MURETTO S.N.C. DI CRESCENTE V. & C.; ;06/04/2023;1812;0;327;1;Spese correnti;3;Acquisto di beni e servizi;2;Acquisto di servizi;7;Utilizzo di beni di terzi;1;Locazione di beni immobili;11/04/2023
1357;1;9999999;27.417,87;27.417,87;EURO TOURS SRL;88188476C3;06/04/2023;4261;4;729;1;Spese correnti;3;Acquisto di beni e servizi;2;Acquisto di servizi;15;Contratti di servizio pubblico;2;Contratti di servizio di trasporto scolastico;11/04/2023
1358;1;9999999;346,93;346,93;ECOPAVI SRL;93327236A7;06/04/2023;15905;4;708;2;Spese in conto capitale;2;Investimenti fissi lordi e acquisto di terreni;1;Beni materiali;9;Beni immobili;12;Infrastrutture stradali;11/04/2023
1359;1;9999999;1.085,80;1.085,80;GESINT S.R.L.;Z393995929;07/04/2023;760;0;162;1;Spese correnti;3;Acquisto di beni e servizi;1;Acquisto di beni;2;Altri beni di consumo;999;Altri beni e materiali di consumo n.a.c.;14/04/2023
1360;1;9999999;27.999,00;27.999,00;ISOLCOVER S.R.L.;ZF038F878A;07/04/2023;13218;0;577;2;Spese in conto capitale;2;Investimenti fissi lordi e acquisto di terreni;1;Beni materiali;9;Beni immobili;3;Fabbricati ad uso scolastico;14/04/2023
1361;1;9999999;18,4;18,4;OFFICINA FRANCESCO MOTO S.R.L.;Z783A47BB2;11/04/2023;1340;1;315;1;Spese correnti;3;Acquisto di beni e servizi;2;Acquisto di servizi;9;Manutenzione ordinaria e riparazioni;1;Manutenzione ordinaria e riparazioni di mezzi di trasporto ad uso civile, di sicurezza e ordine pubblico;14/04/2023
1362;1;9999999;152,37;152,37;DOLOMITI ENERGIA SPA;908782459B;11/04/2023;1346;0;221;1;Spese correnti;3;Acquisto di beni e servizi;2;Acquisto di servizi;5;Utenze e canoni;6;Gas;14/04/2023
1363;1;9999999;24,06;5.384,23;DOLOMITI ENERGIA SPA;908782459B;11/04/2023;1801;0;133;1;Spese correnti;3;Acquisto di beni e servizi;2;Acquisto di servizi;5;Utenze e canoni;6;Gas;14/04/2023
1363;2;9999999;41,58;5.384,23;DOLOMITI ENERGIA SPA;908782459B;11/04/2023;1801;0;133;1;Spese correnti;3;Acquisto di beni e servizi;2;Acquisto di servizi;5;Utenze e canoni;6;Gas;14/04/2023
1363;3;9999999;125,7;5.384,23;DOLOMITI ENERGIA SPA;908782459B;11/04/2023;1801;0;133;1;Spese correnti;3;Acquisto di beni e servizi;2;Acquisto di servizi;5;Utenze e canoni;6;Gas;14/04/2023
1363;4;9999999;203,83;5.384,23;DOLOMITI ENERGIA SPA;908782459B;11/04/2023;1801;0;133;1;Spese correnti;3;Acquisto di beni e servizi;2;Acquisto di servizi;5;Utenze e canoni;6;Gas;14/04/2023
1363;5;9999999;529,47;5.384,23;DOLOMITI ENERGIA SPA;908782459B;11/04/2023;1801;0;133;1;Spese correnti;3;Acquisto di beni e servizi;2;Acquisto di servizi;5;Utenze e canoni;6;Gas;14/04/2023
1363;6;9999999;4.459,59;5.384,23;DOLOMITI ENERGIA SPA;908782459B;11/04/2023;1801;0;133;1;Spese correnti;3;Acquisto di beni e servizi;2;Acquisto di servizi;5;Utenze e canoni;6;Gas;14/04/2023
1364;1;9999999;1.621,69;1.621,69;OFFICINA FRANCESCO MOTO S.R.L.;Z783A47BB2;11/04/2023;2422;1;314;1;Spese correnti;3;Acquisto di beni e servizi;2;Acquisto di servizi;9;Manutenzione ordinaria e riparazioni;1;Manutenzione ordinaria e riparazioni di mezzi di trasporto ad uso civile, di sicurezza e ordine pubblico;14/04/2023
1365;1;9999999;4.042,00;4.042,00;DOLOMITI ENERGIA SPA;908782459B;11/04/2023;2790;0;134;1;Spese correnti;3;Acquisto di beni e servizi;2;Acquisto di servizi;5;Utenze e canoni;6;Gas;14/04/2023
1366;1;9999999;1.078,10;1.078,10;DOLOMITI ENERGIA SPA;908782459B;11/04/2023;2792;0;135;1;Spese correnti;3;Acquisto di beni e servizi;2;Acquisto di servizi;5;Utenze e canoni;6;Gas;14/04/2023
1367;1;9999999;426,26;8.551,05;DOLOMITI ENERGIA SPA;908782459B;11/04/2023;2973;0;136;1;Spese correnti;3;Acquisto di beni e servizi;2;Acquisto di servizi;5;Utenze e canoni;6;Gas;14/04/2023
1367;2;9999999;1.121,93;8.551,05;DOLOMITI ENERGIA SPA;908782459B;11/04/2023;2973;0;136;1;Spese correnti;3;Acquisto di beni e servizi;2;Acquisto di servizi;5;Utenze e canoni;6;Gas;14/04/2023
1367;3;9999999;1.283,50;8.551,05;DOLOMITI ENERGIA SPA;908782459B;11/04/2023;2973;0;136;1;Spese correnti;3;Acquisto di beni e servizi;2;Acquisto di servizi;5;Utenze e canoni;6;Gas;14/04/2023
1367;4;9999999;5.719,36;8.551,05;DOLOMITI ENERGIA SPA;908782459B;11/04/2023;2973;0;136;1;Spese correnti;3;Acquisto di beni e servizi;2;Acquisto di servizi;5;Utenze e canoni;6;Gas;14/04/2023
1368;1;9999999;10.506,30;10.506,30;DOLOMITI ENERGIA SPA;908782459B;11/04/2023;4020;0;137;1;Spese correnti;3;Acquisto di beni e servizi;2;Acquisto di servizi;5;Utenze e canoni;6;Gas;14/04/2023
1369;1;9999999;694,93;694,93;DOLOMITI ENERGIA SPA;908782459B;11/04/2023;4527;0;213;1;Spese correnti;3;Acquisto di beni e servizi;2;Acquisto di servizi;5;Utenze e canoni;6;Gas;14/04/2023
1370;1;9999999;3.345,24;3.345,24;N.D. IMPIANTI ELETTRICI DI NORABRI DENIS;ZB63A3CC3C;11/04/2023;4660;0;335;1;Spese correnti;3;Acquisto di beni e servizi;2;Acquisto di servizi;9;Manutenzione ordinaria e riparazioni;8;Manutenzione ordinaria e riparazioni di beni immobili;14/04/2023
1371;1;9999999;18,71;18,71;DOLOMITI ENERGIA SPA;908782459B;11/04/2023;4686;0;214;1;Spese correnti;3;Acquisto di beni e servizi;2;Acquisto di servizi;5;Utenze e canoni;6;Gas;14/04/2023
1372;1;9999999;448,39;3.345,15;DOLOMITI ENERGIA SPA;908782459B;11/04/2023;5050;0;138;1;Spese correnti;3;Acquisto di beni e servizi;2;Acquisto di servizi;5;Utenze e canoni;6;Gas;14/04/2023
1372;2;9999999;461,79;3.345,15;DOLOMITI ENERGIA SPA;908782459B;11/04/2023;5050;0;138;1;Spese correnti;3;Acquisto di beni e servizi;2;Acquisto di servizi;5;Utenze e canoni;6;Gas;14/04/2023
1372;3;9999999;644,52;3.345,15;DOLOMITI ENERGIA SPA;908782459B;11/04/2023;5050;0;138;1;Spese correnti;3;Acquisto di beni e servizi;2;Acquisto di servizi;5;Utenze e canoni;6;Gas;14/04/2023
1372;4;9999999;1.790,45;3.345,15;DOLOMITI ENERGIA SPA;908782459B;11/04/2023;5050;0;138;1;Spese correnti;3;Acquisto di beni e servizi;2;Acquisto di servizi;5;Utenze e canoni;6;Gas;14/04/2023
1373;1;9999999;2,92;2,92;DOLOMITI ENERGIA SPA;908782459B;11/04/2023;5051;0;220;1;Spese correnti;3;Acquisto di beni e servizi;2;Acquisto di servizi;5;Utenze e canoni;6;Gas;14/04/2023
1374;1;9999999;202,66;202,66;DOLOMITI ENERGIA SPA;908782459B;11/04/2023;6461;0;139;1;Spese correnti;3;Acquisto di beni e servizi;2;Acquisto di servizi;5;Utenze e canoni;6;Gas;14/04/2023
1375;1;9999999;124,9;124,9;DOLOMITI ENERGIA SPA;908782459B;11/04/2023;6647;0;215;1;Spese correnti;3;Acquisto di beni e servizi;2;Acquisto di servizi;5;Utenze e canoni;6;Gas;14/04/2023
1376;1;9999999;718,73;3.413,40;DOLOMITI ENERGIA SPA;908782459B;11/04/2023;7552;1;140;1;Spese correnti;3;Acquisto di beni e servizi;2;Acquisto di servizi;5;Utenze e canoni;6;Gas;14/04/2023
1376;2;9999999;2.694,67;3.413,40;DOLOMITI ENERGIA SPA;908782459B;11/04/2023;7552;1;140;1;Spese correnti;3;Acquisto di beni e servizi;2;Acquisto di servizi;5;Utenze e canoni;6;Gas;14/04/2023
1377;1;9999999;178,28;178,28;E-DISTRIBUZIONE SPA;Z5B3A92BD1;11/04/2023;13217;0;996;2;Spese in conto capitale;2;Investimenti fissi lordi e acquisto di terreni;1;Beni materiali;9;Beni immobili;3;Fabbricati ad uso scolastico;14/04/2023
1378;1;9999999;15.311,00;15.311,00;ELETTROMECCANICA TAMAI A. E MINETTO G. & C. SNC;Z1438978F3;11/04/2023;15905;14;1022;2;Spese in conto capitale;2;Investimenti fissi lordi e acquisto di terreni;1;Beni materiali;9;Beni immobili;12;Infrastrutture stradali;14/04/2023
1379;1;9999999;156,39;156,39;OMESSO NOMINATIVO NEL RISPETTO DELLA NORMATIVA SULLA PROTEZIONE DATI PERSONALI; ;11/04/2023;8395;0;1359;1;Spese correnti;4;Trasferimenti correnti;2;Trasferimenti correnti a Famiglie;2;Interventi assistenziali;999;Altri assegni e sussidi assistenziali;14/04/2023
1380;1;9999999;1.562,50;1.562,50;OMESSO NOMINATIVO NEL RISPETTO DELLA NORMATIVA SULLA PROTEZIONE DATI PERSONALI; ;11/04/2023;8396;0;336;1;Spese correnti;4;Trasferimenti correnti;2;Trasferimenti correnti a Famiglie;2;Interventi assistenziali;999;Altri assegni e sussidi assistenziali;14/04/2023
1381;1;9999999;4.235,00;4.235,00;OMESSO NOMINATIVO NEL RISPETTO DELLA NORMATIVA SULLA PROTEZIONE DATI PERSONALI;Z763926E35;12/04/2023;1185;17;1300;1;Spese correnti;3;Acquisto di beni e servizi;2;Acquisto di servizi;9;Manutenzione ordinaria e riparazioni;4;Manutenzione ordinaria e riparazioni di impianti e macchinari;14/04/2023
1383;1;9999999;516,83;516,83;AGENZIA DELLE ENTRATE DI TREVISO; ;12/04/2023;1904;0;425;1;Spese correnti;10;Altre spese correnti;3;Versamenti IVA a debito;1;Versamenti IVA a debito per le gestioni commerciali;1;Versamenti IVA a debito per le gestioni commerciali;14/04/2023
1384;1;9999999;30,38;30,38;IFEL-FONDAZIONE ANCI - IST.FINANZA ECONOMIA LOCALE; ;14/04/2023;1020;0;1017;1;Spese correnti;4;Trasferimenti correnti;1;Trasferimenti correnti a Amministrazioni Pubbliche;1;Trasferimenti correnti a Amministrazioni Centrali;999;Trasferimenti correnti a altre Amministrazioni Centrali n.a.c.;18/04/2023
1385;1;9999999;20,94;20,94;IFEL-FONDAZIONE ANCI - IST.FINANZA ECONOMIA LOCALE; ;14/04/2023;1020;0;1017;1;Spese correnti;4;Trasferimenti correnti;1;Trasferimenti correnti a Amministrazioni Pubbliche;1;Trasferimenti correnti a Amministrazioni Centrali;999;Trasferimenti correnti a altre Amministrazioni Centrali n.a.c.;18/04/2023
1386;1;9999999;19,45;19,45;IFEL-FONDAZIONE ANCI - IST.FINANZA ECONOMIA LOCALE; ;14/04/2023;1020;0;1017;1;Spese correnti;4;Trasferimenti correnti;1;Trasferimenti correnti a Amministrazioni Pubbliche;1;Trasferimenti correnti a Amministrazioni Centrali;999;Trasferimenti correnti a altre Amministrazioni Centrali n.a.c.;18/04/2023
1387;1;9999999;1.545,98;1.545,98;IFEL-FONDAZIONE ANCI - IST.FINANZA ECONOMIA LOCALE; ;14/04/2023;1020;0;1127;1;Spese correnti;4;Trasferimenti correnti;1;Trasferimenti correnti a Amministrazioni Pubbliche;1;Trasferimenti correnti a Amministrazioni Centrali;999;Trasferimenti correnti a altre Amministrazioni Centrali n.a.c.;18/04/2023
1388;1;9999999;1.522,58;1.522,58;IFEL-FONDAZIONE ANCI - IST.FINANZA ECONOMIA LOCALE; ;14/04/2023;1020;0;1017;1;Spese correnti;4;Trasferimenti correnti;1;Trasferimenti correnti a Amministrazioni Pubbliche;1;Trasferimenti correnti a Amministrazioni Centrali;999;Trasferimenti correnti a altre Amministrazioni Centrali n.a.c.;18/04/2023
1389;1;9999999;1,08;1,08;STILELIBERO SSD S.R.L.; ;14/04/2023;1020;0;1017;1;Spese correnti;4;Trasferimenti correnti;1;Trasferimenti correnti a Amministrazioni Pubbliche;1;Trasferimenti correnti a Amministrazioni Centrali;999;Trasferimenti correnti a altre Amministrazioni Centrali n.a.c.;18/04/2023
1390;1;9999999;0,29;0,29;DISPA S.R.L.; ;14/04/2023;1020;0;1017;1;Spese correnti;4;Trasferimenti correnti;1;Trasferimenti correnti a Amministrazioni Pubbliche;1;Trasferimenti correnti a Amministrazioni Centrali;999;Trasferimenti correnti a altre Amministrazioni Centrali n.a.c.;18/04/2023
1391;1;9999999;282;282;FORMEL SRL;ZF73A2013F;14/04/2023;550;0;290;1;Spese correnti;3;Acquisto di beni e servizi;2;Acquisto di servizi;4;Acquisto di servizi per formazione e addestramento del personale dell'ente;999;Acquisto di servizi per altre spese per formazione e addestramento n.a.c.;18/04/2023
1392;1;9999999;280;280;FORMEL SRL;ZF73A2013F;14/04/2023;551;0;291;1;Spese correnti;3;Acquisto di beni e servizi;2;Acquisto di servizi;4;Acquisto di servizi per formazione e addestramento del personale dell'ente;999;Acquisto di servizi per altre spese per formazione e addestramento n.a.c.;18/04/2023
1393;1;9999999;560;560;FORMEL SRL;ZF73A2013F;14/04/2023;557;0;292;1;Spese correnti;3;Acquisto di beni e servizi;2;Acquisto di servizi;4;Acquisto di servizi per formazione e addestramento del personale dell'ente;999;Acquisto di servizi per altre spese per formazione e addestramento n.a.c.;18/04/2023
1394;1;9999999;280;280;FORMEL SRL;ZF73A2013F;14/04/2023;559;0;293;1;Spese correnti;3;Acquisto di beni e servizi;2;Acquisto di servizi;4;Acquisto di servizi per formazione e addestramento del personale dell'ente;999;Acquisto di servizi per altre spese per formazione e addestramento n.a.c.;18/04/2023
1395;1;9999999;200;200;BI ESSE SPA;Z7B398A8D1;14/04/2023;1147;1;156;1;Spese correnti;3;Acquisto di beni e servizi;1;Acquisto di beni;2;Altri beni di consumo;999;Altri beni e materiali di consumo n.a.c.;18/04/2023
1396;1;9999999;100;100;BI ESSE SPA;Z7B398A8D1;14/04/2023;1147;2;157;1;Spese correnti;3;Acquisto di beni e servizi;1;Acquisto di beni;2;Altri beni di consumo;999;Altri beni e materiali di consumo n.a.c.;18/04/2023
1397;1;9999999;1.000,00;1.000,00;SOGEST ITALIA SRL;Z08372EAAD;14/04/2023;1185;1;715;1;Spese correnti;3;Acquisto di beni e servizi;2;Acquisto di servizi;9;Manutenzione ordinaria e riparazioni;4;Manutenzione ordinaria e riparazioni di impianti e macchinari;18/04/2023
1398;1;9999999;100;100;SOGEST ITALIA SRL;Z08372EAAD;14/04/2023;1185;2;716;1;Spese correnti;3;Acquisto di beni e servizi;2;Acquisto di servizi;9;Manutenzione ordinaria e riparazioni;4;Manutenzione ordinaria e riparazioni di impianti e macchinari;18/04/2023
1399;1;9999999;93,15;93,15;ENEL ENERGIA SPA;9072556E0B;14/04/2023;1346;0;228;1;Spese correnti;3;Acquisto di beni e servizi;2;Acquisto di servizi;5;Utenze e canoni;4;Energia elettrica;18/04/2023
1400;1;9999999;34,06;3.772,98;ENEL ENERGIA SPA;9072556E0B;14/04/2023;1801;0;229;1;Spese correnti;3;Acquisto di beni e servizi;2;Acquisto di servizi;5;Utenze e canoni;4;Energia elettrica;18/04/2023
1400;2;9999999;112,79;3.772,98;ENEL ENERGIA SPA;9072556E0B;14/04/2023;1801;0;229;1;Spese correnti;3;Acquisto di beni e servizi;2;Acquisto di servizi;5;Utenze e canoni;4;Energia elettrica;18/04/2023
1400;3;9999999;391,51;3.772,98;ENEL ENERGIA SPA;9072556E0B;14/04/2023;1801;0;229;1;Spese correnti;3;Acquisto di beni e servizi;2;Acquisto di servizi;5;Utenze e canoni;4;Energia elettrica;18/04/2023
1400;4;9999999;398,6;3.772,98;ENEL ENERGIA SPA;9072556E0B;14/04/2023;1801;0;229;1;Spese correnti;3;Acquisto di beni e servizi;2;Acquisto di servizi;5;Utenze e canoni;4;Energia elettrica;18/04/2023
1400;5;9999999;679,43;3.772,98;ENEL ENERGIA SPA;9072556E0B;14/04/2023;1801;0;229;1;Spese correnti;3;Acquisto di beni e servizi;2;Acquisto di servizi;5;Utenze e canoni;4;Energia elettrica;18/04/2023
1400;6;9999999;2.156,59;3.772,98;ENEL ENERGIA SPA;9072556E0B;14/04/2023;1801;0;229;1;Spese correnti;3;Acquisto di beni e servizi;2;Acquisto di servizi;5;Utenze e canoni;4;Energia elettrica;18/04/2023
1401;1;9999999;1.483,52;1.483,52;SOGEST ITALIA SRL;Z08372EAAD;14/04/2023;1805;0;714;1;Spese correnti;3;Acquisto di beni e servizi;2;Acquisto di servizi;13;Servizi ausiliari per il funzionamento dell'ente;1;Servizi di sorveglianza, custodia e accoglienza;18/04/2023
1402;1;9999999;300;300;BI ESSE SPA;Z7B398A8D1;14/04/2023;2610;0;158;1;Spese correnti;3;Acquisto di beni e servizi;1;Acquisto di beni;2;Altri beni di consumo;999;Altri beni e materiali di consumo n.a.c.;18/04/2023
1403;1;9999999;300;300;BI ESSE SPA;Z7B398A8D1;14/04/2023;2910;0;159;1;Spese correnti;3;Acquisto di beni e servizi;1;Acquisto di beni;2;Altri beni di consumo;999;Altri beni e materiali di consumo n.a.c.;18/04/2023
1404;1;9999999;186,59;432,14;ENEL ENERGIA SPA;9072556E0B;14/04/2023;2973;0;230;1;Spese correnti;3;Acquisto di beni e servizi;2;Acquisto di servizi;5;Utenze e canoni;4;Energia elettrica;18/04/2023
1404;2;9999999;245,55;432,14;ENEL ENERGIA SPA;9072556E0B;14/04/2023;2973;0;230;1;Spese correnti;3;Acquisto di beni e servizi;2;Acquisto di servizi;5;Utenze e canoni;4;Energia elettrica;18/04/2023
1405;1;9999999;100;100;BI ESSE SPA;Z7B398A8D1;14/04/2023;4010;0;160;1;Spese correnti;3;Acquisto di beni e servizi;1;Acquisto di beni;2;Altri beni di consumo;999;Altri beni e materiali di consumo n.a.c.;18/04/2023
1406;1;9999999;963,71;963,71;ENEL ENERGIA SPA;9072556E0B;14/04/2023;4527;0;231;1;Spese correnti;3;Acquisto di beni e servizi;2;Acquisto di servizi;5;Utenze e canoni;4;Energia elettrica;18/04/2023
1407;1;9999999;70,8;70,8;ENEL ENERGIA SPA;9072556E0B;14/04/2023;4686;1;232;1;Spese correnti;3;Acquisto di beni e servizi;2;Acquisto di servizi;5;Utenze e canoni;4;Energia elettrica;18/04/2023
1408;1;9999999;188,07;188,07;BI ESSE SPA;Z7B398A8D1;14/04/2023;5840;0;155;1;Spese correnti;3;Acquisto di beni e servizi;1;Acquisto di beni;2;Altri beni di consumo;999;Altri beni e materiali di consumo n.a.c.;18/04/2023
1409;1;9999999;-894,24;1.370,29;ENEL ENERGIA SPA;9072556E0B;14/04/2023;5930;0;186;1;Spese correnti;3;Acquisto di beni e servizi;2;Acquisto di servizi;5;Utenze e canoni;4;Energia elettrica;18/04/2023
1409;2;9999999;-197,1;1.370,29;ENEL ENERGIA SPA;9072556E0B;14/04/2023;5930;0;186;1;Spese correnti;3;Acquisto di beni e servizi;2;Acquisto di servizi;5;Utenze e canoni;4;Energia elettrica;18/04/2023
1409;3;9999999;9,32;1.370,29;ENEL ENERGIA SPA;9072556E0B;14/04/2023;5930;0;186;1;Spese correnti;3;Acquisto di beni e servizi;2;Acquisto di servizi;5;Utenze e canoni;4;Energia elettrica;18/04/2023
1409;4;9999999;9,6;1.370,29;ENEL ENERGIA SPA;9072556E0B;14/04/2023;5930;0;186;1;Spese correnti;3;Acquisto di beni e servizi;2;Acquisto di servizi;5;Utenze e canoni;4;Energia elettrica;18/04/2023
1409;5;9999999;10,41;1.370,29;ENEL ENERGIA SPA;9072556E0B;14/04/2023;5930;0;186;1;Spese correnti;3;Acquisto di beni e servizi;2;Acquisto di servizi;5;Utenze e canoni;4;Energia elettrica;18/04/2023
1409;6;9999999;12,3;1.370,29;ENEL ENERGIA SPA;9072556E0B;14/04/2023;5930;0;186;1;Spese correnti;3;Acquisto di beni e servizi;2;Acquisto di servizi;5;Utenze e canoni;4;Energia elettrica;18/04/2023
1409;7;9999999;12,3;1.370,29;ENEL ENERGIA SPA;9072556E0B;14/04/2023;5930;0;186;1;Spese correnti;3;Acquisto di beni e servizi;2;Acquisto di servizi;5;Utenze e canoni;4;Energia elettrica;18/04/2023
1409;8;9999999;12,86;1.370,29;ENEL ENERGIA SPA;9072556E0B;14/04/2023;5930;0;186;1;Spese correnti;3;Acquisto di beni e servizi;2;Acquisto di servizi;5;Utenze e canoni;4;Energia elettrica;18/04/2023
1409;9;9999999;25,08;1.370,29;ENEL ENERGIA SPA;9072556E0B;14/04/2023;5930;0;186;1;Spese correnti;3;Acquisto di beni e servizi;2;Acquisto di servizi;5;Utenze e canoni;4;Energia elettrica;18/04/2023
1409;10;9999999;25,35;1.370,29;ENEL ENERGIA SPA;9072556E0B;14/04/2023;5930;0;186;1;Spese correnti;3;Acquisto di beni e servizi;2;Acquisto di servizi;5;Utenze e canoni;4;Energia elettrica;18/04/2023
1409;11;9999999;26,73;1.370,29;ENEL ENERGIA SPA;9072556E0B;14/04/2023;5930;0;186;1;Spese correnti;3;Acquisto di beni e servizi;2;Acquisto di servizi;5;Utenze e canoni;4;Energia elettrica;18/04/2023
1409;12;9999999;31,81;1.370,29;ENEL ENERGIA SPA;9072556E0B;14/04/2023;5930;0;186;1;Spese correnti;3;Acquisto di beni e servizi;2;Acquisto di servizi;5;Utenze e canoni;4;Energia elettrica;18/04/2023
1409;13;9999999;35,79;1.370,29;ENEL ENERGIA SPA;9072556E0B;14/04/2023;5930;0;186;1;Spese correnti;3;Acquisto di beni e servizi;2;Acquisto di servizi;5;Utenze e canoni;4;Energia elettrica;18/04/2023
1409;14;9999999;36,38;1.370,29;ENEL ENERGIA SPA;9072556E0B;14/04/2023;5930;0;186;1;Spese correnti;3;Acquisto di beni e servizi;2;Acquisto di servizi;5;Utenze e canoni;4;Energia elettrica;18/04/2023
1409;15;9999999;36,76;1.370,29;ENEL ENERGIA SPA;9072556E0B;14/04/2023;5930;0;186;1;Spese correnti;3;Acquisto di beni e servizi;2;Acquisto di servizi;5;Utenze e canoni;4;Energia elettrica;18/04/2023
1409;16;9999999;37,65;1.370,29;ENEL ENERGIA SPA;9072556E0B;14/04/2023;5930;0;186;1;Spese correnti;3;Acquisto di beni e servizi;2;Acquisto di servizi;5;Utenze e canoni;4;Energia elettrica;18/04/2023
1409;17;9999999;38,25;1.370,29;ENEL ENERGIA SPA;9072556E0B;14/04/2023;5930;0;186;1;Spese correnti;3;Acquisto di beni e servizi;2;Acquisto di servizi;5;Utenze e canoni;4;Energia elettrica;18/04/2023
1409;18;9999999;43,25;1.370,29;ENEL ENERGIA SPA;9072556E0B;14/04/2023;5930;0;186;1;Spese correnti;3;Acquisto di beni e servizi;2;Acquisto di servizi;5;Utenze e canoni;4;Energia elettrica;18/04/2023
1409;19;9999999;43,51;1.370,29;ENEL ENERGIA SPA;9072556E0B;14/04/2023;5930;0;186;1;Spese correnti;3;Acquisto di beni e servizi;2;Acquisto di servizi;5;Utenze e canoni;4;Energia elettrica;18/04/2023
1409;20;9999999;45,14;1.370,29;ENEL ENERGIA SPA;9072556E0B;14/04/2023;5930;0;186;1;Spese correnti;3;Acquisto di beni e servizi;2;Acquisto di servizi;5;Utenze e canoni;4;Energia elettrica;18/04/2023
1409;21;9999999;46,27;1.370,29;ENEL ENERGIA SPA;9072556E0B;14/04/2023;5930;0;186;1;Spese correnti;3;Acquisto di beni e servizi;2;Acquisto di servizi;5;Utenze e canoni;4;Energia elettrica;18/04/2023
1409;22;9999999;47,54;1.370,29;ENEL ENERGIA SPA;9072556E0B;14/04/2023;5930;0;186;1;Spese correnti;3;Acquisto di beni e servizi;2;Acquisto di servizi;5;Utenze e canoni;4;Energia elettrica;18/04/2023
1409;23;9999999;47,54;1.370,29;ENEL ENERGIA SPA;9072556E0B;14/04/2023;5930;0;186;1;Spese correnti;3;Acquisto di beni e servizi;2;Acquisto di servizi;5;Utenze e canoni;4;Energia elettrica;18/04/2023
1409;24;9999999;49,24;1.370,29;ENEL ENERGIA SPA;9072556E0B;14/04/2023;5930;0;186;1;Spese correnti;3;Acquisto di beni e servizi;2;Acquisto di servizi;5;Utenze e canoni;4;Energia elettrica;18/04/2023
1409;25;9999999;61,99;1.370,29;ENEL ENERGIA SPA;9072556E0B;14/04/2023;5930;0;186;1;Spese correnti;3;Acquisto di beni e servizi;2;Acquisto di servizi;5;Utenze e canoni;4;Energia elettrica;18/04/2023
1409;26;9999999;66,05;1.370,29;ENEL ENERGIA SPA;9072556E0B;14/04/2023;5930;0;186;1;Spese correnti;3;Acquisto di beni e servizi;2;Acquisto di servizi;5;Utenze e canoni;4;Energia elettrica;18/04/2023
1409;27;9999999;69,88;1.370,29;ENEL ENERGIA SPA;9072556E0B;14/04/2023;5930;0;186;1;Spese correnti;3;Acquisto di beni e servizi;2;Acquisto di servizi;5;Utenze e canoni;4;Energia elettrica;18/04/2023
1409;28;9999999;74,59;1.370,29;ENEL ENERGIA SPA;9072556E0B;14/04/2023;5930;0;186;1;Spese correnti;3;Acquisto di beni e servizi;2;Acquisto di servizi;5;Utenze e canoni;4;Energia elettrica;18/04/2023
1409;29;9999999;81,15;1.370,29;ENEL ENERGIA SPA;9072556E0B;14/04/2023;5930;0;186;1;Spese correnti;3;Acquisto di beni e servizi;2;Acquisto di servizi;5;Utenze e canoni;4;Energia elettrica;18/04/2023
1409;30;9999999;96,64;1.370,29;ENEL ENERGIA SPA;9072556E0B;14/04/2023;5930;0;186;1;Spese correnti;3;Acquisto di beni e servizi;2;Acquisto di servizi;5;Utenze e canoni;4;Energia elettrica;18/04/2023
1409;31;9999999;97,34;1.370,29;ENEL ENERGIA SPA;9072556E0B;14/04/2023;5930;0;186;1;Spese correnti;3;Acquisto di beni e servizi;2;Acquisto di servizi;5;Utenze e canoni;4;Energia elettrica;18/04/2023
1409;32;9999999;102,79;1.370,29;ENEL ENERGIA SPA;9072556E0B;14/04/2023;5930;0;186;1;Spese correnti;3;Acquisto di beni e servizi;2;Acquisto di servizi;5;Utenze e canoni;4;Energia elettrica;18/04/2023
1409;33;9999999;107,36;1.370,29;ENEL ENERGIA SPA;9072556E0B;14/04/2023;5930;0;186;1;Spese correnti;3;Acquisto di beni e servizi;2;Acquisto di servizi;5;Utenze e canoni;4;Energia elettrica;18/04/2023
1409;34;9999999;120,52;1.370,29;ENEL ENERGIA SPA;9072556E0B;14/04/2023;5930;0;186;1;Spese correnti;3;Acquisto di beni e servizi;2;Acquisto di servizi;5;Utenze e canoni;4;Energia elettrica;18/04/2023
1409;35;9999999;132,02;1.370,29;ENEL ENERGIA SPA;9072556E0B;14/04/2023;5930;0;186;1;Spese correnti;3;Acquisto di beni e servizi;2;Acquisto di servizi;5;Utenze e canoni;4;Energia elettrica;18/04/2023
1409;36;9999999;137,16;1.370,29;ENEL ENERGIA SPA;9072556E0B;14/04/2023;5930;0;186;1;Spese correnti;3;Acquisto di beni e servizi;2;Acquisto di servizi;5;Utenze e canoni;4;Energia elettrica;18/04/2023
1409;37;9999999;137,73;1.370,29;ENEL ENERGIA SPA;9072556E0B;14/04/2023;5930;0;186;1;Spese correnti;3;Acquisto di beni e servizi;2;Acquisto di servizi;5;Utenze e canoni;4;Energia elettrica;18/04/2023
1409;38;9999999;159,6;1.370,29;ENEL ENERGIA SPA;9072556E0B;14/04/2023;5930;0;186;1;Spese correnti;3;Acquisto di beni e servizi;2;Acquisto di servizi;5;Utenze e canoni;4;Energia elettrica;18/04/2023
1409;39;9999999;161,03;1.370,29;ENEL ENERGIA SPA;9072556E0B;14/04/2023;5930;0;186;1;Spese correnti;3;Acquisto di beni e servizi;2;Acquisto di servizi;5;Utenze e canoni;4;Energia elettrica;18/04/2023
1409;40;9999999;172,7;1.370,29;ENEL ENERGIA SPA;9072556E0B;14/04/2023;5930;0;186;1;Spese correnti;3;Acquisto di beni e servizi;2;Acquisto di servizi;5;Utenze e canoni;4;Energia elettrica;18/04/2023
1410;1;9999999;174,66;21.458,02;ENEL ENERGIA SPA;9072556E0B;14/04/2023;5930;0;186;1;Spese correnti;3;Acquisto di beni e servizi;2;Acquisto di servizi;5;Utenze e canoni;4;Energia elettrica;18/04/2023
1410;2;9999999;180,26;21.458,02;ENEL ENERGIA SPA;9072556E0B;14/04/2023;5930;0;186;1;Spese correnti;3;Acquisto di beni e servizi;2;Acquisto di servizi;5;Utenze e canoni;4;Energia elettrica;18/04/2023
1410;3;9999999;185,84;21.458,02;ENEL ENERGIA SPA;9072556E0B;14/04/2023;5930;0;186;1;Spese correnti;3;Acquisto di beni e servizi;2;Acquisto di servizi;5;Utenze e canoni;4;Energia elettrica;18/04/2023
1410;4;9999999;198,59;21.458,02;ENEL ENERGIA SPA;9072556E0B;14/04/2023;5930;0;186;1;Spese correnti;3;Acquisto di beni e servizi;2;Acquisto di servizi;5;Utenze e canoni;4;Energia elettrica;18/04/2023
1410;5;9999999;201,75;21.458,02;ENEL ENERGIA SPA;9072556E0B;14/04/2023;5930;0;186;1;Spese correnti;3;Acquisto di beni e servizi;2;Acquisto di servizi;5;Utenze e canoni;4;Energia elettrica;18/04/2023
1410;6;9999999;203,86;21.458,02;ENEL ENERGIA SPA;9072556E0B;14/04/2023;5930;0;186;1;Spese correnti;3;Acquisto di beni e servizi;2;Acquisto di servizi;5;Utenze e canoni;4;Energia elettrica;18/04/2023
1410;7;9999999;208,66;21.458,02;ENEL ENERGIA SPA;9072556E0B;14/04/2023;5930;0;186;1;Spese correnti;3;Acquisto di beni e servizi;2;Acquisto di servizi;5;Utenze e canoni;4;Energia elettrica;18/04/2023
1410;8;9999999;214,02;21.458,02;ENEL ENERGIA SPA;9072556E0B;14/04/2023;5930;0;186;1;Spese correnti;3;Acquisto di beni e servizi;2;Acquisto di servizi;5;Utenze e canoni;4;Energia elettrica;18/04/2023
1410;9;9999999;222,19;21.458,02;ENEL ENERGIA SPA;9072556E0B;14/04/2023;5930;0;186;1;Spese correnti;3;Acquisto di beni e servizi;2;Acquisto di servizi;5;Utenze e canoni;4;Energia elettrica;18/04/2023
1410;10;9999999;229,76;21.458,02;ENEL ENERGIA SPA;9072556E0B;14/04/2023;5930;0;186;1;Spese correnti;3;Acquisto di beni e servizi;2;Acquisto di servizi;5;Utenze e canoni;4;Energia elettrica;18/04/2023
1410;11;9999999;247,82;21.458,02;ENEL ENERGIA SPA;9072556E0B;14/04/2023;5930;0;186;1;Spese correnti;3;Acquisto di beni e servizi;2;Acquisto di servizi;5;Utenze e canoni;4;Energia elettrica;18/04/2023
1410;12;9999999;263,23;21.458,02;ENEL ENERGIA SPA;9072556E0B;14/04/2023;5930;0;186;1;Spese correnti;3;Acquisto di beni e servizi;2;Acquisto di servizi;5;Utenze e canoni;4;Energia elettrica;18/04/2023
1410;13;9999999;273,8;21.458,02;ENEL ENERGIA SPA;9072556E0B;14/04/2023;5930;0;186;1;Spese correnti;3;Acquisto di beni e servizi;2;Acquisto di servizi;5;Utenze e canoni;4;Energia elettrica;18/04/2023
1410;14;9999999;276,4;21.458,02;ENEL ENERGIA SPA;9072556E0B;14/04/2023;5930;0;186;1;Spese correnti;3;Acquisto di beni e servizi;2;Acquisto di servizi;5;Utenze e canoni;4;Energia elettrica;18/04/2023
1410;15;9999999;286,98;21.458,02;ENEL ENERGIA SPA;9072556E0B;14/04/2023;5930;0;186;1;Spese correnti;3;Acquisto di beni e servizi;2;Acquisto di servizi;5;Utenze e canoni;4;Energia elettrica;18/04/2023
1410;16;9999999;293,47;21.458,02;ENEL ENERGIA SPA;9072556E0B;14/04/2023;5930;0;186;1;Spese correnti;3;Acquisto di beni e servizi;2;Acquisto di servizi;5;Utenze e canoni;4;Energia elettrica;18/04/2023
1410;17;9999999;294,07;21.458,02;ENEL ENERGIA SPA;9072556E0B;14/04/2023;5930;0;186;1;Spese correnti;3;Acquisto di beni e servizi;2;Acquisto di servizi;5;Utenze e canoni;4;Energia elettrica;18/04/2023
1410;18;9999999;295;21.458,02;ENEL ENERGIA SPA;9072556E0B;14/04/2023;5930;0;186;1;Spese correnti;3;Acquisto di beni e servizi;2;Acquisto di servizi;5;Utenze e canoni;4;Energia elettrica;18/04/2023
1410;19;9999999;347,11;21.458,02;ENEL ENERGIA SPA;9072556E0B;14/04/2023;5930;0;186;1;Spese correnti;3;Acquisto di beni e servizi;2;Acquisto di servizi;5;Utenze e canoni;4;Energia elettrica;18/04/2023
1410;20;9999999;364,88;21.458,02;ENEL ENERGIA SPA;9072556E0B;14/04/2023;5930;0;186;1;Spese correnti;3;Acquisto di beni e servizi;2;Acquisto di servizi;5;Utenze e canoni;4;Energia elettrica;18/04/2023
1410;21;9999999;417,29;21.458,02;ENEL ENERGIA SPA;9072556E0B;14/04/2023;5930;0;186;1;Spese correnti;3;Acquisto di beni e servizi;2;Acquisto di servizi;5;Utenze e canoni;4;Energia elettrica;18/04/2023
1410;22;9999999;441,47;21.458,02;ENEL ENERGIA SPA;9072556E0B;14/04/2023;5930;0;186;1;Spese correnti;3;Acquisto di beni e servizi;2;Acquisto di servizi;5;Utenze e canoni;4;Energia elettrica;18/04/2023
1410;23;9999999;451,14;21.458,02;ENEL ENERGIA SPA;9072556E0B;14/04/2023;5930;0;186;1;Spese correnti;3;Acquisto di beni e servizi;2;Acquisto di servizi;5;Utenze e canoni;4;Energia elettrica;18/04/2023
1410;24;9999999;465,98;21.458,02;ENEL ENERGIA SPA;9072556E0B;14/04/2023;5930;0;186;1;Spese correnti;3;Acquisto di beni e servizi;2;Acquisto di servizi;5;Utenze e canoni;4;Energia elettrica;18/04/2023
1410;25;9999999;509,74;21.458,02;ENEL ENERGIA SPA;9072556E0B;14/04/2023;5930;0;186;1;Spese correnti;3;Acquisto di beni e servizi;2;Acquisto di servizi;5;Utenze e canoni;4;Energia elettrica;18/04/2023
1410;26;9999999;529,39;21.458,02;ENEL ENERGIA SPA;9072556E0B;14/04/2023;5930;0;186;1;Spese correnti;3;Acquisto di beni e servizi;2;Acquisto di servizi;5;Utenze e canoni;4;Energia elettrica;18/04/2023
1410;27;9999999;535,26;21.458,02;ENEL ENERGIA SPA;9072556E0B;14/04/2023;5930;0;186;1;Spese correnti;3;Acquisto di beni e servizi;2;Acquisto di servizi;5;Utenze e canoni;4;Energia elettrica;18/04/2023
1410;28;9999999;550,4;21.458,02;ENEL ENERGIA SPA;9072556E0B;14/04/2023;5930;0;186;1;Spese correnti;3;Acquisto di beni e servizi;2;Acquisto di servizi;5;Utenze e canoni;4;Energia elettrica;18/04/2023
1410;29;9999999;584,34;21.458,02;ENEL ENERGIA SPA;9072556E0B;14/04/2023;5930;0;186;1;Spese correnti;3;Acquisto di beni e servizi;2;Acquisto di servizi;5;Utenze e canoni;4;Energia elettrica;18/04/2023
1410;30;9999999;636,03;21.458,02;ENEL ENERGIA SPA;9072556E0B;14/04/2023;5930;0;186;1;Spese correnti;3;Acquisto di beni e servizi;2;Acquisto di servizi;5;Utenze e canoni;4;Energia elettrica;18/04/2023
1410;31;9999999;673,57;21.458,02;ENEL ENERGIA SPA;9072556E0B;14/04/2023;5930;0;186;1;Spese correnti;3;Acquisto di beni e servizi;2;Acquisto di servizi;5;Utenze e canoni;4;Energia elettrica;18/04/2023
1410;32;9999999;719,06;21.458,02;ENEL ENERGIA SPA;9072556E0B;14/04/2023;5930;0;186;1;Spese correnti;3;Acquisto di beni e servizi;2;Acquisto di servizi;5;Utenze e canoni;4;Energia elettrica;18/04/2023
1410;33;9999999;721,22;21.458,02;ENEL ENERGIA SPA;9072556E0B;14/04/2023;5930;0;186;1;Spese correnti;3;Acquisto di beni e servizi;2;Acquisto di servizi;5;Utenze e canoni;4;Energia elettrica;18/04/2023
1410;34;9999999;763,04;21.458,02;ENEL ENERGIA SPA;9072556E0B;14/04/2023;5930;0;186;1;Spese correnti;3;Acquisto di beni e servizi;2;Acquisto di servizi;5;Utenze e canoni;4;Energia elettrica;18/04/2023
1410;35;9999999;1.081,69;21.458,02;ENEL ENERGIA SPA;9072556E0B;14/04/2023;5930;0;186;1;Spese correnti;3;Acquisto di beni e servizi;2;Acquisto di servizi;5;Utenze e canoni;4;Energia elettrica;18/04/2023
1410;36;9999999;1.100,77;21.458,02;ENEL ENERGIA SPA;9072556E0B;14/04/2023;5930;0;186;1;Spese correnti;3;Acquisto di beni e servizi;2;Acquisto di servizi;5;Utenze e canoni;4;Energia elettrica;18/04/2023
1410;37;9999999;1.278,21;21.458,02;ENEL ENERGIA SPA;9072556E0B;14/04/2023;5930;0;186;1;Spese correnti;3;Acquisto di beni e servizi;2;Acquisto di servizi;5;Utenze e canoni;4;Energia elettrica;18/04/2023
1410;38;9999999;1.616,12;21.458,02;ENEL ENERGIA SPA;9072556E0B;14/04/2023;5930;0;186;1;Spese correnti;3;Acquisto di beni e servizi;2;Acquisto di servizi;5;Utenze e canoni;4;Energia elettrica;18/04/2023
1410;39;9999999;1.634,86;21.458,02;ENEL ENERGIA SPA;9072556E0B;14/04/2023;5930;0;186;1;Spese correnti;3;Acquisto di beni e servizi;2;Acquisto di servizi;5;Utenze e canoni;4;Energia elettrica;18/04/2023
1410;40;9999999;1.786,09;21.458,02;ENEL ENERGIA SPA;9072556E0B;14/04/2023;5930;0;186;1;Spese correnti;3;Acquisto di beni e servizi;2;Acquisto di servizi;5;Utenze e canoni;4;Energia elettrica;18/04/2023
1411;1;9999999;6,93;712,03;ENEL ENERGIA SPA;9072556E0B;14/04/2023;5931;0;187;1;Spese correnti;3;Acquisto di beni e servizi;2;Acquisto di servizi;5;Utenze e canoni;4;Energia elettrica;18/04/2023
1411;2;9999999;10,86;712,03;ENEL ENERGIA SPA;9072556E0B;14/04/2023;5931;0;187;1;Spese correnti;3;Acquisto di beni e servizi;2;Acquisto di servizi;5;Utenze e canoni;4;Energia elettrica;18/04/2023
1411;3;9999999;56,27;712,03;ENEL ENERGIA SPA;9072556E0B;14/04/2023;5931;0;187;1;Spese correnti;3;Acquisto di beni e servizi;2;Acquisto di servizi;5;Utenze e canoni;4;Energia elettrica;18/04/2023
1411;4;9999999;61,77;712,03;ENEL ENERGIA SPA;9072556E0B;14/04/2023;5931;0;187;1;Spese correnti;3;Acquisto di beni e servizi;2;Acquisto di servizi;5;Utenze e canoni;4;Energia elettrica;18/04/2023
1411;5;9999999;63,68;712,03;ENEL ENERGIA SPA;9072556E0B;14/04/2023;5931;0;187;1;Spese correnti;3;Acquisto di beni e servizi;2;Acquisto di servizi;5;Utenze e canoni;4;Energia elettrica;18/04/2023
1411;6;9999999;94,03;712,03;ENEL ENERGIA SPA;9072556E0B;14/04/2023;5931;0;187;1;Spese correnti;3;Acquisto di beni e servizi;2;Acquisto di servizi;5;Utenze e canoni;4;Energia elettrica;18/04/2023
1411;7;9999999;113,7;712,03;ENEL ENERGIA SPA;9072556E0B;14/04/2023;5931;0;187;1;Spese correnti;3;Acquisto di beni e servizi;2;Acquisto di servizi;5;Utenze e canoni;4;Energia elettrica;18/04/2023
1411;8;9999999;139,65;712,03;ENEL ENERGIA SPA;9072556E0B;14/04/2023;5931;0;187;1;Spese correnti;3;Acquisto di beni e servizi;2;Acquisto di servizi;5;Utenze e canoni;4;Energia elettrica;18/04/2023
1411;9;9999999;165,14;712,03;ENEL ENERGIA SPA;9072556E0B;14/04/2023;5931;0;187;1;Spese correnti;3;Acquisto di beni e servizi;2;Acquisto di servizi;5;Utenze e canoni;4;Energia elettrica;18/04/2023
1412;1;9999999;44,44;102,99;ENEL ENERGIA SPA;9072556E0B;14/04/2023;6461;0;233;1;Spese correnti;3;Acquisto di beni e servizi;2;Acquisto di servizi;5;Utenze e canoni;4;Energia elettrica;18/04/2023
1412;2;9999999;58,55;102,99;ENEL ENERGIA SPA;9072556E0B;14/04/2023;6461;0;233;1;Spese correnti;3;Acquisto di beni e servizi;2;Acquisto di servizi;5;Utenze e canoni;4;Energia elettrica;18/04/2023
1413;1;9999999;7.500,00;7.500,00;STUDIO MARKETING CITY DI ROSARIO CARDILLO;Z8535E5212;14/04/2023;9441;0;452;1;Spese correnti;3;Acquisto di beni e servizi;2;Acquisto di servizi;11;Prestazioni professionali e specialistiche;999;Altre prestazioni professionali e specialistiche n.a.c.;18/04/2023
1414;1;9999999;2.089,00;2.089,00;GIES S.R.L.;Z7934ED2CD;14/04/2023;1201;0;199;1;Spese correnti;3;Acquisto di beni e servizi;2;Acquisto di servizi;99;Altri servizi;999;Altri servizi diversi n.a.c.;18/04/2023
1415;1;9999999;735;735;GIES S.R.L.;Z7934ED2CD;14/04/2023;810;0;200;1;Spese correnti;3;Acquisto di beni e servizi;2;Acquisto di servizi;99;Altri servizi;999;Altri servizi diversi n.a.c.;18/04/2023
1416;1;9999999;459,58;459,58;AGENZIA DELLE ENTRATE DI TREVISO;Z7934ED2CD;14/04/2023;1201;0;199;1;Spese correnti;3;Acquisto di beni e servizi;2;Acquisto di servizi;99;Altri servizi;999;Altri servizi diversi n.a.c.;16/05/2023
1417;1;9999999;161,7;161,7;AGENZIA DELLE ENTRATE DI TREVISO;Z7934ED2CD;14/04/2023;810;0;200;1;Spese correnti;3;Acquisto di beni e servizi;2;Acquisto di servizi;99;Altri servizi;999;Altri servizi diversi n.a.c.;16/05/2023
1420;1;9999999;565,55;565,55;VIER  SCARL; ;14/04/2023;2790;0;234;1;Spese correnti;3;Acquisto di beni e servizi;2;Acquisto di servizi;5;Utenze e canoni;4;Energia elettrica;18/04/2023
1421;1;9999999;525,43;525,43;VIER  SCARL; ;14/04/2023;2792;0;235;1;Spese correnti;3;Acquisto di beni e servizi;2;Acquisto di servizi;5;Utenze e canoni;4;Energia elettrica;18/04/2023
1422;1;9999999;3.201,51;3.201,51;VIER  SCARL; ;14/04/2023;2973;0;131;1;Spese correnti;3;Acquisto di beni e servizi;2;Acquisto di servizi;5;Utenze e canoni;4;Energia elettrica;18/04/2023
1423;1;9999999;1.851,13;1.851,13;VIER  SCARL; ;14/04/2023;4020;0;236;1;Spese correnti;3;Acquisto di beni e servizi;2;Acquisto di servizi;5;Utenze e canoni;4;Energia elettrica;18/04/2023
1424;1;9999999;1.572,67;1.572,67;VIER  SCARL; ;14/04/2023;5050;0;132;1;Spese correnti;3;Acquisto di beni e servizi;2;Acquisto di servizi;5;Utenze e canoni;4;Energia elettrica;18/04/2023
1425;1;9999999;6.978,40;6.978,40;STUDIO ASSOCIATO FERRARINI E PITTERI;Z563879B9A;14/04/2023;7432;0;1050;1;Spese correnti;3;Acquisto di beni e servizi;2;Acquisto di servizi;11;Prestazioni professionali e specialistiche;999;Altre prestazioni professionali e specialistiche n.a.c.;18/04/2023
1426;1;9999999;727,32;727,32;VIER  SCARL; ;14/04/2023;7552;1;237;1;Spese correnti;3;Acquisto di beni e servizi;2;Acquisto di servizi;5;Utenze e canoni;4;Energia elettrica;18/04/2023
1427;1;9999999;3.000,00;3.000,00;COMUNE DI PAESE; ;18/04/2023;8405;0;487;1;Spese correnti;4;Trasferimenti correnti;1;Trasferimenti correnti a Amministrazioni Pubbliche;2;Trasferimenti correnti a Amministrazioni Locali;3;Trasferimenti correnti a Comuni;20/04/2023
1428;1;9999999;49,66;49,66;OMESSO NOMINATIVO NEL RISPETTO DELLA NORMATIVA SULLA PROTEZIONE DATI PERSONALI; ;18/04/2023;8395;0;1359;1;Spese correnti;4;Trasferimenti correnti;2;Trasferimenti correnti a Famiglie;2;Interventi assistenziali;999;Altri assegni e sussidi assistenziali;20/04/2023
1429;1;9999999;369,26;369,26;OMESSO NOMINATIVO NEL RISPETTO DELLA NORMATIVA SULLA PROTEZIONE DATI PERSONALI; ;18/04/2023;8396;0;336;1;Spese correnti;4;Trasferimenti correnti;2;Trasferimenti correnti a Famiglie;2;Interventi assistenziali;999;Altri assegni e sussidi assistenziali;20/04/2023
1430;1;9999999;1.781,28;1.781,28;OMESSO NOMINATIVO NEL RISPETTO DELLA NORMATIVA SULLA PROTEZIONE DATI PERSONALI; ;18/04/2023;8361;2;427;1;Spese correnti;4;Trasferimenti correnti;4;Trasferimenti correnti a Istituzioni Sociali Private;1;Trasferimenti correnti a Istituzioni Sociali Private;1;Trasferimenti correnti a Istituzioni Sociali Private;20/04/2023
1431;1;9999999;3.351,27;3.351,27;OMESSO NOMINATIVO NEL RISPETTO DELLA NORMATIVA SULLA PROTEZIONE DATI PERSONALI; ;18/04/2023;8361;2;428;1;Spese correnti;4;Trasferimenti correnti;4;Trasferimenti correnti a Istituzioni Sociali Private;1;Trasferimenti correnti a Istituzioni Sociali Private;1;Trasferimenti correnti a Istituzioni Sociali Private;20/04/2023
1434;1;9999999;302,54;302,54;TECHNE SRL;Z413A35766;18/04/2023;1798;0;299;1;Spese correnti;3;Acquisto di beni e servizi;2;Acquisto di servizi;19;Servizi informatici e di telecomunicazioni;1;Gestione e manutenzione applicazioni;20/04/2023
1435;1;9999999;2.304,79;2.304,79;TELECOM ITALIA S.P.A.;9,29E+10;18/04/2023;1801;1;610;1;Spese correnti;3;Acquisto di beni e servizi;2;Acquisto di servizi;5;Utenze e canoni;999;Utenze e canoni per altri servizi n.a.c.;20/04/2023
1436;1;9999999;488,32;488,32;TELECOM ITALIA S.P.A.;Z523435997;18/04/2023;1801;1;430;1;Spese correnti;3;Acquisto di beni e servizi;2;Acquisto di servizi;5;Utenze e canoni;2;Telefonia mobile;20/04/2023
1437;1;9999999;442,88;442,88;TELECOM ITALIA S.P.A.;9,29E+10;18/04/2023;2790;1;613;1;Spese correnti;3;Acquisto di beni e servizi;2;Acquisto di servizi;5;Utenze e canoni;999;Utenze e canoni per altri servizi n.a.c.;20/04/2023
1438;1;9999999;132,88;132,88;TELECOM ITALIA S.P.A.;9,29E+10;18/04/2023;2792;1;611;1;Spese correnti;3;Acquisto di beni e servizi;2;Acquisto di servizi;5;Utenze e canoni;999;Utenze e canoni per altri servizi n.a.c.;20/04/2023
1439;1;9999999;1.841,43;1.841,43;TELECOM ITALIA S.P.A.;9,29E+10;18/04/2023;2973;1;612;1;Spese correnti;3;Acquisto di beni e servizi;2;Acquisto di servizi;5;Utenze e canoni;999;Utenze e canoni per altri servizi n.a.c.;20/04/2023
1440;1;9999999;151,04;151,04;TELECOM ITALIA S.P.A.;9,29E+10;18/04/2023;6642;0;838;1;Spese correnti;3;Acquisto di beni e servizi;2;Acquisto di servizi;5;Utenze e canoni;1;Telefonia fissa;20/04/2023
1441;1;9999999;1.510,20;1.510,20;CONSORZIO PROVINCIALE INTESA-CCA SOC.COOP.SOCIALECONSORTILE;9293702D7F;18/04/2023;8204;4;847;1;Spese correnti;3;Acquisto di beni e servizi;2;Acquisto di servizi;99;Altri servizi;999;Altri servizi diversi n.a.c.;20/04/2023
1442;1;9999999;727,35;727,35;CONSORZIO PROVINCIALE INTESA-CCA SOC.COOP.SOCIALECONSORTILE;9293702D7F;18/04/2023;8208;0;846;1;Spese correnti;3;Acquisto di beni e servizi;2;Acquisto di servizi;99;Altri servizi;999;Altri servizi diversi n.a.c.;20/04/2023
1443;1;9999999;13.246,60;13.246,60;CODESS SOCIALE-COOP. ONLUS;9120417633;18/04/2023;8250;0;578;1;Spese correnti;3;Acquisto di beni e servizi;2;Acquisto di servizi;15;Contratti di servizio pubblico;9;Contratti di servizio di assistenza sociale domiciliare;20/04/2023
1444;1;9999999;630,3;630,3;OMESSO NOMINATIVO NEL RISPETTO DELLA NORMATIVA SULLA PROTEZIONE DATI PERSONALI; ;18/04/2023;8361;2;431;1;Spese correnti;4;Trasferimenti correnti;4;Trasferimenti correnti a Istituzioni Sociali Private;1;Trasferimenti correnti a Istituzioni Sociali Private;1;Trasferimenti correnti a Istituzioni Sociali Private;20/04/2023
1445;1;9999999;695,93;695,93;OMESSO NOMINATIVO NEL RISPETTO DELLA NORMATIVA SULLA PROTEZIONE DATI PERSONALI; ;18/04/2023;8361;2;432;1;Spese correnti;4;Trasferimenti correnti;4;Trasferimenti correnti a Istituzioni Sociali Private;1;Trasferimenti correnti a Istituzioni Sociali Private;1;Trasferimenti correnti a Istituzioni Sociali Private;20/04/2023
1446;1;9999999;19.746,32;19.746,32;AZIENDA ULSS N.2 - MARCA TREVIGIANA; ;18/04/2023;8360;0;426;1;Spese correnti;4;Trasferimenti correnti;1;Trasferimenti correnti a Amministrazioni Pubbliche;2;Trasferimenti correnti a Amministrazioni Locali;11;Trasferimenti correnti a Aziende sanitarie locali  n.a.f.;20/04/2023
1447;1;9999999;27.452,81;27.452,81;EUROGROUP S.P.A.;9496917FD1;18/04/2023;13451;2;1373;2;Spese in conto capitale;2;Investimenti fissi lordi e acquisto di terreni;1;Beni materiali;9;Beni immobili;3;Fabbricati ad uso scolastico;20/04/2023
1448;1;9999999;18.582,35;18.582,35;EUROGROUP S.P.A.;9496917FD1;18/04/2023;13451;0;1372;2;Spese in conto capitale;2;Investimenti fissi lordi e acquisto di terreni;1;Beni materiali;9;Beni immobili;3;Fabbricati ad uso scolastico;20/04/2023
1449;1;9999999;1.400,00;1.400,00;EUROGROUP S.P.A.;9496917FD1;18/04/2023;13451;0;1372;2;Spese in conto capitale;2;Investimenti fissi lordi e acquisto di terreni;1;Beni materiali;9;Beni immobili;3;Fabbricati ad uso scolastico;20/04/2023
1450;1;9999999;11.100,00;11.100,00;EUROGROUP S.P.A.;9496917FD1;18/04/2023;13451;0;1372;2;Spese in conto capitale;2;Investimenti fissi lordi e acquisto di terreni;1;Beni materiali;9;Beni immobili;3;Fabbricati ad uso scolastico;20/04/2023
1454;1;9999999;11.294,41;11.294,41;AMMINISTRATORI COMUNALI; ;20/04/2023;74;0;141;1;Spese correnti;3;Acquisto di beni e servizi;2;Acquisto di servizi;1;Organi e incarichi istituzionali dell'amministrazione;1;Organi istituzionali dell'amministrazione - Indennità;24/04/2023
1455;1;9999999;56;56;OMESSO NOMINATIVO NEL RISPETTO DELLA NORMATIVA SULLA PROTEZIONE DATI PERSONALI; ;20/04/2023;74;1;372;1;Spese correnti;3;Acquisto di beni e servizi;2;Acquisto di servizi;2;Organizzazione eventi, pubblicita` e servizi per trasferta;1;Rimborso per viaggio e trasloco;24/04/2023
1510;1;9999999;0,5;0,5;DIPENDENTI DIVERSI (MISSIONI E RIMBORSO SPESE); ;20/04/2023;1786;0;211;1;Spese correnti;3;Acquisto di beni e servizi;2;Acquisto di servizi;2;Organizzazione eventi, pubblicita` e servizi per trasferta;1;Rimborso per viaggio e trasloco;24/04/2023
1558;1;9999999;360;360;PUBLIKA S.R.L.;Z243974DD0;20/04/2023;560;0;125;1;Spese correnti;3;Acquisto di beni e servizi;2;Acquisto di servizi;4;Acquisto di servizi per formazione e addestramento del personale dell'ente;999;Acquisto di servizi per altre spese per formazione e addestramento n.a.c.;24/04/2023
1559;1;9999999;217,62;4.628,05;SERENISSIMA RISTORAZIONE SPA;932853027C;20/04/2023;4260;0;731;1;Spese correnti;3;Acquisto di beni e servizi;2;Acquisto di servizi;15;Contratti di servizio pubblico;6;Contratti di servizio per le mense scolastiche;24/04/2023
1559;2;9999999;227,29;4.628,05;SERENISSIMA RISTORAZIONE SPA;932853027C;20/04/2023;4260;0;731;1;Spese correnti;3;Acquisto di beni e servizi;2;Acquisto di servizi;15;Contratti di servizio pubblico;6;Contratti di servizio per le mense scolastiche;24/04/2023
1559;3;9999999;236,96;4.628,05;SERENISSIMA RISTORAZIONE SPA;932853027C;20/04/2023;4260;0;731;1;Spese correnti;3;Acquisto di beni e servizi;2;Acquisto di servizi;15;Contratti di servizio pubblico;6;Contratti di servizio per le mense scolastiche;24/04/2023
1559;4;9999999;778,6;4.628,05;SERENISSIMA RISTORAZIONE SPA;932853027C;20/04/2023;4260;0;731;1;Spese correnti;3;Acquisto di beni e servizi;2;Acquisto di servizi;15;Contratti di servizio pubblico;6;Contratti di servizio per le mense scolastiche;24/04/2023
1559;5;9999999;1.387,93;4.628,05;SERENISSIMA RISTORAZIONE SPA;932853027C;20/04/2023;4260;0;731;1;Spese correnti;3;Acquisto di beni e servizi;2;Acquisto di servizi;15;Contratti di servizio pubblico;6;Contratti di servizio per le mense scolastiche;24/04/2023
1559;6;9999999;1.779,65;4.628,05;SERENISSIMA RISTORAZIONE SPA;932853027C;20/04/2023;4260;0;731;1;Spese correnti;3;Acquisto di beni e servizi;2;Acquisto di servizi;15;Contratti di servizio pubblico;6;Contratti di servizio per le mense scolastiche;24/04/2023
1560;1;9999999;570,12;14.744,23;SERENISSIMA RISTORAZIONE SPA;932853027C;20/04/2023;4261;0;732;1;Spese correnti;3;Acquisto di beni e servizi;2;Acquisto di servizi;15;Contratti di servizio pubblico;6;Contratti di servizio per le mense scolastiche;24/04/2023
1560;2;9999999;623,62;14.744,23;SERENISSIMA RISTORAZIONE SPA;932853027C;20/04/2023;4261;0;732;1;Spese correnti;3;Acquisto di beni e servizi;2;Acquisto di servizi;15;Contratti di servizio pubblico;6;Contratti di servizio per le mense scolastiche;24/04/2023
1560;3;9999999;805,85;14.744,23;SERENISSIMA RISTORAZIONE SPA;932853027C;20/04/2023;4261;0;732;1;Spese correnti;3;Acquisto di beni e servizi;2;Acquisto di servizi;15;Contratti di servizio pubblico;6;Contratti di servizio per le mense scolastiche;24/04/2023
1560;4;9999999;1.147,54;14.744,23;SERENISSIMA RISTORAZIONE SPA;932853027C;20/04/2023;4261;0;732;1;Spese correnti;3;Acquisto di beni e servizi;2;Acquisto di servizi;15;Contratti di servizio pubblico;6;Contratti di servizio per le mense scolastiche;24/04/2023
1560;5;9999999;2.199,60;14.744,23;SERENISSIMA RISTORAZIONE SPA;932853027C;20/04/2023;4261;0;732;1;Spese correnti;3;Acquisto di beni e servizi;2;Acquisto di servizi;15;Contratti di servizio pubblico;6;Contratti di servizio per le mense scolastiche;24/04/2023
1560;6;9999999;4.219,05;14.744,23;SERENISSIMA RISTORAZIONE SPA;932853027C;20/04/2023;4261;0;732;1;Spese correnti;3;Acquisto di beni e servizi;2;Acquisto di servizi;15;Contratti di servizio pubblico;6;Contratti di servizio per le mense scolastiche;24/04/2023
1560;7;9999999;5.178,45;14.744,23;SERENISSIMA RISTORAZIONE SPA;932853027C;20/04/2023;4261;0;732;1;Spese correnti;3;Acquisto di beni e servizi;2;Acquisto di servizi;15;Contratti di servizio pubblico;6;Contratti di servizio per le mense scolastiche;24/04/2023
1561;1;9999999;300;2.402,24;SERENISSIMA RISTORAZIONE SPA;932853027C;20/04/2023;7553;1;733;1;Spese correnti;3;Acquisto di beni e servizi;2;Acquisto di servizi;15;Contratti di servizio pubblico;6;Contratti di servizio per le mense scolastiche;24/04/2023
1561;2;9999999;930,86;2.402,24;SERENISSIMA RISTORAZIONE SPA;932853027C;20/04/2023;7553;1;733;1;Spese correnti;3;Acquisto di beni e servizi;2;Acquisto di servizi;15;Contratti di servizio pubblico;6;Contratti di servizio per le mense scolastiche;24/04/2023
1561;3;9999999;1.171,38;2.402,24;SERENISSIMA RISTORAZIONE SPA;932853027C;20/04/2023;7553;1;733;1;Spese correnti;3;Acquisto di beni e servizi;2;Acquisto di servizi;15;Contratti di servizio pubblico;6;Contratti di servizio per le mense scolastiche;24/04/2023
1562;1;9999999;5.636,40;5.636,40;ELETTROSTUDIO S.R.L. SOCIETA' TRA PROFESSIONISTI;Z5E38CF197;26/04/2023;1340;0;1168;1;Spese correnti;3;Acquisto di beni e servizi;2;Acquisto di servizi;11;Prestazioni professionali e specialistiche;999;Altre prestazioni professionali e specialistiche n.a.c.;28/04/2023
1563;1;9999999;3.425,76;3.425,76;FILIPPIN ADRIANO;Z4635B86FF;26/04/2023;13218;0;357;2;Spese in conto capitale;2;Investimenti fissi lordi e acquisto di terreni;1;Beni materiali;9;Beni immobili;3;Fabbricati ad uso scolastico;28/04/2023
1564;1;9999999;253,46;253,46;COND. LE FONTANE DI FRESCADA C/O PADMA AMM.NI; ;26/04/2023;1198;0;444;1;Spese correnti;3;Acquisto di beni e servizi;2;Acquisto di servizi;5;Utenze e canoni;7;Spese di condominio;28/04/2023
1565;1;9999999;427;427;Societa' Cooperativa PORTABAGAGLI MULTISERVICE;Z323853107;26/04/2023;1185;1;1009;1;Spese correnti;3;Acquisto di beni e servizi;2;Acquisto di servizi;9;Manutenzione ordinaria e riparazioni;8;Manutenzione ordinaria e riparazioni di beni immobili;28/04/2023
1566;1;9999999;2.573,78;2.573,78;TERMICA SILE S.R.L.;Z733832940;26/04/2023;1185;1;975;1;Spese correnti;3;Acquisto di beni e servizi;2;Acquisto di servizi;9;Manutenzione ordinaria e riparazioni;4;Manutenzione ordinaria e riparazioni di impianti e macchinari;28/04/2023
1567;1;9999999;500;500;Societa' Cooperativa PORTABAGAGLI MULTISERVICE;Z323853107;26/04/2023;2760;0;1004;1;Spese correnti;3;Acquisto di beni e servizi;2;Acquisto di servizi;9;Manutenzione ordinaria e riparazioni;8;Manutenzione ordinaria e riparazioni di beni immobili;28/04/2023
1568;1;9999999;500;500;Societa' Cooperativa PORTABAGAGLI MULTISERVICE;Z323853107;26/04/2023;2770;1;1005;1;Spese correnti;3;Acquisto di beni e servizi;2;Acquisto di servizi;9;Manutenzione ordinaria e riparazioni;8;Manutenzione ordinaria e riparazioni di beni immobili;28/04/2023
1569;1;9999999;371,58;371,58;TERMICA SILE S.R.L.;Z733832940;26/04/2023;2770;1;971;1;Spese correnti;3;Acquisto di beni e servizi;2;Acquisto di servizi;9;Manutenzione ordinaria e riparazioni;4;Manutenzione ordinaria e riparazioni di impianti e macchinari;28/04/2023
1570;1;9999999;817,98;817,98;TERMICA SILE S.R.L.;Z733832940;26/04/2023;2980;1;972;1;Spese correnti;3;Acquisto di beni e servizi;2;Acquisto di servizi;9;Manutenzione ordinaria e riparazioni;4;Manutenzione ordinaria e riparazioni di impianti e macchinari;28/04/2023
1571;1;9999999;748,1;748,1;Societa' Cooperativa PORTABAGAGLI MULTISERVICE;Z323853107;26/04/2023;4030;0;1007;1;Spese correnti;3;Acquisto di beni e servizi;2;Acquisto di servizi;9;Manutenzione ordinaria e riparazioni;8;Manutenzione ordinaria e riparazioni di beni immobili;28/04/2023
1572;1;9999999;1.154,30;1.154,30;TERMICA SILE S.R.L.;Z733832940;26/04/2023;4030;0;973;1;Spese correnti;3;Acquisto di beni e servizi;2;Acquisto di servizi;9;Manutenzione ordinaria e riparazioni;4;Manutenzione ordinaria e riparazioni di impianti e macchinari;28/04/2023
1573;1;9999999;1.000,00;1.000,00;Societa' Cooperativa PORTABAGAGLI MULTISERVICE;Z323853107;26/04/2023;4540;0;1008;1;Spese correnti;3;Acquisto di beni e servizi;2;Acquisto di servizi;9;Manutenzione ordinaria e riparazioni;8;Manutenzione ordinaria e riparazioni di beni immobili;28/04/2023
1574;1;9999999;139,86;139,86;TERMICA SILE S.R.L.;Z733832940;26/04/2023;4540;0;974;1;Spese correnti;3;Acquisto di beni e servizi;2;Acquisto di servizi;9;Manutenzione ordinaria e riparazioni;4;Manutenzione ordinaria e riparazioni di impianti e macchinari;28/04/2023
1575;1;9999999;754,44;754,44;TERMICA SILE S.R.L.;Z733832940;26/04/2023;4660;0;976;1;Spese correnti;3;Acquisto di beni e servizi;2;Acquisto di servizi;9;Manutenzione ordinaria e riparazioni;4;Manutenzione ordinaria e riparazioni di impianti e macchinari;28/04/2023
1576;1;9999999;1.000,00;1.000,00;Societa' Cooperativa PORTABAGAGLI MULTISERVICE;Z323853107;26/04/2023;5080;0;1010;1;Spese correnti;3;Acquisto di beni e servizi;2;Acquisto di servizi;9;Manutenzione ordinaria e riparazioni;8;Manutenzione ordinaria e riparazioni di beni immobili;28/04/2023
1577;1;9999999;886,79;886,79;TERMICA SILE S.R.L.;Z733832940;26/04/2023;5080;0;978;1;Spese correnti;3;Acquisto di beni e servizi;2;Acquisto di servizi;9;Manutenzione ordinaria e riparazioni;4;Manutenzione ordinaria e riparazioni di impianti e macchinari;28/04/2023
1578;1;9999999;182,33;182,33;TERMICA SILE S.R.L.;Z733832940;26/04/2023;6590;1;977;1;Spese correnti;3;Acquisto di beni e servizi;2;Acquisto di servizi;9;Manutenzione ordinaria e riparazioni;4;Manutenzione ordinaria e riparazioni di impianti e macchinari;28/04/2023
1579;1;9999999;416;416;Societa' Cooperativa PORTABAGAGLI MULTISERVICE;Z323853107;26/04/2023;7550;0;1011;1;Spese correnti;3;Acquisto di beni e servizi;2;Acquisto di servizi;9;Manutenzione ordinaria e riparazioni;8;Manutenzione ordinaria e riparazioni di beni immobili;28/04/2023
1580;1;9999999;14,38;14,38;TERMICA SILE S.R.L.;Z733832940;26/04/2023;7550;0;979;1;Spese correnti;3;Acquisto di beni e servizi;2;Acquisto di servizi;9;Manutenzione ordinaria e riparazioni;4;Manutenzione ordinaria e riparazioni di impianti e macchinari;28/04/2023
1581;1;9999999;732;732;HALLEY VENETO SRL;Z523A0030D;02/05/2023;557;0;275;1;Spese correnti;3;Acquisto di beni e servizi;2;Acquisto di servizi;4;Acquisto di servizi per formazione e addestramento del personale dell'ente;999;Acquisto di servizi per altre spese per formazione e addestramento n.a.c.;05/05/2023
1582;1;9999999;572,42;572,42;ABACO S.P.A.;9,44E+58;02/05/2023;1010;0;1259;1;Spese correnti;3;Acquisto di beni e servizi;2;Acquisto di servizi;3;Aggi di riscossione;999;Altri aggi di riscossione n.a.c.;05/05/2023
1583;1;9999999;1.414,21;1.414,21;ABACO S.P.A.;9,44E+58;02/05/2023;1010;0;1259;1;Spese correnti;3;Acquisto di beni e servizi;2;Acquisto di servizi;3;Aggi di riscossione;999;Altri aggi di riscossione n.a.c.;05/05/2023
1584;1;9999999;4.987,50;4.987,50;KIRIKU Societa' cooperativa sociale onlus;Z6C35B265E;02/05/2023;8204;4;461;1;Spese correnti;3;Acquisto di beni e servizi;2;Acquisto di servizi;99;Altri servizi;999;Altri servizi diversi n.a.c.;05/05/2023
1585;1;9999999;6.978,40;6.978,40;SARI ING. MARCO;8896992E0C;02/05/2023;11315;0;877;2;Spese in conto capitale;2;Investimenti fissi lordi e acquisto di terreni;1;Beni materiali;9;Beni immobili;999;Beni immobili n.a.c.;05/05/2023
1586;1;9999999;384,3;384,3;ZARDO WALTER;Z0D35B76A7;02/05/2023;13218;0;356;2;Spese in conto capitale;2;Investimenti fissi lordi e acquisto di terreni;1;Beni materiali;9;Beni immobili;3;Fabbricati ad uso scolastico;05/05/2023
1587;1;9999999;900;900;OMESSO NOMINATIVO NEL RISPETTO DELLA NORMATIVA SULLA PROTEZIONE DATI PERSONALI; ;02/05/2023;8361;0;449;1;Spese correnti;4;Trasferimenti correnti;2;Trasferimenti correnti a Famiglie;2;Interventi assistenziali;999;Altri assegni e sussidi assistenziali;05/05/2023
1588;1;9999999;960;960;OMESSO NOMINATIVO NEL RISPETTO DELLA NORMATIVA SULLA PROTEZIONE DATI PERSONALI; ;02/05/2023;8361;0;448;1;Spese correnti;4;Trasferimenti correnti;2;Trasferimenti correnti a Famiglie;2;Interventi assistenziali;999;Altri assegni e sussidi assistenziali;05/05/2023
1589;1;9999999;7.114,13;7.114,13;VILLANOVA COSTRUZIONI SRL;96608880FC;02/05/2023;13218;0;999;2;Spese in conto capitale;2;Investimenti fissi lordi e acquisto di terreni;1;Beni materiali;9;Beni immobili;3;Fabbricati ad uso scolastico;05/05/2023
1590;1;9999999;366;366;ISTITUTO DI VIGILANZA PRIVATA CASTELLANO S.R.L.;Z42392030C;02/05/2023;4030;0;1256;1;Spese correnti;3;Acquisto di beni e servizi;2;Acquisto di servizi;9;Manutenzione ordinaria e riparazioni;4;Manutenzione ordinaria e riparazioni di impianti e macchinari;05/05/2023
1591;1;9999999;-2.013,00;183;ISTITUTO DI VIGILANZA PRIVATA CASTELLANO S.R.L.;Z42392030C;02/05/2023;5080;0;1255;1;Spese correnti;3;Acquisto di beni e servizi;2;Acquisto di servizi;9;Manutenzione ordinaria e riparazioni;4;Manutenzione ordinaria e riparazioni di impianti e macchinari;05/05/2023
1591;2;9999999;183;183;ISTITUTO DI VIGILANZA PRIVATA CASTELLANO S.R.L.;Z42392030C;02/05/2023;5080;0;1255;1;Spese correnti;3;Acquisto di beni e servizi;2;Acquisto di servizi;9;Manutenzione ordinaria e riparazioni;4;Manutenzione ordinaria e riparazioni di impianti e macchinari;05/05/2023
1591;3;9999999;2.013,00;183;ISTITUTO DI VIGILANZA PRIVATA CASTELLANO S.R.L.;Z42392030C;02/05/2023;5080;0;1255;1;Spese correnti;3;Acquisto di beni e servizi;2;Acquisto di servizi;9;Manutenzione ordinaria e riparazioni;4;Manutenzione ordinaria e riparazioni di impianti e macchinari;05/05/2023
1592;1;9999999;183;183;ISTITUTO DI VIGILANZA PRIVATA CASTELLANO S.R.L.;Z42392030C;02/05/2023;4540;0;1254;1;Spese correnti;3;Acquisto di beni e servizi;2;Acquisto di servizi;9;Manutenzione ordinaria e riparazioni;4;Manutenzione ordinaria e riparazioni di impianti e macchinari;05/05/2023
1593;1;9999999;732;732;ISTITUTO DI VIGILANZA PRIVATA CASTELLANO S.R.L.;Z42392030C;02/05/2023;2980;1;1253;1;Spese correnti;3;Acquisto di beni e servizi;2;Acquisto di servizi;9;Manutenzione ordinaria e riparazioni;4;Manutenzione ordinaria e riparazioni di impianti e macchinari;05/05/2023
1594;1;9999999;183;183;ISTITUTO DI VIGILANZA PRIVATA CASTELLANO S.R.L.;Z42392030C;02/05/2023;1185;2;1252;1;Spese correnti;3;Acquisto di beni e servizi;2;Acquisto di servizi;9;Manutenzione ordinaria e riparazioni;4;Manutenzione ordinaria e riparazioni di impianti e macchinari;05/05/2023
1595;1;9999999;366;366;ISTITUTO DI VIGILANZA PRIVATA CASTELLANO S.R.L.;Z42392030C;02/05/2023;1185;1;1251;1;Spese correnti;3;Acquisto di beni e servizi;2;Acquisto di servizi;9;Manutenzione ordinaria e riparazioni;4;Manutenzione ordinaria e riparazioni di impianti e macchinari;05/05/2023
1596;1;9999999;1.839,76;1.839,76;ING. ZARA ALBERTO;Z3C3991D2E;02/05/2023;1340;0;179;1;Spese correnti;3;Acquisto di beni e servizi;2;Acquisto di servizi;11;Prestazioni professionali e specialistiche;999;Altre prestazioni professionali e specialistiche n.a.c.;05/05/2023
1597;1;9999999;9.197,86;9.197,86;CODESS SOCIALE-COOP. ONLUS;8855832FBD;02/05/2023;7560;1;771;1;Spese correnti;3;Acquisto di beni e servizi;2;Acquisto di servizi;15;Contratti di servizio pubblico;10;Contratti di servizio di asilo nido;05/05/2023
1598;1;9999999;12.689,18;12.689,18;CODESS SOCIALE-COOP. ONLUS;8855832FBD;02/05/2023;7560;1;771;1;Spese correnti;3;Acquisto di beni e servizi;2;Acquisto di servizi;15;Contratti di servizio pubblico;10;Contratti di servizio di asilo nido;05/05/2023
1599;1;9999999;764,29;764,29;POSTE ITALIANE SPA;ZCE3502180;02/05/2023;1793;0;288;1;Spese correnti;3;Acquisto di beni e servizi;2;Acquisto di servizi;16;Servizi amministrativi;2;Spese postali;05/05/2023
1600;1;9999999;390,4;390,4;DIGITOUCH MARKETING SRL;Z0738124D9;02/05/2023;964;0;943;1;Spese correnti;3;Acquisto di beni e servizi;2;Acquisto di servizi;99;Altri servizi;999;Altri servizi diversi n.a.c.;05/05/2023
1601;1;9999999;332,46;332,46;SERVIZI TREVISO SRL;ZC721197FD;02/05/2023;8204;3;1353;1;Spese correnti;3;Acquisto di beni e servizi;2;Acquisto di servizi;99;Altri servizi;999;Altri servizi diversi n.a.c.;05/05/2023
1602;1;9999999;1,29;1,29;AGENZIA DELLE ENTRATE-RISCOSSIONE; ;02/05/2023;2351;1;249;1;Spese correnti;3;Acquisto di beni e servizi;2;Acquisto di servizi;3;Aggi di riscossione;999;Altri aggi di riscossione n.a.c.;05/05/2023
1603;1;9999999;7,11;7,11;AGENZIA DELLE ENTRATE-RISCOSSIONE; ;02/05/2023;2351;1;249;1;Spese correnti;3;Acquisto di beni e servizi;2;Acquisto di servizi;3;Aggi di riscossione;999;Altri aggi di riscossione n.a.c.;05/05/2023
1604;1;9999999;0,19;0,19;AGENZIA DELLE ENTRATE-RISCOSSIONE; ;02/05/2023;2351;1;249;1;Spese correnti;3;Acquisto di beni e servizi;2;Acquisto di servizi;3;Aggi di riscossione;999;Altri aggi di riscossione n.a.c.;05/05/2023
1605;1;9999999;0,54;0,54;AGENZIA DELLE ENTRATE-RISCOSSIONE; ;02/05/2023;2351;1;292;1;Spese correnti;3;Acquisto di beni e servizi;2;Acquisto di servizi;3;Aggi di riscossione;999;Altri aggi di riscossione n.a.c.;08/05/2023
1606;1;9999999;0,44;0,44;AGENZIA DELLE ENTRATE-RISCOSSIONE; ;02/05/2023;2351;1;1531;1;Spese correnti;3;Acquisto di beni e servizi;2;Acquisto di servizi;3;Aggi di riscossione;999;Altri aggi di riscossione n.a.c.;05/05/2023
1607;1;9999999;0,31;0,31;AGENZIA DELLE ENTRATE-RISCOSSIONE; ;02/05/2023;2351;1;249;1;Spese correnti;3;Acquisto di beni e servizi;2;Acquisto di servizi;3;Aggi di riscossione;999;Altri aggi di riscossione n.a.c.;05/05/2023
1608;1;9999999;2,08;2,08;AGENZIA DELLE ENTRATE-RISCOSSIONE; ;02/05/2023;2351;1;249;1;Spese correnti;3;Acquisto di beni e servizi;2;Acquisto di servizi;3;Aggi di riscossione;999;Altri aggi di riscossione n.a.c.;05/05/2023
1609;1;9999999;0,74;0,74;AGENZIA DELLE ENTRATE-RISCOSSIONE; ;02/05/2023;2351;1;571;1;Spese correnti;3;Acquisto di beni e servizi;2;Acquisto di servizi;3;Aggi di riscossione;999;Altri aggi di riscossione n.a.c.;05/05/2023
1610;1;9999999;0,63;0,63;AGENZIA DELLE ENTRATE-RISCOSSIONE; ;02/05/2023;2351;1;370;1;Spese correnti;3;Acquisto di beni e servizi;2;Acquisto di servizi;3;Aggi di riscossione;999;Altri aggi di riscossione n.a.c.;05/05/2023
1611;1;9999999;2,31;2,31;AGENZIA DELLE ENTRATE-RISCOSSIONE; ;02/05/2023;2351;1;249;1;Spese correnti;3;Acquisto di beni e servizi;2;Acquisto di servizi;3;Aggi di riscossione;999;Altri aggi di riscossione n.a.c.;05/05/2023
1612;1;9999999;0,34;0,34;AGENZIA DELLE ENTRATE-RISCOSSIONE; ;02/05/2023;1010;0;250;1;Spese correnti;3;Acquisto di beni e servizi;2;Acquisto di servizi;3;Aggi di riscossione;999;Altri aggi di riscossione n.a.c.;05/05/2023
1613;1;9999999;1,26;1,26;AGENZIA DELLE ENTRATE-RISCOSSIONE; ;02/05/2023;1010;0;250;1;Spese correnti;3;Acquisto di beni e servizi;2;Acquisto di servizi;3;Aggi di riscossione;999;Altri aggi di riscossione n.a.c.;05/05/2023
1616;1;9999999;50;50;IL VERDE EDITORIALE DI GRAZIELLA ZAINI;ZEC39E62AE;03/05/2023;1791;0;255;1;Spese correnti;3;Acquisto di beni e servizi;2;Acquisto di servizi;5;Utenze e canoni;3;Accesso a banche dati e a pubblicazioni on line;05/05/2023
1617;1;9999999;280,9;280,9;EDILVERDE S.R.L.;Z82398837C;05/05/2023;1147;1;149;1;Spese correnti;3;Acquisto di beni e servizi;1;Acquisto di beni;2;Altri beni di consumo;999;Altri beni e materiali di consumo n.a.c.;09/05/2023
1618;1;9999999;41,59;41,59;DOLOMITI ENERGIA SPA;908782459B;05/05/2023;1346;0;221;1;Spese correnti;3;Acquisto di beni e servizi;2;Acquisto di servizi;5;Utenze e canoni;6;Gas;09/05/2023
1619;1;9999999;3.109,60;3.109,60;CEL NETWORK SRL;ZFA39EF790;05/05/2023;1791;0;258;1;Spese correnti;3;Acquisto di beni e servizi;2;Acquisto di servizi;5;Utenze e canoni;3;Accesso a banche dati e a pubblicazioni on line;09/05/2023
1620;1;9999999;3.999,99;3.999,99;PULITORI ED AFFINI SPA;87752258BF;05/05/2023;1794;0;656;1;Spese correnti;3;Acquisto di beni e servizi;2;Acquisto di servizi;13;Servizi ausiliari per il funzionamento dell'ente;2;Servizi di pulizia e lavanderia;09/05/2023
1621;1;9999999;-68,76;3.835,77;DOLOMITI ENERGIA SPA;908782459B;05/05/2023;1801;0;133;1;Spese correnti;3;Acquisto di beni e servizi;2;Acquisto di servizi;5;Utenze e canoni;6;Gas;09/05/2023
1621;2;9999999;4,31;3.835,77;DOLOMITI ENERGIA SPA;908782459B;05/05/2023;1801;0;133;1;Spese correnti;3;Acquisto di beni e servizi;2;Acquisto di servizi;5;Utenze e canoni;6;Gas;09/05/2023
1621;3;9999999;67;3.835,77;DOLOMITI ENERGIA SPA;908782459B;05/05/2023;1801;0;133;1;Spese correnti;3;Acquisto di beni e servizi;2;Acquisto di servizi;5;Utenze e canoni;6;Gas;09/05/2023
1621;4;9999999;137,37;3.835,77;DOLOMITI ENERGIA SPA;908782459B;05/05/2023;1801;0;133;1;Spese correnti;3;Acquisto di beni e servizi;2;Acquisto di servizi;5;Utenze e canoni;6;Gas;09/05/2023
1621;5;9999999;321,91;3.835,77;DOLOMITI ENERGIA SPA;908782459B;05/05/2023;1801;0;133;1;Spese correnti;3;Acquisto di beni e servizi;2;Acquisto di servizi;5;Utenze e canoni;6;Gas;09/05/2023
1621;6;9999999;380,66;3.835,77;DOLOMITI ENERGIA SPA;908782459B;05/05/2023;1801;0;133;1;Spese correnti;3;Acquisto di beni e servizi;2;Acquisto di servizi;5;Utenze e canoni;6;Gas;09/05/2023
1621;7;9999999;2.993,28;3.835,77;DOLOMITI ENERGIA SPA;908782459B;05/05/2023;1801;0;133;1;Spese correnti;3;Acquisto di beni e servizi;2;Acquisto di servizi;5;Utenze e canoni;6;Gas;09/05/2023
1622;1;9999999;2.980,70;2.980,70;DOLOMITI ENERGIA SPA;908782459B;05/05/2023;2790;0;134;1;Spese correnti;3;Acquisto di beni e servizi;2;Acquisto di servizi;5;Utenze e canoni;6;Gas;09/05/2023
1623;1;9999999;781,94;781,94;DOLOMITI ENERGIA SPA;908782459B;05/05/2023;2792;0;135;1;Spese correnti;3;Acquisto di beni e servizi;2;Acquisto di servizi;5;Utenze e canoni;6;Gas;09/05/2023
1624;1;9999999;330,41;5.638,77;DOLOMITI ENERGIA SPA;908782459B;05/05/2023;2973;0;136;1;Spese correnti;3;Acquisto di beni e servizi;2;Acquisto di servizi;5;Utenze e canoni;6;Gas;09/05/2023
1624;2;9999999;758,43;5.638,77;DOLOMITI ENERGIA SPA;908782459B;05/05/2023;2973;0;136;1;Spese correnti;3;Acquisto di beni e servizi;2;Acquisto di servizi;5;Utenze e canoni;6;Gas;09/05/2023
1624;3;9999999;775,43;5.638,77;DOLOMITI ENERGIA SPA;908782459B;05/05/2023;2973;0;136;1;Spese correnti;3;Acquisto di beni e servizi;2;Acquisto di servizi;5;Utenze e canoni;6;Gas;09/05/2023
1624;4;9999999;3.774,50;5.638,77;DOLOMITI ENERGIA SPA;908782459B;05/05/2023;2973;0;136;1;Spese correnti;3;Acquisto di beni e servizi;2;Acquisto di servizi;5;Utenze e canoni;6;Gas;09/05/2023
1625;1;9999999;7.771,53;7.771,53;DOLOMITI ENERGIA SPA;908782459B;05/05/2023;4020;0;137;1;Spese correnti;3;Acquisto di beni e servizi;2;Acquisto di servizi;5;Utenze e canoni;6;Gas;09/05/2023
1626;1;9999999;273,74;273,74;DOLOMITI ENERGIA SPA;908782459B;05/05/2023;4527;0;213;1;Spese correnti;3;Acquisto di beni e servizi;2;Acquisto di servizi;5;Utenze e canoni;6;Gas;09/05/2023
1628;1;9999999;295,92;2.777,58;DOLOMITI ENERGIA SPA;908782459B;05/05/2023;5050;0;138;1;Spese correnti;3;Acquisto di beni e servizi;2;Acquisto di servizi;5;Utenze e canoni;6;Gas;09/05/2023
1628;2;9999999;357,96;2.777,58;DOLOMITI ENERGIA SPA;908782459B;05/05/2023;5050;0;138;1;Spese correnti;3;Acquisto di beni e servizi;2;Acquisto di servizi;5;Utenze e canoni;6;Gas;09/05/2023
1628;3;9999999;476,75;2.777,58;DOLOMITI ENERGIA SPA;908782459B;05/05/2023;5050;0;138;1;Spese correnti;3;Acquisto di beni e servizi;2;Acquisto di servizi;5;Utenze e canoni;6;Gas;09/05/2023
1628;4;9999999;1.646,95;2.777,58;DOLOMITI ENERGIA SPA;908782459B;05/05/2023;5050;0;138;1;Spese correnti;3;Acquisto di beni e servizi;2;Acquisto di servizi;5;Utenze e canoni;6;Gas;09/05/2023
1629;1;9999999;2,92;2,92;DOLOMITI ENERGIA SPA;908782459B;05/05/2023;5051;0;220;1;Spese correnti;3;Acquisto di beni e servizi;2;Acquisto di servizi;5;Utenze e canoni;6;Gas;09/05/2023
1630;1;9999999;146,74;146,74;DOLOMITI ENERGIA SPA;908782459B;05/05/2023;6461;0;139;1;Spese correnti;3;Acquisto di beni e servizi;2;Acquisto di servizi;5;Utenze e canoni;6;Gas;09/05/2023
1631;1;9999999;39,52;39,52;DOLOMITI ENERGIA SPA;908782459B;05/05/2023;6647;0;215;1;Spese correnti;3;Acquisto di beni e servizi;2;Acquisto di servizi;5;Utenze e canoni;6;Gas;09/05/2023
1632;1;9999999;521,3;2.508,44;DOLOMITI ENERGIA SPA;908782459B;05/05/2023;7552;1;140;1;Spese correnti;3;Acquisto di beni e servizi;2;Acquisto di servizi;5;Utenze e canoni;6;Gas;09/05/2023
1632;2;9999999;1.987,14;2.508,44;DOLOMITI ENERGIA SPA;908782459B;05/05/2023;7552;1;140;1;Spese correnti;3;Acquisto di beni e servizi;2;Acquisto di servizi;5;Utenze e canoni;6;Gas;09/05/2023
1633;1;9999999;97,68;97,68;MINISTERO INFRASTR./TRASPORTI-MOTORIZZ.CIVILE;Z8E33F0239;05/05/2023;2344;0;1169;1;Spese correnti;3;Acquisto di beni e servizi;2;Acquisto di servizi;5;Utenze e canoni;3;Accesso a banche dati e a pubblicazioni on line;09/05/2023
1634;1;9999999;1.088,05;1.088,05;PROVINCIA DI TREVISO; ;05/05/2023;2456;0;1335;1;Spese correnti;4;Trasferimenti correnti;1;Trasferimenti correnti a Amministrazioni Pubbliche;2;Trasferimenti correnti a Amministrazioni Locali;2;Trasferimenti correnti a Province;09/05/2023
1636;1;9999999;432,18;432,18;OMESSO NOMINATIVO NEL RISPETTO DELLA NORMATIVA SULLA PROTEZIONE DATI PERSONALI; ;05/05/2023;8361;0;1316;1;Spese correnti;4;Trasferimenti correnti;2;Trasferimenti correnti a Famiglie;2;Interventi assistenziali;999;Altri assegni e sussidi assistenziali;09/05/2023
1637;1;9999999;27.417,87;27.417,87;EURO TOURS SRL;88188476C3;09/05/2023;4261;4;729;1;Spese correnti;3;Acquisto di beni e servizi;2;Acquisto di servizi;15;Contratti di servizio pubblico;2;Contratti di servizio di trasporto scolastico;12/05/2023
1638;1;9999999;5.582,72;5.582,72;TERRE SRL;Z0F3A2BEB2;09/05/2023;6276;0;353;1;Spese correnti;3;Acquisto di beni e servizi;2;Acquisto di servizi;11;Prestazioni professionali e specialistiche;999;Altre prestazioni professionali e specialistiche n.a.c.;12/05/2023
1639;1;9999999;353,8;353,8;INIZIATIVE UNINDUSTRIA SRL; ;09/05/2023;8204;4;121;1;Spese correnti;3;Acquisto di beni e servizi;2;Acquisto di servizi;99;Altri servizi;999;Altri servizi diversi n.a.c.;12/05/2023
1640;1;9999999;2.314,60;2.314,60;OMESSO NOMINATIVO NEL RISPETTO DELLA NORMATIVA SULLA PROTEZIONE DATI PERSONALI; ;09/05/2023;8361;2;455;1;Spese correnti;4;Trasferimenti correnti;4;Trasferimenti correnti a Istituzioni Sociali Private;1;Trasferimenti correnti a Istituzioni Sociali Private;1;Trasferimenti correnti a Istituzioni Sociali Private;12/05/2023
1641;1;9999999;500;500;STRADA RADICCHIO ROSSO TREVISO E VARIEGATO CASTELFRANCO; ;09/05/2023;9762;0;463;1;Spese correnti;3;Acquisto di beni e servizi;2;Acquisto di servizi;99;Altri servizi;3;Quote di associazioni;12/05/2023
1652;1;9999999;5.000,00;5.000,00;PREGANZIOL ASSE T; ;09/05/2023;9461;0;464;1;Spese correnti;4;Trasferimenti correnti;3;Trasferimenti correnti a Imprese;99;Trasferimenti correnti a altre imprese;999;Trasferimenti correnti a altre imprese;12/05/2023
1653;1;9999999;320;320;OMESSO NOMINATIVO NEL RISPETTO DELLA NORMATIVA SULLA PROTEZIONE DATI PERSONALI; ;09/05/2023;8361;0;456;1;Spese correnti;4;Trasferimenti correnti;2;Trasferimenti correnti a Famiglie;2;Interventi assistenziali;999;Altri assegni e sussidi assistenziali;12/05/2023
1655;1;9999999;680;680;INTERAZIONE SRL;Z4A39DF167;10/05/2023;1791;0;254;1;Spese correnti;3;Acquisto di beni e servizi;2;Acquisto di servizi;5;Utenze e canoni;3;Accesso a banche dati e a pubblicazioni on line;12/05/2023
1656;1;9999999;186;186;INAIL - ISTITUTO NAZ.PER L'ASSICURAZIONE CONTRO INFORTUNI SUL LAVORO; ;10/05/2023;13451;2;1373;2;Spese in conto capitale;2;Investimenti fissi lordi e acquisto di terreni;1;Beni materiali;9;Beni immobili;3;Fabbricati ad uso scolastico;11/05/2023
1657;1;9999999;778,99;778,99;AGENZIA DELLE ENTRATE DI TREVISO; ;10/05/2023;1904;0;470;1;Spese correnti;10;Altre spese correnti;3;Versamenti IVA a debito;1;Versamenti IVA a debito per le gestioni commerciali;1;Versamenti IVA a debito per le gestioni commerciali;16/05/2023
1658;1;9999999;4.434,46;4.434,46;ORIBELLI S.A.S. DI ORIBELLI DIEGO & C.;9403598E8B;10/05/2023;15905;4;813;2;Spese in conto capitale;2;Investimenti fissi lordi e acquisto di terreni;1;Beni materiali;9;Beni immobili;12;Infrastrutture stradali;12/05/2023
1659;1;9999999;29.745,79;29.745,79;ORIBELLI S.A.S. DI ORIBELLI DIEGO & C.;9403598E8B;10/05/2023;15905;12;814;2;Spese in conto capitale;2;Investimenti fissi lordi e acquisto di terreni;1;Beni materiali;9;Beni immobili;12;Infrastrutture stradali;12/05/2023
1660;1;9999999;630;630;PUBLIKA S.R.L.;Z243974DD0;11/05/2023;560;0;125;1;Spese correnti;3;Acquisto di beni e servizi;2;Acquisto di servizi;4;Acquisto di servizi per formazione e addestramento del personale dell'ente;999;Acquisto di servizi per altre spese per formazione e addestramento n.a.c.;16/05/2023
1661;1;9999999;3.316,20;3.316,20;OMESSO NOMINATIVO NEL RISPETTO DELLA NORMATIVA SULLA PROTEZIONE DATI PERSONALI; ;11/05/2023;8361;0;471;1;Spese correnti;4;Trasferimenti correnti;2;Trasferimenti correnti a Famiglie;2;Interventi assistenziali;999;Altri assegni e sussidi assistenziali;16/05/2023
1662;1;9999999;612,51;612,51;OMESSO NOMINATIVO NEL RISPETTO DELLA NORMATIVA SULLA PROTEZIONE DATI PERSONALI; ;11/05/2023;8396;1;468;1;Spese correnti;4;Trasferimenti correnti;2;Trasferimenti correnti a Famiglie;2;Interventi assistenziali;999;Altri assegni e sussidi assistenziali;16/05/2023
1663;1;9999999;25.101,09;25.101,09;TEMPO PER CRESCERE SRL; ;11/05/2023;1149;0;476;1;Spese correnti;4;Trasferimenti correnti;4;Trasferimenti correnti a Istituzioni Sociali Private;1;Trasferimenti correnti a Istituzioni Sociali Private;1;Trasferimenti correnti a Istituzioni Sociali Private;16/05/2023
1664;1;9999999;4.594,25;4.594,25;TEMPO PER CRESCERE SRL; ;11/05/2023;2840;0;475;1;Spese correnti;4;Trasferimenti correnti;4;Trasferimenti correnti a Istituzioni Sociali Private;1;Trasferimenti correnti a Istituzioni Sociali Private;1;Trasferimenti correnti a Istituzioni Sociali Private;16/05/2023
1665;1;9999999;9.188,50;9.188,50;SCUOLA INFANZIA MARIA IMMACOLATA; ;11/05/2023;2840;0;474;1;Spese correnti;4;Trasferimenti correnti;4;Trasferimenti correnti a Istituzioni Sociali Private;1;Trasferimenti correnti a Istituzioni Sociali Private;1;Trasferimenti correnti a Istituzioni Sociali Private;16/05/2023
1666;1;9999999;13.782,74;13.782,74;SC.MATERNA GIOVANNI XXIII'; ;11/05/2023;2840;0;473;1;Spese correnti;4;Trasferimenti correnti;4;Trasferimenti correnti a Istituzioni Sociali Private;1;Trasferimenti correnti a Istituzioni Sociali Private;1;Trasferimenti correnti a Istituzioni Sociali Private;16/05/2023
1667;1;9999999;13.782,74;13.782,74;SC.MAT.MONS.ROMANELLO; ;11/05/2023;2840;0;472;1;Spese correnti;4;Trasferimenti correnti;4;Trasferimenti correnti a Istituzioni Sociali Private;1;Trasferimenti correnti a Istituzioni Sociali Private;1;Trasferimenti correnti a Istituzioni Sociali Private;16/05/2023
1668;1;9999999;33;33;GESTORE DEI SERVIZI ENERGETICI - GSE S.P.A.; ;11/05/2023;13450;2;1377;2;Spese in conto capitale;2;Investimenti fissi lordi e acquisto di terreni;1;Beni materiali;9;Beni immobili;3;Fabbricati ad uso scolastico;16/05/2023
1669;1;9999999;700;700;SOGEST ITALIA SRL;Z08372EAAD;11/05/2023;1185;1;715;1;Spese correnti;3;Acquisto di beni e servizi;2;Acquisto di servizi;9;Manutenzione ordinaria e riparazioni;4;Manutenzione ordinaria e riparazioni di impianti e macchinari;16/05/2023
1670;1;9999999;50;50;SOGEST ITALIA SRL;Z08372EAAD;11/05/2023;1185;2;716;1;Spese correnti;3;Acquisto di beni e servizi;2;Acquisto di servizi;9;Manutenzione ordinaria e riparazioni;4;Manutenzione ordinaria e riparazioni di impianti e macchinari;16/05/2023
1671;1;9999999;1.833,52;1.833,52;SOGEST ITALIA SRL;Z08372EAAD;11/05/2023;1805;0;714;1;Spese correnti;3;Acquisto di beni e servizi;2;Acquisto di servizi;13;Servizi ausiliari per il funzionamento dell'ente;1;Servizi di sorveglianza, custodia e accoglienza;16/05/2023
1672;1;9999999;172.775,36;172.775,36;VILLANOVA COSTRUZIONI SRL;9487674444;11/05/2023;13216;0;1345;2;Spese in conto capitale;2;Investimenti fissi lordi e acquisto di terreni;1;Beni materiali;9;Beni immobili;3;Fabbricati ad uso scolastico;16/05/2023
1673;1;9999999;150;150;GESTORE DEI SERVIZI ENERGETICI - GSE S.P.A.; ;11/05/2023;13450;2;1377;2;Spese in conto capitale;2;Investimenti fissi lordi e acquisto di terreni;1;Beni materiali;9;Beni immobili;3;Fabbricati ad uso scolastico;16/05/2023
1674;1;9999999;3.473,34;3.473,34;FORINT S.P.A.;Z373957768;11/05/2023;2190;1;1365;1;Spese correnti;3;Acquisto di beni e servizi;1;Acquisto di beni;2;Altri beni di consumo;4;Vestiario;16/05/2023
1675;1;9999999;5.000,00;5.000,00;POLISPORTIVA PREGANZIOL;Z0B297EB4D;11/05/2023;5210;0;978;1;Spese correnti;3;Acquisto di beni e servizi;2;Acquisto di servizi;99;Altri servizi;999;Altri servizi diversi n.a.c.;16/05/2023
1676;1;9999999;647,25;647,25;COMUNE DI MOGLIANO VENETO; ;11/05/2023;2452;1;307;1;Spese correnti;4;Trasferimenti correnti;1;Trasferimenti correnti a Amministrazioni Pubbliche;2;Trasferimenti correnti a Amministrazioni Locali;3;Trasferimenti correnti a Comuni;16/05/2023
1678;1;9999999;11.294,41;11.294,41;AMMINISTRATORI COMUNALI; ;15/05/2023;74;0;141;1;Spese correnti;3;Acquisto di beni e servizi;2;Acquisto di servizi;1;Organi e incarichi istituzionali dell'amministrazione;1;Organi istituzionali dell'amministrazione - Indennità;25/05/2023
1718;1;9999999;199,8;199,8;DIPENDENTI DIVERSI (MISSIONI E RIMBORSO SPESE); ;15/05/2023;1786;0;211;1;Spese correnti;3;Acquisto di beni e servizi;2;Acquisto di servizi;2;Organizzazione eventi, pubblicita` e servizi per trasferta;1;Rimborso per viaggio e trasloco;25/05/2023
1760;1;9999999;82;82;ASSOCIAZIONE ITALIANA BIBLIOTECHE;Z673ADC993;15/05/2023;550;0;443;1;Spese correnti;3;Acquisto di beni e servizi;2;Acquisto di servizi;4;Acquisto di servizi per formazione e addestramento del personale dell'ente;4;Acquisto di servizi per formazione obbligatoria;17/05/2023
1761;1;9999999;14.459,90;14.459,90;CODESS SOCIALE-COOP. ONLUS;9120417633;15/05/2023;8250;0;578;1;Spese correnti;3;Acquisto di beni e servizi;2;Acquisto di servizi;15;Contratti di servizio pubblico;9;Contratti di servizio di assistenza sociale domiciliare;17/05/2023
1762;1;9999999;793;793;SOC. IMM. MURETTO S.N.C. DI CRESCENTE V. & C.; ;15/05/2023;1812;0;327;1;Spese correnti;3;Acquisto di beni e servizi;2;Acquisto di servizi;7;Utilizzo di beni di terzi;1;Locazione di beni immobili;17/05/2023
1764;1;9999999;634,4;634,4;OMESSO NOMINATIVO NEL RISPETTO DELLA NORMATIVA SULLA PROTEZIONE DATI PERSONALI;ZA93A8B1B1;16/05/2023;1185;2;457;1;Spese correnti;3;Acquisto di beni e servizi;2;Acquisto di servizi;9;Manutenzione ordinaria e riparazioni;8;Manutenzione ordinaria e riparazioni di beni immobili;19/05/2023
1765;1;9999999;248,78;248,78;KUWAIT PETROLEUM ITALIA SPA;Z9C36EAB07;16/05/2023;1307;0;270;1;Spese correnti;3;Acquisto di beni e servizi;1;Acquisto di beni;2;Altri beni di consumo;2;Carburanti, combustibili e lubrificanti;19/05/2023
1766;1;9999999;538,61;538,61;KYOCERA DOCUMENT SOLUTIONS ITALIA SPA;8227602FF1;16/05/2023;1813;0;291;1;Spese correnti;3;Acquisto di beni e servizi;2;Acquisto di servizi;7;Utilizzo di beni di terzi;4;Noleggi di hardware;19/05/2023
1767;1;9999999;580,56;580,56;OLIVETTI S.P.A. CREDIT MANAGEMENT;7660530556;16/05/2023;1813;0;1183;1;Spese correnti;3;Acquisto di beni e servizi;2;Acquisto di servizi;7;Utilizzo di beni di terzi;4;Noleggi di hardware;19/05/2023
1768;1;9999999;243,06;243,06;KUWAIT PETROLEUM ITALIA SPA;Z9C36EAB07;16/05/2023;2197;0;271;1;Spese correnti;3;Acquisto di beni e servizi;1;Acquisto di beni;2;Altri beni di consumo;2;Carburanti, combustibili e lubrificanti;19/05/2023
1769;1;9999999;1.198,04;1.198,04;N.D. IMPIANTI ELETTRICI DI NORABRI DENIS;ZA93A8B1B1;16/05/2023;4660;0;458;1;Spese correnti;3;Acquisto di beni e servizi;2;Acquisto di servizi;9;Manutenzione ordinaria e riparazioni;4;Manutenzione ordinaria e riparazioni di impianti e macchinari;19/05/2023
1770;1;9999999;6.727,98;6.727,98;COOP. ITACA Soc.Coop.Soc.Onlus;8693218E6C;16/05/2023;8204;4;453;1;Spese correnti;3;Acquisto di beni e servizi;2;Acquisto di servizi;99;Altri servizi;999;Altri servizi diversi n.a.c.;19/05/2023
1771;1;9999999;161.570,60;161.570,60;COSTRUZIONI MANUTENZIONI CECCHIN S.R.L.;91356977A7;16/05/2023;11302;3;1380;2;Spese in conto capitale;2;Investimenti fissi lordi e acquisto di terreni;1;Beni materiali;9;Beni immobili;19;Fabbricati ad uso strumentale;19/05/2023
1772;1;9999999;67.500,00;67.500,00;COSTRUZIONI MANUTENZIONI CECCHIN S.R.L.;91356977A7;16/05/2023;11302;3;1380;2;Spese in conto capitale;2;Investimenti fissi lordi e acquisto di terreni;1;Beni materiali;9;Beni immobili;19;Fabbricati ad uso strumentale;19/05/2023
1774;1;9999999;30;30;BANCOPOSTA; ;19/05/2023;820;0;127;1;Spese correnti;3;Acquisto di beni e servizi;2;Acquisto di servizi;17;Servizi finanziari;2;Oneri per servizio di tesoreria;25/05/2023
1776;1;9999999;132;132;B.R. SERVICE SRL;Z2335338BB;19/05/2023;678;0;271;1;Spese correnti;3;Acquisto di beni e servizi;2;Acquisto di servizi;4;Acquisto di servizi per formazione e addestramento del personale dell'ente;4;Acquisto di servizi per formazione obbligatoria;23/05/2023
1777;1;9999999;500,93;500,93;CASA DELLA CHIAVE di BOTTER GIANFRANCO & FIGLI SNC;Z103A83AFF;19/05/2023;1185;1;342;1;Spese correnti;3;Acquisto di beni e servizi;2;Acquisto di servizi;9;Manutenzione ordinaria e riparazioni;8;Manutenzione ordinaria e riparazioni di beni immobili;23/05/2023
1778;1;9999999;145,08;3.041,84;SERENISSIMA RISTORAZIONE SPA;932853027C;19/05/2023;4260;0;731;1;Spese correnti;3;Acquisto di beni e servizi;2;Acquisto di servizi;15;Contratti di servizio pubblico;6;Contratti di servizio per le mense scolastiche;23/05/2023
1778;2;9999999;145,08;3.041,84;SERENISSIMA RISTORAZIONE SPA;932853027C;19/05/2023;4260;0;731;1;Spese correnti;3;Acquisto di beni e servizi;2;Acquisto di servizi;15;Contratti di servizio pubblico;6;Contratti di servizio per le mense scolastiche;23/05/2023
1778;3;9999999;154,75;3.041,84;SERENISSIMA RISTORAZIONE SPA;932853027C;19/05/2023;4260;0;731;1;Spese correnti;3;Acquisto di beni e servizi;2;Acquisto di servizi;15;Contratti di servizio pubblico;6;Contratti di servizio per le mense scolastiche;23/05/2023
1778;4;9999999;507,78;3.041,84;SERENISSIMA RISTORAZIONE SPA;932853027C;19/05/2023;4260;0;731;1;Spese correnti;3;Acquisto di beni e servizi;2;Acquisto di servizi;15;Contratti di servizio pubblico;6;Contratti di servizio per le mense scolastiche;23/05/2023
1778;5;9999999;928,51;3.041,84;SERENISSIMA RISTORAZIONE SPA;932853027C;19/05/2023;4260;0;731;1;Spese correnti;3;Acquisto di beni e servizi;2;Acquisto di servizi;15;Contratti di servizio pubblico;6;Contratti di servizio per le mense scolastiche;23/05/2023
1778;6;9999999;1.160,64;3.041,84;SERENISSIMA RISTORAZIONE SPA;932853027C;19/05/2023;4260;0;731;1;Spese correnti;3;Acquisto di beni e servizi;2;Acquisto di servizi;15;Contratti di servizio pubblico;6;Contratti di servizio per le mense scolastiche;23/05/2023
1779;1;9999999;22;10.024,72;SERENISSIMA RISTORAZIONE SPA;932853027C;19/05/2023;4261;0;732;1;Spese correnti;3;Acquisto di beni e servizi;2;Acquisto di servizi;15;Contratti di servizio pubblico;6;Contratti di servizio per le mense scolastiche;23/05/2023
1779;2;9999999;377,01;10.024,72;SERENISSIMA RISTORAZIONE SPA;932853027C;19/05/2023;4261;0;732;1;Spese correnti;3;Acquisto di beni e servizi;2;Acquisto di servizi;15;Contratti di servizio pubblico;6;Contratti di servizio per le mense scolastiche;23/05/2023
1779;3;9999999;382,03;10.024,72;SERENISSIMA RISTORAZIONE SPA;932853027C;19/05/2023;4261;0;732;1;Spese correnti;3;Acquisto di beni e servizi;2;Acquisto di servizi;15;Contratti di servizio pubblico;6;Contratti di servizio per le mense scolastiche;23/05/2023
1779;4;9999999;568,44;10.024,72;SERENISSIMA RISTORAZIONE SPA;932853027C;19/05/2023;4261;0;732;1;Spese correnti;3;Acquisto di beni e servizi;2;Acquisto di servizi;15;Contratti di servizio pubblico;6;Contratti di servizio per le mense scolastiche;23/05/2023
1779;5;9999999;764,71;10.024,72;SERENISSIMA RISTORAZIONE SPA;932853027C;19/05/2023;4261;0;732;1;Spese correnti;3;Acquisto di beni e servizi;2;Acquisto di servizi;15;Contratti di servizio pubblico;6;Contratti di servizio per le mense scolastiche;23/05/2023
1779;6;9999999;1.507,90;10.024,72;SERENISSIMA RISTORAZIONE SPA;932853027C;19/05/2023;4261;0;732;1;Spese correnti;3;Acquisto di beni e servizi;2;Acquisto di servizi;15;Contratti di servizio pubblico;6;Contratti di servizio per le mense scolastiche;23/05/2023
1779;7;9999999;2.843,91;10.024,72;SERENISSIMA RISTORAZIONE SPA;932853027C;19/05/2023;4261;0;732;1;Spese correnti;3;Acquisto di beni e servizi;2;Acquisto di servizi;15;Contratti di servizio pubblico;6;Contratti di servizio per le mense scolastiche;23/05/2023
1779;8;9999999;3.558,72;10.024,72;SERENISSIMA RISTORAZIONE SPA;932853027C;19/05/2023;4261;0;732;1;Spese correnti;3;Acquisto di beni e servizi;2;Acquisto di servizi;15;Contratti di servizio pubblico;6;Contratti di servizio per le mense scolastiche;23/05/2023
1780;1;9999999;415,8;415,8;VAN DEN BORRE SRL;Z643A92957;19/05/2023;7433;0;367;1;Spese correnti;3;Acquisto di beni e servizi;2;Acquisto di servizi;99;Altri servizi;9;Acquisto di sevizi per verde e arredo urbano;23/05/2023
1781;1;9999999;216;1.749,08;SERENISSIMA RISTORAZIONE SPA;932853027C;19/05/2023;7553;1;733;1;Spese correnti;3;Acquisto di beni e servizi;2;Acquisto di servizi;15;Contratti di servizio pubblico;6;Contratti di servizio per le mense scolastiche;23/05/2023
1781;2;9999999;673,82;1.749,08;SERENISSIMA RISTORAZIONE SPA;932853027C;19/05/2023;7553;1;733;1;Spese correnti;3;Acquisto di beni e servizi;2;Acquisto di servizi;15;Contratti di servizio pubblico;6;Contratti di servizio per le mense scolastiche;23/05/2023
1781;3;9999999;859,26;1.749,08;SERENISSIMA RISTORAZIONE SPA;932853027C;19/05/2023;7553;1;733;1;Spese correnti;3;Acquisto di beni e servizi;2;Acquisto di servizi;15;Contratti di servizio pubblico;6;Contratti di servizio per le mense scolastiche;23/05/2023
1782;1;9999999;1.950,00;1.950,00;IRSS - ISTITUTO DI RICERCA SVILUPPO SICUREZZA SRL;Z893A08592;19/05/2023;2193;0;281;1;Spese correnti;3;Acquisto di beni e servizi;2;Acquisto di servizi;4;Acquisto di servizi per formazione e addestramento del personale dell'ente;999;Acquisto di servizi per altre spese per formazione e addestramento n.a.c.;23/05/2023
1783;1;9999999;550;550;IRSS - ISTITUTO DI RICERCA SVILUPPO SICUREZZA SRL;ZCE3A08B6C;19/05/2023;2194;0;280;1;Spese correnti;3;Acquisto di beni e servizi;2;Acquisto di servizi;11;Prestazioni professionali e specialistiche;999;Altre prestazioni professionali e specialistiche n.a.c.;23/05/2023
1784;1;9999999;408,96;408,96;TELECOM ITALIA S.P.A.;Z7E29E2043;19/05/2023;1801;1;503;1;Spese correnti;3;Acquisto di beni e servizi;2;Acquisto di servizi;5;Utenze e canoni;2;Telefonia mobile;23/05/2023
1786;1;9999999;116,86;116,86;ENEL ENERGIA SPA;9619395FDC;23/05/2023;1346;0;482;1;Spese correnti;3;Acquisto di beni e servizi;2;Acquisto di servizi;5;Utenze e canoni;4;Energia elettrica;26/05/2023
1787;1;9999999;13,18;13,18;FASTWEB SPA;Z742CA65BF;23/05/2023;1346;1;321;1;Spese correnti;3;Acquisto di beni e servizi;2;Acquisto di servizi;5;Utenze e canoni;1;Telefonia fissa;26/05/2023
1788;1;9999999;-17,96;492,43;VERITAS  S.P.A.; ;23/05/2023;1801;0;203;1;Spese correnti;3;Acquisto di beni e servizi;2;Acquisto di servizi;5;Utenze e canoni;5;Acqua;26/05/2023
1788;2;9999999;0,9;492,43;VERITAS  S.P.A.; ;23/05/2023;1801;0;203;1;Spese correnti;3;Acquisto di beni e servizi;2;Acquisto di servizi;5;Utenze e canoni;5;Acqua;26/05/2023
1788;3;9999999;85,34;492,43;VERITAS  S.P.A.; ;23/05/2023;1801;0;203;1;Spese correnti;3;Acquisto di beni e servizi;2;Acquisto di servizi;5;Utenze e canoni;5;Acqua;26/05/2023
1788;4;9999999;424,15;492,43;VERITAS  S.P.A.; ;23/05/2023;1801;0;203;1;Spese correnti;3;Acquisto di beni e servizi;2;Acquisto di servizi;5;Utenze e canoni;5;Acqua;26/05/2023
1789;1;9999999;47,34;3.664,00;ENEL ENERGIA SPA;9619395FDC;23/05/2023;1801;0;483;1;Spese correnti;3;Acquisto di beni e servizi;2;Acquisto di servizi;5;Utenze e canoni;4;Energia elettrica;26/05/2023
1789;2;9999999;139,52;3.664,00;ENEL ENERGIA SPA;9619395FDC;23/05/2023;1801;0;483;1;Spese correnti;3;Acquisto di beni e servizi;2;Acquisto di servizi;5;Utenze e canoni;4;Energia elettrica;26/05/2023
1789;3;9999999;415,51;3.664,00;ENEL ENERGIA SPA;9619395FDC;23/05/2023;1801;0;483;1;Spese correnti;3;Acquisto di beni e servizi;2;Acquisto di servizi;5;Utenze e canoni;4;Energia elettrica;26/05/2023
1789;4;9999999;462,1;3.664,00;ENEL ENERGIA SPA;9619395FDC;23/05/2023;1801;0;483;1;Spese correnti;3;Acquisto di beni e servizi;2;Acquisto di servizi;5;Utenze e canoni;4;Energia elettrica;26/05/2023
1789;5;9999999;649,93;3.664,00;ENEL ENERGIA SPA;9619395FDC;23/05/2023;1801;0;483;1;Spese correnti;3;Acquisto di beni e servizi;2;Acquisto di servizi;5;Utenze e canoni;4;Energia elettrica;26/05/2023
1789;6;9999999;1.949,60;3.664,00;ENEL ENERGIA SPA;9619395FDC;23/05/2023;1801;0;483;1;Spese correnti;3;Acquisto di beni e servizi;2;Acquisto di servizi;5;Utenze e canoni;4;Energia elettrica;26/05/2023
1790;1;9999999;265,15;265,15;FASTWEB SPA;Z742CA65BF;23/05/2023;1801;1;322;1;Spese correnti;3;Acquisto di beni e servizi;2;Acquisto di servizi;5;Utenze e canoni;1;Telefonia fissa;26/05/2023
1791;1;9999999;229,36;229,36;VERITAS  S.P.A.; ;23/05/2023;2790;0;222;1;Spese correnti;3;Acquisto di beni e servizi;2;Acquisto di servizi;5;Utenze e canoni;5;Acqua;26/05/2023
1792;1;9999999;542,64;542,64;VIER  SCARL; ;23/05/2023;2790;0;234;1;Spese correnti;3;Acquisto di beni e servizi;2;Acquisto di servizi;5;Utenze e canoni;4;Energia elettrica;26/05/2023
1793;1;9999999;15,07;15,07;FASTWEB SPA;Z742CA65BF;23/05/2023;2790;1;323;1;Spese correnti;3;Acquisto di beni e servizi;2;Acquisto di servizi;5;Utenze e canoni;1;Telefonia fissa;26/05/2023
1794;1;9999999;288,71;288,71;VERITAS  S.P.A.; ;23/05/2023;2792;0;223;1;Spese correnti;3;Acquisto di beni e servizi;2;Acquisto di servizi;5;Utenze e canoni;5;Acqua;26/05/2023
1795;1;9999999;485,46;485,46;VIER  SCARL; ;23/05/2023;2792;0;235;1;Spese correnti;3;Acquisto di beni e servizi;2;Acquisto di servizi;5;Utenze e canoni;4;Energia elettrica;26/05/2023
1796;1;9999999;13,86;13,86;FASTWEB SPA;Z742CA65BF;23/05/2023;2792;1;324;1;Spese correnti;3;Acquisto di beni e servizi;2;Acquisto di servizi;5;Utenze e canoni;1;Telefonia fissa;26/05/2023
1797;1;9999999;3.110,61;3.110,61;VIER  SCARL; ;23/05/2023;2973;0;131;1;Spese correnti;3;Acquisto di beni e servizi;2;Acquisto di servizi;5;Utenze e canoni;4;Energia elettrica;26/05/2023
1798;1;9999999;-30,79;3.035,17;VERITAS  S.P.A.; ;23/05/2023;2973;0;224;1;Spese correnti;3;Acquisto di beni e servizi;2;Acquisto di servizi;5;Utenze e canoni;5;Acqua;26/05/2023
1798;2;9999999;52,21;3.035,17;VERITAS  S.P.A.; ;23/05/2023;2973;0;224;1;Spese correnti;3;Acquisto di beni e servizi;2;Acquisto di servizi;5;Utenze e canoni;5;Acqua;26/05/2023
1798;3;9999999;52,21;3.035,17;VERITAS  S.P.A.; ;23/05/2023;2973;0;224;1;Spese correnti;3;Acquisto di beni e servizi;2;Acquisto di servizi;5;Utenze e canoni;5;Acqua;26/05/2023
1798;4;9999999;52,21;3.035,17;VERITAS  S.P.A.; ;23/05/2023;2973;0;224;1;Spese correnti;3;Acquisto di beni e servizi;2;Acquisto di servizi;5;Utenze e canoni;5;Acqua;26/05/2023
1798;5;9999999;52,21;3.035,17;VERITAS  S.P.A.; ;23/05/2023;2973;0;224;1;Spese correnti;3;Acquisto di beni e servizi;2;Acquisto di servizi;5;Utenze e canoni;5;Acqua;26/05/2023
1798;6;9999999;52,21;3.035,17;VERITAS  S.P.A.; ;23/05/2023;2973;0;224;1;Spese correnti;3;Acquisto di beni e servizi;2;Acquisto di servizi;5;Utenze e canoni;5;Acqua;26/05/2023
1798;7;9999999;118,89;3.035,17;VERITAS  S.P.A.; ;23/05/2023;2973;0;224;1;Spese correnti;3;Acquisto di beni e servizi;2;Acquisto di servizi;5;Utenze e canoni;5;Acqua;26/05/2023
1798;8;9999999;176,7;3.035,17;VERITAS  S.P.A.; ;23/05/2023;2973;0;224;1;Spese correnti;3;Acquisto di beni e servizi;2;Acquisto di servizi;5;Utenze e canoni;5;Acqua;26/05/2023
1798;9;9999999;201,81;3.035,17;VERITAS  S.P.A.; ;23/05/2023;2973;0;224;1;Spese correnti;3;Acquisto di beni e servizi;2;Acquisto di servizi;5;Utenze e canoni;5;Acqua;26/05/2023
1798;10;9999999;442,06;3.035,17;VERITAS  S.P.A.; ;23/05/2023;2973;0;224;1;Spese correnti;3;Acquisto di beni e servizi;2;Acquisto di servizi;5;Utenze e canoni;5;Acqua;26/05/2023
1798;11;9999999;1.865,45;3.035,17;VERITAS  S.P.A.; ;23/05/2023;2973;0;224;1;Spese correnti;3;Acquisto di beni e servizi;2;Acquisto di servizi;5;Utenze e canoni;5;Acqua;26/05/2023
1799;1;9999999;214,28;471,33;ENEL ENERGIA SPA;9619395FDC;23/05/2023;2973;0;484;1;Spese correnti;3;Acquisto di beni e servizi;2;Acquisto di servizi;5;Utenze e canoni;4;Energia elettrica;26/05/2023
1799;2;9999999;257,05;471,33;ENEL ENERGIA SPA;9619395FDC;23/05/2023;2973;0;484;1;Spese correnti;3;Acquisto di beni e servizi;2;Acquisto di servizi;5;Utenze e canoni;4;Energia elettrica;26/05/2023
1800;1;9999999;103,71;103,71;FASTWEB SPA;Z742CA65BF;23/05/2023;2973;1;325;1;Spese correnti;3;Acquisto di beni e servizi;2;Acquisto di servizi;5;Utenze e canoni;1;Telefonia fissa;26/05/2023
1801;1;9999999;46,12;98,33;VERITAS  S.P.A.; ;23/05/2023;4020;0;204;1;Spese correnti;3;Acquisto di beni e servizi;2;Acquisto di servizi;5;Utenze e canoni;5;Acqua;26/05/2023
1801;2;9999999;52,21;98,33;VERITAS  S.P.A.; ;23/05/2023;4020;0;204;1;Spese correnti;3;Acquisto di beni e servizi;2;Acquisto di servizi;5;Utenze e canoni;5;Acqua;26/05/2023
1802;1;9999999;1.544,22;1.544,22;VIER  SCARL; ;23/05/2023;4020;0;236;1;Spese correnti;3;Acquisto di beni e servizi;2;Acquisto di servizi;5;Utenze e canoni;4;Energia elettrica;26/05/2023
1803;1;9999999;113,73;113,73;FASTWEB SPA;Z742CA65BF;23/05/2023;4020;1;326;1;Spese correnti;3;Acquisto di beni e servizi;2;Acquisto di servizi;5;Utenze e canoni;1;Telefonia fissa;26/05/2023
1804;1;9999999;107,14;107,14;VERITAS  S.P.A.; ;23/05/2023;4527;0;225;1;Spese correnti;3;Acquisto di beni e servizi;2;Acquisto di servizi;5;Utenze e canoni;5;Acqua;26/05/2023
1805;1;9999999;904,04;904,04;ENEL ENERGIA SPA;9619395FDC;23/05/2023;4527;0;485;1;Spese correnti;3;Acquisto di beni e servizi;2;Acquisto di servizi;5;Utenze e canoni;4;Energia elettrica;26/05/2023
1806;1;9999999;13,18;13,18;FASTWEB SPA;Z742CA65BF;23/05/2023;4527;1;327;1;Spese correnti;3;Acquisto di beni e servizi;2;Acquisto di servizi;5;Utenze e canoni;1;Telefonia fissa;26/05/2023
1807;1;9999999;87,46;87,46;ENEL ENERGIA SPA;9619395FDC;23/05/2023;4686;1;486;1;Spese correnti;3;Acquisto di beni e servizi;2;Acquisto di servizi;5;Utenze e canoni;4;Energia elettrica;26/05/2023
1808;1;9999999;1.286,06;1.286,06;VIER  SCARL; ;23/05/2023;5050;0;132;1;Spese correnti;3;Acquisto di beni e servizi;2;Acquisto di servizi;5;Utenze e canoni;4;Energia elettrica;26/05/2023
1809;1;9999999;44,4;292,53;VERITAS  S.P.A.; ;23/05/2023;5051;0;205;1;Spese correnti;3;Acquisto di beni e servizi;2;Acquisto di servizi;5;Utenze e canoni;5;Acqua;26/05/2023
1809;2;9999999;90,12;292,53;VERITAS  S.P.A.; ;23/05/2023;5051;0;205;1;Spese correnti;3;Acquisto di beni e servizi;2;Acquisto di servizi;5;Utenze e canoni;5;Acqua;26/05/2023
1809;3;9999999;158,01;292,53;VERITAS  S.P.A.; ;23/05/2023;5051;0;205;1;Spese correnti;3;Acquisto di beni e servizi;2;Acquisto di servizi;5;Utenze e canoni;5;Acqua;26/05/2023
1810;1;9999999;-8,76;1.645,52;ENEL ENERGIA SPA;9619395FDC;23/05/2023;5930;0;481;1;Spese correnti;3;Acquisto di beni e servizi;2;Acquisto di servizi;5;Utenze e canoni;4;Energia elettrica;26/05/2023
1810;2;9999999;5,03;1.645,52;ENEL ENERGIA SPA;9619395FDC;23/05/2023;5930;0;481;1;Spese correnti;3;Acquisto di beni e servizi;2;Acquisto di servizi;5;Utenze e canoni;4;Energia elettrica;26/05/2023
1810;3;9999999;7,11;1.645,52;ENEL ENERGIA SPA;9619395FDC;23/05/2023;5930;0;481;1;Spese correnti;3;Acquisto di beni e servizi;2;Acquisto di servizi;5;Utenze e canoni;4;Energia elettrica;26/05/2023
1810;4;9999999;7,7;1.645,52;ENEL ENERGIA SPA;9619395FDC;23/05/2023;5930;0;481;1;Spese correnti;3;Acquisto di beni e servizi;2;Acquisto di servizi;5;Utenze e canoni;4;Energia elettrica;26/05/2023
1810;5;9999999;7,97;1.645,52;ENEL ENERGIA SPA;9619395FDC;23/05/2023;5930;0;481;1;Spese correnti;3;Acquisto di beni e servizi;2;Acquisto di servizi;5;Utenze e canoni;4;Energia elettrica;26/05/2023
1810;6;9999999;7,97;1.645,52;ENEL ENERGIA SPA;9619395FDC;23/05/2023;5930;0;481;1;Spese correnti;3;Acquisto di beni e servizi;2;Acquisto di servizi;5;Utenze e canoni;4;Energia elettrica;26/05/2023
1810;7;9999999;9,87;1.645,52;ENEL ENERGIA SPA;9619395FDC;23/05/2023;5930;0;481;1;Spese correnti;3;Acquisto di beni e servizi;2;Acquisto di servizi;5;Utenze e canoni;4;Energia elettrica;26/05/2023
1810;8;9999999;10,69;1.645,52;ENEL ENERGIA SPA;9619395FDC;23/05/2023;5930;0;481;1;Spese correnti;3;Acquisto di beni e servizi;2;Acquisto di servizi;5;Utenze e canoni;4;Energia elettrica;26/05/2023
1810;9;9999999;12,13;1.645,52;ENEL ENERGIA SPA;9619395FDC;23/05/2023;5930;0;481;1;Spese correnti;3;Acquisto di beni e servizi;2;Acquisto di servizi;5;Utenze e canoni;4;Energia elettrica;26/05/2023
1810;10;9999999;12,72;1.645,52;ENEL ENERGIA SPA;9619395FDC;23/05/2023;5930;0;481;1;Spese correnti;3;Acquisto di beni e servizi;2;Acquisto di servizi;5;Utenze e canoni;4;Energia elettrica;26/05/2023
1810;11;9999999;13,43;1.645,52;ENEL ENERGIA SPA;9619395FDC;23/05/2023;5930;0;481;1;Spese correnti;3;Acquisto di beni e servizi;2;Acquisto di servizi;5;Utenze e canoni;4;Energia elettrica;26/05/2023
1810;12;9999999;17,34;1.645,52;ENEL ENERGIA SPA;9619395FDC;23/05/2023;5930;0;481;1;Spese correnti;3;Acquisto di beni e servizi;2;Acquisto di servizi;5;Utenze e canoni;4;Energia elettrica;26/05/2023
1810;13;9999999;18,78;1.645,52;ENEL ENERGIA SPA;9619395FDC;23/05/2023;5930;0;481;1;Spese correnti;3;Acquisto di beni e servizi;2;Acquisto di servizi;5;Utenze e canoni;4;Energia elettrica;26/05/2023
1810;14;9999999;22,84;1.645,52;ENEL ENERGIA SPA;9619395FDC;23/05/2023;5930;0;481;1;Spese correnti;3;Acquisto di beni e servizi;2;Acquisto di servizi;5;Utenze e canoni;4;Energia elettrica;26/05/2023
1810;15;9999999;26,17;1.645,52;ENEL ENERGIA SPA;9619395FDC;23/05/2023;5930;0;481;1;Spese correnti;3;Acquisto di beni e servizi;2;Acquisto di servizi;5;Utenze e canoni;4;Energia elettrica;26/05/2023
1810;16;9999999;28,16;1.645,52;ENEL ENERGIA SPA;9619395FDC;23/05/2023;5930;0;481;1;Spese correnti;3;Acquisto di beni e servizi;2;Acquisto di servizi;5;Utenze e canoni;4;Energia elettrica;26/05/2023
1810;17;9999999;30,93;1.645,52;ENEL ENERGIA SPA;9619395FDC;23/05/2023;5930;0;481;1;Spese correnti;3;Acquisto di beni e servizi;2;Acquisto di servizi;5;Utenze e canoni;4;Energia elettrica;26/05/2023
1810;18;9999999;32,5;1.645,52;ENEL ENERGIA SPA;9619395FDC;23/05/2023;5930;0;481;1;Spese correnti;3;Acquisto di beni e servizi;2;Acquisto di servizi;5;Utenze e canoni;4;Energia elettrica;26/05/2023
1810;19;9999999;34,22;1.645,52;ENEL ENERGIA SPA;9619395FDC;23/05/2023;5930;0;481;1;Spese correnti;3;Acquisto di beni e servizi;2;Acquisto di servizi;5;Utenze e canoni;4;Energia elettrica;26/05/2023
1810;20;9999999;36,06;1.645,52;ENEL ENERGIA SPA;9619395FDC;23/05/2023;5930;0;481;1;Spese correnti;3;Acquisto di beni e servizi;2;Acquisto di servizi;5;Utenze e canoni;4;Energia elettrica;26/05/2023
1810;21;9999999;36,59;1.645,52;ENEL ENERGIA SPA;9619395FDC;23/05/2023;5930;0;481;1;Spese correnti;3;Acquisto di beni e servizi;2;Acquisto di servizi;5;Utenze e canoni;4;Energia elettrica;26/05/2023
1810;22;9999999;37,15;1.645,52;ENEL ENERGIA SPA;9619395FDC;23/05/2023;5930;0;481;1;Spese correnti;3;Acquisto di beni e servizi;2;Acquisto di servizi;5;Utenze e canoni;4;Energia elettrica;26/05/2023
1810;23;9999999;41,92;1.645,52;ENEL ENERGIA SPA;9619395FDC;23/05/2023;5930;0;481;1;Spese correnti;3;Acquisto di beni e servizi;2;Acquisto di servizi;5;Utenze e canoni;4;Energia elettrica;26/05/2023
1810;24;9999999;45,19;1.645,52;ENEL ENERGIA SPA;9619395FDC;23/05/2023;5930;0;481;1;Spese correnti;3;Acquisto di beni e servizi;2;Acquisto di servizi;5;Utenze e canoni;4;Energia elettrica;26/05/2023
1810;25;9999999;45,77;1.645,52;ENEL ENERGIA SPA;9619395FDC;23/05/2023;5930;0;481;1;Spese correnti;3;Acquisto di beni e servizi;2;Acquisto di servizi;5;Utenze e canoni;4;Energia elettrica;26/05/2023
1810;26;9999999;48,8;1.645,52;ENEL ENERGIA SPA;9619395FDC;23/05/2023;5930;0;481;1;Spese correnti;3;Acquisto di beni e servizi;2;Acquisto di servizi;5;Utenze e canoni;4;Energia elettrica;26/05/2023
1810;27;9999999;49,35;1.645,52;ENEL ENERGIA SPA;9619395FDC;23/05/2023;5930;0;481;1;Spese correnti;3;Acquisto di beni e servizi;2;Acquisto di servizi;5;Utenze e canoni;4;Energia elettrica;26/05/2023
1810;28;9999999;49,96;1.645,52;ENEL ENERGIA SPA;9619395FDC;23/05/2023;5930;0;481;1;Spese correnti;3;Acquisto di beni e servizi;2;Acquisto di servizi;5;Utenze e canoni;4;Energia elettrica;26/05/2023
1810;29;9999999;56,75;1.645,52;ENEL ENERGIA SPA;9619395FDC;23/05/2023;5930;0;481;1;Spese correnti;3;Acquisto di beni e servizi;2;Acquisto di servizi;5;Utenze e canoni;4;Energia elettrica;26/05/2023
1810;30;9999999;60,38;1.645,52;ENEL ENERGIA SPA;9619395FDC;23/05/2023;5930;0;481;1;Spese correnti;3;Acquisto di beni e servizi;2;Acquisto di servizi;5;Utenze e canoni;4;Energia elettrica;26/05/2023
1810;31;9999999;63,12;1.645,52;ENEL ENERGIA SPA;9619395FDC;23/05/2023;5930;0;481;1;Spese correnti;3;Acquisto di beni e servizi;2;Acquisto di servizi;5;Utenze e canoni;4;Energia elettrica;26/05/2023
1810;32;9999999;76,38;1.645,52;ENEL ENERGIA SPA;9619395FDC;23/05/2023;5930;0;481;1;Spese correnti;3;Acquisto di beni e servizi;2;Acquisto di servizi;5;Utenze e canoni;4;Energia elettrica;26/05/2023
1810;33;9999999;80,54;1.645,52;ENEL ENERGIA SPA;9619395FDC;23/05/2023;5930;0;481;1;Spese correnti;3;Acquisto di beni e servizi;2;Acquisto di servizi;5;Utenze e canoni;4;Energia elettrica;26/05/2023
1810;34;9999999;81,31;1.645,52;ENEL ENERGIA SPA;9619395FDC;23/05/2023;5930;0;481;1;Spese correnti;3;Acquisto di beni e servizi;2;Acquisto di servizi;5;Utenze e canoni;4;Energia elettrica;26/05/2023
1810;35;9999999;84,64;1.645,52;ENEL ENERGIA SPA;9619395FDC;23/05/2023;5930;0;481;1;Spese correnti;3;Acquisto di beni e servizi;2;Acquisto di servizi;5;Utenze e canoni;4;Energia elettrica;26/05/2023
1810;36;9999999;90,13;1.645,52;ENEL ENERGIA SPA;9619395FDC;23/05/2023;5930;0;481;1;Spese correnti;3;Acquisto di beni e servizi;2;Acquisto di servizi;5;Utenze e canoni;4;Energia elettrica;26/05/2023
1810;37;9999999;90,67;1.645,52;ENEL ENERGIA SPA;9619395FDC;23/05/2023;5930;0;481;1;Spese correnti;3;Acquisto di beni e servizi;2;Acquisto di servizi;5;Utenze e canoni;4;Energia elettrica;26/05/2023
1810;38;9999999;90,67;1.645,52;ENEL ENERGIA SPA;9619395FDC;23/05/2023;5930;0;481;1;Spese correnti;3;Acquisto di beni e servizi;2;Acquisto di servizi;5;Utenze e canoni;4;Energia elettrica;26/05/2023
1810;39;9999999;90,95;1.645,52;ENEL ENERGIA SPA;9619395FDC;23/05/2023;5930;0;481;1;Spese correnti;3;Acquisto di beni e servizi;2;Acquisto di servizi;5;Utenze e canoni;4;Energia elettrica;26/05/2023
1810;40;9999999;92,39;1.645,52;ENEL ENERGIA SPA;9619395FDC;23/05/2023;5930;0;481;1;Spese correnti;3;Acquisto di beni e servizi;2;Acquisto di servizi;5;Utenze e canoni;4;Energia elettrica;26/05/2023
1811;1;9999999;92,98;14.733,47;ENEL ENERGIA SPA;9619395FDC;23/05/2023;5930;0;481;1;Spese correnti;3;Acquisto di beni e servizi;2;Acquisto di servizi;5;Utenze e canoni;4;Energia elettrica;26/05/2023
1811;2;9999999;99,78;14.733,47;ENEL ENERGIA SPA;9619395FDC;23/05/2023;5930;0;481;1;Spese correnti;3;Acquisto di beni e servizi;2;Acquisto di servizi;5;Utenze e canoni;4;Energia elettrica;26/05/2023
1811;3;9999999;101,96;14.733,47;ENEL ENERGIA SPA;9619395FDC;23/05/2023;5930;0;481;1;Spese correnti;3;Acquisto di beni e servizi;2;Acquisto di servizi;5;Utenze e canoni;4;Energia elettrica;26/05/2023
1811;4;9999999;111,37;14.733,47;ENEL ENERGIA SPA;9619395FDC;23/05/2023;5930;0;481;1;Spese correnti;3;Acquisto di beni e servizi;2;Acquisto di servizi;5;Utenze e canoni;4;Energia elettrica;26/05/2023
1811;5;9999999;121,57;14.733,47;ENEL ENERGIA SPA;9619395FDC;23/05/2023;5930;0;481;1;Spese correnti;3;Acquisto di beni e servizi;2;Acquisto di servizi;5;Utenze e canoni;4;Energia elettrica;26/05/2023
1811;6;9999999;122,13;14.733,47;ENEL ENERGIA SPA;9619395FDC;23/05/2023;5930;0;481;1;Spese correnti;3;Acquisto di beni e servizi;2;Acquisto di servizi;5;Utenze e canoni;4;Energia elettrica;26/05/2023
1811;7;9999999;129,84;14.733,47;ENEL ENERGIA SPA;9619395FDC;23/05/2023;5930;0;481;1;Spese correnti;3;Acquisto di beni e servizi;2;Acquisto di servizi;5;Utenze e canoni;4;Energia elettrica;26/05/2023
1811;8;9999999;153,02;14.733,47;ENEL ENERGIA SPA;9619395FDC;23/05/2023;5930;0;481;1;Spese correnti;3;Acquisto di beni e servizi;2;Acquisto di servizi;5;Utenze e canoni;4;Energia elettrica;26/05/2023
1811;9;9999999;159,56;14.733,47;ENEL ENERGIA SPA;9619395FDC;23/05/2023;5930;0;481;1;Spese correnti;3;Acquisto di beni e servizi;2;Acquisto di servizi;5;Utenze e canoni;4;Energia elettrica;26/05/2023
1811;10;9999999;164,64;14.733,47;ENEL ENERGIA SPA;9619395FDC;23/05/2023;5930;0;481;1;Spese correnti;3;Acquisto di beni e servizi;2;Acquisto di servizi;5;Utenze e canoni;4;Energia elettrica;26/05/2023
1811;11;9999999;168,79;14.733,47;ENEL ENERGIA SPA;9619395FDC;23/05/2023;5930;0;481;1;Spese correnti;3;Acquisto di beni e servizi;2;Acquisto di servizi;5;Utenze e canoni;4;Energia elettrica;26/05/2023
1811;12;9999999;169,51;14.733,47;ENEL ENERGIA SPA;9619395FDC;23/05/2023;5930;0;481;1;Spese correnti;3;Acquisto di beni e servizi;2;Acquisto di servizi;5;Utenze e canoni;4;Energia elettrica;26/05/2023
1811;13;9999999;172,68;14.733,47;ENEL ENERGIA SPA;9619395FDC;23/05/2023;5930;0;481;1;Spese correnti;3;Acquisto di beni e servizi;2;Acquisto di servizi;5;Utenze e canoni;4;Energia elettrica;26/05/2023
1811;14;9999999;184,94;14.733,47;ENEL ENERGIA SPA;9619395FDC;23/05/2023;5930;0;481;1;Spese correnti;3;Acquisto di beni e servizi;2;Acquisto di servizi;5;Utenze e canoni;4;Energia elettrica;26/05/2023
1811;15;9999999;189,61;14.733,47;ENEL ENERGIA SPA;9619395FDC;23/05/2023;5930;0;481;1;Spese correnti;3;Acquisto di beni e servizi;2;Acquisto di servizi;5;Utenze e canoni;4;Energia elettrica;26/05/2023
1811;16;9999999;191,06;14.733,47;ENEL ENERGIA SPA;9619395FDC;23/05/2023;5930;0;481;1;Spese correnti;3;Acquisto di beni e servizi;2;Acquisto di servizi;5;Utenze e canoni;4;Energia elettrica;26/05/2023
1811;17;9999999;203,2;14.733,47;ENEL ENERGIA SPA;9619395FDC;23/05/2023;5930;0;481;1;Spese correnti;3;Acquisto di beni e servizi;2;Acquisto di servizi;5;Utenze e canoni;4;Energia elettrica;26/05/2023
1811;18;9999999;214,78;14.733,47;ENEL ENERGIA SPA;9619395FDC;23/05/2023;5930;0;481;1;Spese correnti;3;Acquisto di beni e servizi;2;Acquisto di servizi;5;Utenze e canoni;4;Energia elettrica;26/05/2023
1811;19;9999999;224,11;14.733,47;ENEL ENERGIA SPA;9619395FDC;23/05/2023;5930;0;481;1;Spese correnti;3;Acquisto di beni e servizi;2;Acquisto di servizi;5;Utenze e canoni;4;Energia elettrica;26/05/2023
1811;20;9999999;236,25;14.733,47;ENEL ENERGIA SPA;9619395FDC;23/05/2023;5930;0;481;1;Spese correnti;3;Acquisto di beni e servizi;2;Acquisto di servizi;5;Utenze e canoni;4;Energia elettrica;26/05/2023
1811;21;9999999;259,93;14.733,47;ENEL ENERGIA SPA;9619395FDC;23/05/2023;5930;0;481;1;Spese correnti;3;Acquisto di beni e servizi;2;Acquisto di servizi;5;Utenze e canoni;4;Energia elettrica;26/05/2023
1811;22;9999999;298,34;14.733,47;ENEL ENERGIA SPA;9619395FDC;23/05/2023;5930;0;481;1;Spese correnti;3;Acquisto di beni e servizi;2;Acquisto di servizi;5;Utenze e canoni;4;Energia elettrica;26/05/2023
1811;23;9999999;326,08;14.733,47;ENEL ENERGIA SPA;9619395FDC;23/05/2023;5930;0;481;1;Spese correnti;3;Acquisto di beni e servizi;2;Acquisto di servizi;5;Utenze e canoni;4;Energia elettrica;26/05/2023
1811;24;9999999;339,27;14.733,47;ENEL ENERGIA SPA;9619395FDC;23/05/2023;5930;0;481;1;Spese correnti;3;Acquisto di beni e servizi;2;Acquisto di servizi;5;Utenze e canoni;4;Energia elettrica;26/05/2023
1811;25;9999999;383,41;14.733,47;ENEL ENERGIA SPA;9619395FDC;23/05/2023;5930;0;481;1;Spese correnti;3;Acquisto di beni e servizi;2;Acquisto di servizi;5;Utenze e canoni;4;Energia elettrica;26/05/2023
1811;26;9999999;471,92;14.733,47;ENEL ENERGIA SPA;9619395FDC;23/05/2023;5930;0;481;1;Spese correnti;3;Acquisto di beni e servizi;2;Acquisto di servizi;5;Utenze e canoni;4;Energia elettrica;26/05/2023
1811;27;9999999;534,03;14.733,47;ENEL ENERGIA SPA;9619395FDC;23/05/2023;5930;0;481;1;Spese correnti;3;Acquisto di beni e servizi;2;Acquisto di servizi;5;Utenze e canoni;4;Energia elettrica;26/05/2023
1811;28;9999999;551,93;14.733,47;ENEL ENERGIA SPA;9619395FDC;23/05/2023;5930;0;481;1;Spese correnti;3;Acquisto di beni e servizi;2;Acquisto di servizi;5;Utenze e canoni;4;Energia elettrica;26/05/2023
1811;29;9999999;597,43;14.733,47;ENEL ENERGIA SPA;9619395FDC;23/05/2023;5930;0;481;1;Spese correnti;3;Acquisto di beni e servizi;2;Acquisto di servizi;5;Utenze e canoni;4;Energia elettrica;26/05/2023
1811;30;9999999;638,4;14.733,47;ENEL ENERGIA SPA;9619395FDC;23/05/2023;5930;0;481;1;Spese correnti;3;Acquisto di beni e servizi;2;Acquisto di servizi;5;Utenze e canoni;4;Energia elettrica;26/05/2023
1811;31;9999999;695,33;14.733,47;ENEL ENERGIA SPA;9619395FDC;23/05/2023;5930;0;481;1;Spese correnti;3;Acquisto di beni e servizi;2;Acquisto di servizi;5;Utenze e canoni;4;Energia elettrica;26/05/2023
1811;32;9999999;798,56;14.733,47;ENEL ENERGIA SPA;9619395FDC;23/05/2023;5930;0;481;1;Spese correnti;3;Acquisto di beni e servizi;2;Acquisto di servizi;5;Utenze e canoni;4;Energia elettrica;26/05/2023
1811;33;9999999;833,39;14.733,47;ENEL ENERGIA SPA;9619395FDC;23/05/2023;5930;0;481;1;Spese correnti;3;Acquisto di beni e servizi;2;Acquisto di servizi;5;Utenze e canoni;4;Energia elettrica;26/05/2023
1811;34;9999999;1.113,32;14.733,47;ENEL ENERGIA SPA;9619395FDC;23/05/2023;5930;0;481;1;Spese correnti;3;Acquisto di beni e servizi;2;Acquisto di servizi;5;Utenze e canoni;4;Energia elettrica;26/05/2023
1811;35;9999999;1.131,62;14.733,47;ENEL ENERGIA SPA;9619395FDC;23/05/2023;5930;0;481;1;Spese correnti;3;Acquisto di beni e servizi;2;Acquisto di servizi;5;Utenze e canoni;4;Energia elettrica;26/05/2023
1811;36;9999999;1.238,10;14.733,47;ENEL ENERGIA SPA;9619395FDC;23/05/2023;5930;0;481;1;Spese correnti;3;Acquisto di beni e servizi;2;Acquisto di servizi;5;Utenze e canoni;4;Energia elettrica;26/05/2023
1811;37;9999999;1.310,63;14.733,47;ENEL ENERGIA SPA;9619395FDC;23/05/2023;5930;0;481;1;Spese correnti;3;Acquisto di beni e servizi;2;Acquisto di servizi;5;Utenze e canoni;4;Energia elettrica;26/05/2023
1812;1;9999999;-1,1;734,91;ENEL ENERGIA SPA;9619395FDC;23/05/2023;5931;0;488;1;Spese correnti;3;Acquisto di beni e servizi;2;Acquisto di servizi;5;Utenze e canoni;4;Energia elettrica;26/05/2023
1812;2;9999999;-0,21;734,91;ENEL ENERGIA SPA;9619395FDC;23/05/2023;5931;0;488;1;Spese correnti;3;Acquisto di beni e servizi;2;Acquisto di servizi;5;Utenze e canoni;4;Energia elettrica;26/05/2023
1812;3;9999999;0,27;734,91;ENEL ENERGIA SPA;9619395FDC;23/05/2023;5931;0;488;1;Spese correnti;3;Acquisto di beni e servizi;2;Acquisto di servizi;5;Utenze e canoni;4;Energia elettrica;26/05/2023
1812;4;9999999;0,34;734,91;ENEL ENERGIA SPA;9619395FDC;23/05/2023;5931;0;488;1;Spese correnti;3;Acquisto di beni e servizi;2;Acquisto di servizi;5;Utenze e canoni;4;Energia elettrica;26/05/2023
1812;5;9999999;11,64;734,91;ENEL ENERGIA SPA;9619395FDC;23/05/2023;5931;0;488;1;Spese correnti;3;Acquisto di beni e servizi;2;Acquisto di servizi;5;Utenze e canoni;4;Energia elettrica;26/05/2023
1812;6;9999999;18,46;734,91;ENEL ENERGIA SPA;9619395FDC;23/05/2023;5931;0;488;1;Spese correnti;3;Acquisto di beni e servizi;2;Acquisto di servizi;5;Utenze e canoni;4;Energia elettrica;26/05/2023
1812;7;9999999;77,51;734,91;ENEL ENERGIA SPA;9619395FDC;23/05/2023;5931;0;488;1;Spese correnti;3;Acquisto di beni e servizi;2;Acquisto di servizi;5;Utenze e canoni;4;Energia elettrica;26/05/2023
1812;8;9999999;89,58;734,91;ENEL ENERGIA SPA;9619395FDC;23/05/2023;5931;0;488;1;Spese correnti;3;Acquisto di beni e servizi;2;Acquisto di servizi;5;Utenze e canoni;4;Energia elettrica;26/05/2023
1812;9;9999999;90,11;734,91;ENEL ENERGIA SPA;9619395FDC;23/05/2023;5931;0;488;1;Spese correnti;3;Acquisto di beni e servizi;2;Acquisto di servizi;5;Utenze e canoni;4;Energia elettrica;26/05/2023
1812;10;9999999;91,52;734,91;ENEL ENERGIA SPA;9619395FDC;23/05/2023;5931;0;488;1;Spese correnti;3;Acquisto di beni e servizi;2;Acquisto di servizi;5;Utenze e canoni;4;Energia elettrica;26/05/2023
1812;11;9999999;101,99;734,91;ENEL ENERGIA SPA;9619395FDC;23/05/2023;5931;0;488;1;Spese correnti;3;Acquisto di beni e servizi;2;Acquisto di servizi;5;Utenze e canoni;4;Energia elettrica;26/05/2023
1812;12;9999999;126,05;734,91;ENEL ENERGIA SPA;9619395FDC;23/05/2023;5931;0;488;1;Spese correnti;3;Acquisto di beni e servizi;2;Acquisto di servizi;5;Utenze e canoni;4;Energia elettrica;26/05/2023
1812;13;9999999;128,75;734,91;ENEL ENERGIA SPA;9619395FDC;23/05/2023;5931;0;488;1;Spese correnti;3;Acquisto di beni e servizi;2;Acquisto di servizi;5;Utenze e canoni;4;Energia elettrica;26/05/2023
1813;1;9999999;12,51;163,51;VERITAS  S.P.A.; ;23/05/2023;6461;0;226;1;Spese correnti;3;Acquisto di beni e servizi;2;Acquisto di servizi;5;Utenze e canoni;5;Acqua;26/05/2023
1813;2;9999999;17,47;163,51;VERITAS  S.P.A.; ;23/05/2023;6461;0;226;1;Spese correnti;3;Acquisto di beni e servizi;2;Acquisto di servizi;5;Utenze e canoni;5;Acqua;26/05/2023
1813;3;9999999;17,48;163,51;VERITAS  S.P.A.; ;23/05/2023;6461;0;226;1;Spese correnti;3;Acquisto di beni e servizi;2;Acquisto di servizi;5;Utenze e canoni;5;Acqua;26/05/2023
1813;4;9999999;116,05;163,51;VERITAS  S.P.A.; ;23/05/2023;6461;0;226;1;Spese correnti;3;Acquisto di beni e servizi;2;Acquisto di servizi;5;Utenze e canoni;5;Acqua;26/05/2023
1814;1;9999999;56,85;126,04;ENEL ENERGIA SPA;9619395FDC;23/05/2023;6461;0;487;1;Spese correnti;3;Acquisto di beni e servizi;2;Acquisto di servizi;5;Utenze e canoni;4;Energia elettrica;26/05/2023
1814;2;9999999;69,19;126,04;ENEL ENERGIA SPA;9619395FDC;23/05/2023;6461;0;487;1;Spese correnti;3;Acquisto di beni e servizi;2;Acquisto di servizi;5;Utenze e canoni;4;Energia elettrica;26/05/2023
1815;1;9999999;13,18;13,18;FASTWEB SPA;Z742CA65BF;23/05/2023;6642;0;328;1;Spese correnti;3;Acquisto di beni e servizi;2;Acquisto di servizi;5;Utenze e canoni;1;Telefonia fissa;26/05/2023
1816;1;9999999;10,98;238,78;VERITAS  S.P.A.; ;23/05/2023;6905;0;206;1;Spese correnti;3;Acquisto di beni e servizi;2;Acquisto di servizi;5;Utenze e canoni;5;Acqua;26/05/2023
1816;2;9999999;11,72;238,78;VERITAS  S.P.A.; ;23/05/2023;6905;0;206;1;Spese correnti;3;Acquisto di beni e servizi;2;Acquisto di servizi;5;Utenze e canoni;5;Acqua;26/05/2023
1816;3;9999999;11,72;238,78;VERITAS  S.P.A.; ;23/05/2023;6905;0;206;1;Spese correnti;3;Acquisto di beni e servizi;2;Acquisto di servizi;5;Utenze e canoni;5;Acqua;26/05/2023
1816;4;9999999;13,13;238,78;VERITAS  S.P.A.; ;23/05/2023;6905;0;206;1;Spese correnti;3;Acquisto di beni e servizi;2;Acquisto di servizi;5;Utenze e canoni;5;Acqua;26/05/2023
1816;5;9999999;13,32;238,78;VERITAS  S.P.A.; ;23/05/2023;6905;0;206;1;Spese correnti;3;Acquisto di beni e servizi;2;Acquisto di servizi;5;Utenze e canoni;5;Acqua;26/05/2023
1816;6;9999999;13,78;238,78;VERITAS  S.P.A.; ;23/05/2023;6905;0;206;1;Spese correnti;3;Acquisto di beni e servizi;2;Acquisto di servizi;5;Utenze e canoni;5;Acqua;26/05/2023
1816;7;9999999;13,79;238,78;VERITAS  S.P.A.; ;23/05/2023;6905;0;206;1;Spese correnti;3;Acquisto di beni e servizi;2;Acquisto di servizi;5;Utenze e canoni;5;Acqua;26/05/2023
1816;8;9999999;15,6;238,78;VERITAS  S.P.A.; ;23/05/2023;6905;0;206;1;Spese correnti;3;Acquisto di beni e servizi;2;Acquisto di servizi;5;Utenze e canoni;5;Acqua;26/05/2023
1816;9;9999999;19,46;238,78;VERITAS  S.P.A.; ;23/05/2023;6905;0;206;1;Spese correnti;3;Acquisto di beni e servizi;2;Acquisto di servizi;5;Utenze e canoni;5;Acqua;26/05/2023
1816;10;9999999;115,28;238,78;VERITAS  S.P.A.; ;23/05/2023;6905;0;206;1;Spese correnti;3;Acquisto di beni e servizi;2;Acquisto di servizi;5;Utenze e canoni;5;Acqua;26/05/2023
1817;1;9999999;8,2;114,12;VERITAS  S.P.A.; ;23/05/2023;7431;0;207;1;Spese correnti;3;Acquisto di beni e servizi;2;Acquisto di servizi;5;Utenze e canoni;5;Acqua;26/05/2023
1817;2;9999999;13,33;114,12;VERITAS  S.P.A.; ;23/05/2023;7431;0;207;1;Spese correnti;3;Acquisto di beni e servizi;2;Acquisto di servizi;5;Utenze e canoni;5;Acqua;26/05/2023
1817;3;9999999;21,31;114,12;VERITAS  S.P.A.; ;23/05/2023;7431;0;207;1;Spese correnti;3;Acquisto di beni e servizi;2;Acquisto di servizi;5;Utenze e canoni;5;Acqua;26/05/2023
1817;4;9999999;32,31;114,12;VERITAS  S.P.A.; ;23/05/2023;7431;0;207;1;Spese correnti;3;Acquisto di beni e servizi;2;Acquisto di servizi;5;Utenze e canoni;5;Acqua;26/05/2023
1817;5;9999999;38,97;114,12;VERITAS  S.P.A.; ;23/05/2023;7431;0;207;1;Spese correnti;3;Acquisto di beni e servizi;2;Acquisto di servizi;5;Utenze e canoni;5;Acqua;26/05/2023
1818;1;9999999;5.000,00;5.000,00;OMESSO NOMINATIVO NEL RISPETTO DELLA NORMATIVA SULLA PROTEZIONE DATI PERSONALI;Z433AD6D83;23/05/2023;7435;1;445;1;Spese correnti;3;Acquisto di beni e servizi;2;Acquisto di servizi;9;Manutenzione ordinaria e riparazioni;12;Manutenzione ordinaria e riparazioni di terreni e beni materiali non prodotti;26/05/2023
1819;1;9999999;18.180,00;18.180,00;SCOMPARIN SERVICE & GARDENS DI SCOMPARIN MICHELE;Z433AD6D83;23/05/2023;7435;3;446;1;Spese correnti;3;Acquisto di beni e servizi;2;Acquisto di servizi;9;Manutenzione ordinaria e riparazioni;12;Manutenzione ordinaria e riparazioni di terreni e beni materiali non prodotti;26/05/2023
1820;1;9999999;152,9;345,38;VERITAS  S.P.A.; ;23/05/2023;7552;1;227;1;Spese correnti;3;Acquisto di beni e servizi;2;Acquisto di servizi;5;Utenze e canoni;5;Acqua;26/05/2023
1820;2;9999999;192,48;345,38;VERITAS  S.P.A.; ;23/05/2023;7552;1;227;1;Spese correnti;3;Acquisto di beni e servizi;2;Acquisto di servizi;5;Utenze e canoni;5;Acqua;26/05/2023
1821;1;9999999;685,4;685,4;VIER  SCARL; ;23/05/2023;7552;1;237;1;Spese correnti;3;Acquisto di beni e servizi;2;Acquisto di servizi;5;Utenze e canoni;4;Energia elettrica;26/05/2023
1822;1;9999999;11.529,00;11.529,00;COOP. SOCIALE IL GERMOGLIO ONLUS;Z503926201;23/05/2023;15905;4;813;2;Spese in conto capitale;2;Investimenti fissi lordi e acquisto di terreni;1;Beni materiali;9;Beni immobili;12;Infrastrutture stradali;26/05/2023
1823;1;9999999;700;700;OMESSO NOMINATIVO NEL RISPETTO DELLA NORMATIVA SULLA PROTEZIONE DATI PERSONALI; ;23/05/2023;8361;0;510;1;Spese correnti;4;Trasferimenti correnti;2;Trasferimenti correnti a Famiglie;2;Interventi assistenziali;999;Altri assegni e sussidi assistenziali;26/05/2023
1824;1;9999999;750;750;OMESSO NOMINATIVO NEL RISPETTO DELLA NORMATIVA SULLA PROTEZIONE DATI PERSONALI; ;23/05/2023;8361;0;511;1;Spese correnti;4;Trasferimenti correnti;2;Trasferimenti correnti a Famiglie;2;Interventi assistenziali;999;Altri assegni e sussidi assistenziali;26/05/2023
1826;1;9999999;405,39;405,39;ABACO S.P.A.;9,44E+58;23/05/2023;1010;0;1259;1;Spese correnti;3;Acquisto di beni e servizi;2;Acquisto di servizi;3;Aggi di riscossione;999;Altri aggi di riscossione n.a.c.;26/05/2023
1827;1;9999999;4.449,60;4.449,60;ABACO S.P.A.;9,44E+58;23/05/2023;1010;0;1259;1;Spese correnti;3;Acquisto di beni e servizi;2;Acquisto di servizi;3;Aggi di riscossione;999;Altri aggi di riscossione n.a.c.;26/05/2023
1828;1;9999999;50;50;STUDIO LEGALE AVV. KETTY BONETTI GANDOLFI;Z043A36655;24/05/2023;564;0;303;1;Spese correnti;3;Acquisto di beni e servizi;2;Acquisto di servizi;4;Acquisto di servizi per formazione e addestramento del personale dell'ente;999;Acquisto di servizi per altre spese per formazione e addestramento n.a.c.;26/05/2023
1829;1;9999999;425,48;425,48;SOGEST ITALIA SRL;Z08372EAAD;24/05/2023;1805;0;714;1;Spese correnti;3;Acquisto di beni e servizi;2;Acquisto di servizi;13;Servizi ausiliari per il funzionamento dell'ente;1;Servizi di sorveglianza, custodia e accoglienza;26/05/2023
1830;1;9999999;15.000,00;15.000,00;OMESSO NOMINATIVO NEL RISPETTO DELLA NORMATIVA SULLA PROTEZIONE DATI PERSONALI; ;26/05/2023;9445;0;1074;1;Spese correnti;4;Trasferimenti correnti;3;Trasferimenti correnti a Imprese;99;Trasferimenti correnti a altre imprese;999;Trasferimenti correnti a altre imprese;31/05/2023
1831;1;9999999;5.108,32;5.108,32;OMESSO NOMINATIVO NEL RISPETTO DELLA NORMATIVA SULLA PROTEZIONE DATI PERSONALI; ;26/05/2023;9445;0;1074;1;Spese correnti;4;Trasferimenti correnti;3;Trasferimenti correnti a Imprese;99;Trasferimenti correnti a altre imprese;999;Trasferimenti correnti a altre imprese;31/05/2023
1832;1;9999999;480;480;OMESSO NOMINATIVO NEL RISPETTO DELLA NORMATIVA SULLA PROTEZIONE DATI PERSONALI;ZE43AD9BD9;26/05/2023;470;0;442;1;Spese correnti;3;Acquisto di beni e servizi;1;Acquisto di beni;2;Altri beni di consumo;999;Altri beni e materiali di consumo n.a.c.;31/05/2023
1833;1;9999999;352;352;EUROCOVET SRL;Z773ABCF10;26/05/2023;650;0;440;1;Spese correnti;3;Acquisto di beni e servizi;2;Acquisto di servizi;99;Altri servizi;8;Servizi di mobilita` a terzi (bus navetta, ...);31/05/2023
1834;1;9999999;91,8;221,43;MYO SPA;Z213A4A4F5;26/05/2023;1510;1;334;1;Spese correnti;3;Acquisto di beni e servizi;2;Acquisto di servizi;13;Servizi ausiliari per il funzionamento dell'ente;4;Stampa e rilegatura;31/05/2023
1834;2;9999999;129,63;221,43;MYO SPA;Z213A4A4F5;26/05/2023;1510;1;334;1;Spese correnti;3;Acquisto di beni e servizi;2;Acquisto di servizi;13;Servizi ausiliari per il funzionamento dell'ente;4;Stampa e rilegatura;31/05/2023
1835;1;9999999;469,7;469,7;FORINT S.P.A.;Z373957768;26/05/2023;2190;1;1365;1;Spese correnti;3;Acquisto di beni e servizi;1;Acquisto di beni;2;Altri beni di consumo;4;Vestiario;31/05/2023
1836;1;9999999;605,62;605,62;OMESSO NOMINATIVO NEL RISPETTO DELLA NORMATIVA SULLA PROTEZIONE DATI PERSONALI; ;26/05/2023;8361;2;515;1;Spese correnti;4;Trasferimenti correnti;4;Trasferimenti correnti a Istituzioni Sociali Private;1;Trasferimenti correnti a Istituzioni Sociali Private;1;Trasferimenti correnti a Istituzioni Sociali Private;31/05/2023
1837;1;9999999;791,43;791,43;OMESSO NOMINATIVO NEL RISPETTO DELLA NORMATIVA SULLA PROTEZIONE DATI PERSONALI; ;26/05/2023;8361;2;516;1;Spese correnti;4;Trasferimenti correnti;4;Trasferimenti correnti a Istituzioni Sociali Private;1;Trasferimenti correnti a Istituzioni Sociali Private;1;Trasferimenti correnti a Istituzioni Sociali Private;31/05/2023
1838;1;9999999;741,02;741,02;OMESSO NOMINATIVO NEL RISPETTO DELLA NORMATIVA SULLA PROTEZIONE DATI PERSONALI; ;26/05/2023;8361;2;517;1;Spese correnti;4;Trasferimenti correnti;4;Trasferimenti correnti a Istituzioni Sociali Private;1;Trasferimenti correnti a Istituzioni Sociali Private;1;Trasferimenti correnti a Istituzioni Sociali Private;31/05/2023
1839;1;9999999;-20;7.920,00;PIAZZA NADIA;Z682ACD828;30/05/2023;610;0;744;1;Spese correnti;3;Acquisto di beni e servizi;2;Acquisto di servizi;99;Altri servizi;999;Altri servizi diversi n.a.c.;01/06/2023
1839;2;9999999;20;7.920,00;PIAZZA NADIA;Z682ACD828;30/05/2023;610;0;744;1;Spese correnti;3;Acquisto di beni e servizi;2;Acquisto di servizi;99;Altri servizi;999;Altri servizi diversi n.a.c.;01/06/2023
1839;3;9999999;7.920,00;7.920,00;PIAZZA NADIA;Z682ACD828;30/05/2023;610;0;744;1;Spese correnti;3;Acquisto di beni e servizi;2;Acquisto di servizi;99;Altri servizi;999;Altri servizi diversi n.a.c.;01/06/2023
1840;1;9999999;2.168,00;2.168,00;ADPARTNERS SRL;Z5339234BB;30/05/2023;1780;0;1261;1;Spese correnti;3;Acquisto di beni e servizi;1;Acquisto di beni;2;Altri beni di consumo;6;Materiale informatico;01/06/2023
1841;1;9999999;13.200,00;13.200,00;GB IMPIANTI DI BETTIOL GIANFRANCO;Z8939F54A5;30/05/2023;13451;0;944;2;Spese in conto capitale;2;Investimenti fissi lordi e acquisto di terreni;1;Beni materiali;9;Beni immobili;3;Fabbricati ad uso scolastico;01/06/2023
1842;1;9999999;1.883,92;1.883,92;ROMANO DINO S.R.L.;ZC439A76AF;30/05/2023;15905;8;1293;2;Spese in conto capitale;2;Investimenti fissi lordi e acquisto di terreni;1;Beni materiali;9;Beni immobili;999;Beni immobili n.a.c.;01/06/2023
1843;1;9999999;25.000,00;25.000,00;ROMANO DINO S.R.L.;ZC439A76AF;30/05/2023;15905;16;1305;2;Spese in conto capitale;2;Investimenti fissi lordi e acquisto di terreni;1;Beni materiali;9;Beni immobili;999;Beni immobili n.a.c.;01/06/2023
1844;1;9999999;76,53;76,53;EDILVERDE S.R.L.;Z82398837C;05/06/2023;1147;1;149;1;Spese correnti;3;Acquisto di beni e servizi;1;Acquisto di beni;2;Altri beni di consumo;999;Altri beni e materiali di consumo n.a.c.;07/06/2023
1845;1;9999999;1.057,34;1.057,34;ETICA SOLUZIONI SRL;Z7C3AE209D;05/06/2023;1741;1;467;1;Spese correnti;3;Acquisto di beni e servizi;2;Acquisto di servizi;7;Utilizzo di beni di terzi;6;Licenze d'uso per software;07/06/2023
1846;1;9999999;210;210;PUBLIKA S.R.L.;Z173AA7A75;05/06/2023;1779;0;462;1;Spese correnti;3;Acquisto di beni e servizi;1;Acquisto di beni;1;Giornali, riviste e pubblicazioni;2;Pubblicazioni;07/06/2023
1847;1;9999999;3.999,99;3.999,99;PULITORI ED AFFINI SPA;87752258BF;05/06/2023;1794;0;656;1;Spese correnti;3;Acquisto di beni e servizi;2;Acquisto di servizi;13;Servizi ausiliari per il funzionamento dell'ente;2;Servizi di pulizia e lavanderia;07/06/2023
1848;1;9999999;27.417,87;27.417,87;EURO TOURS SRL;88188476C3;05/06/2023;4261;4;729;1;Spese correnti;3;Acquisto di beni e servizi;2;Acquisto di servizi;15;Contratti di servizio pubblico;2;Contratti di servizio di trasporto scolastico;07/06/2023
1849;1;9999999;69,98;69,98;CONTARINA S.P.A.; ;05/06/2023;8740;0;3;1;Spese correnti;3;Acquisto di beni e servizi;2;Acquisto di servizi;99;Altri servizi;999;Altri servizi diversi n.a.c.;07/06/2023
1850;1;9999999;8.623,50;8.623,50;FELTRIN TIZIANO;Z833939EB7;05/06/2023;13451;0;1295;2;Spese in conto capitale;2;Investimenti fissi lordi e acquisto di terreni;1;Beni materiali;9;Beni immobili;3;Fabbricati ad uso scolastico;07/06/2023
1851;1;9999999;663,24;663,24;OMESSO NOMINATIVO NEL RISPETTO DELLA NORMATIVA SULLA PROTEZIONE DATI PERSONALI; ;05/06/2023;8361;0;471;1;Spese correnti;4;Trasferimenti correnti;2;Trasferimenti correnti a Famiglie;2;Interventi assistenziali;999;Altri assegni e sussidi assistenziali;07/06/2023
1852;1;9999999;432,18;432,18;OMESSO NOMINATIVO NEL RISPETTO DELLA NORMATIVA SULLA PROTEZIONE DATI PERSONALI; ;05/06/2023;8361;0;1316;1;Spese correnti;4;Trasferimenti correnti;2;Trasferimenti correnti a Famiglie;2;Interventi assistenziali;999;Altri assegni e sussidi assistenziali;07/06/2023
1853;1;9999999;480;480;OMESSO NOMINATIVO NEL RISPETTO DELLA NORMATIVA SULLA PROTEZIONE DATI PERSONALI; ;05/06/2023;8361;0;448;1;Spese correnti;4;Trasferimenti correnti;2;Trasferimenti correnti a Famiglie;2;Interventi assistenziali;999;Altri assegni e sussidi assistenziali;07/06/2023
1856;1;9999999;2.013,00;2.013,00;MEDICASL SAS DI STEFFAN ALBERTO & C.;Z403B04A18;06/06/2023;5080;0;459;1;Spese correnti;3;Acquisto di beni e servizi;2;Acquisto di servizi;9;Manutenzione ordinaria e riparazioni;11;Manutenzione ordinaria e riparazioni di altri beni materiali;08/06/2023
1858;1;9999999;127,57;127,57;MEDICASL SAS DI STEFFAN ALBERTO & C.;Z9D35A7D35;07/06/2023;1185;1;367;1;Spese correnti;3;Acquisto di beni e servizi;2;Acquisto di servizi;9;Manutenzione ordinaria e riparazioni;4;Manutenzione ordinaria e riparazioni di impianti e macchinari;09/06/2023
1859;1;9999999;637,86;637,86;MEDICASL SAS DI STEFFAN ALBERTO & C.;Z9D35A7D35;07/06/2023;5080;0;366;1;Spese correnti;3;Acquisto di beni e servizi;2;Acquisto di servizi;9;Manutenzione ordinaria e riparazioni;4;Manutenzione ordinaria e riparazioni di impianti e macchinari;09/06/2023
1860;1;9999999;30;30;A.N.A.C.;97606539A8;08/06/2023;15905;14;1213;2;Spese in conto capitale;2;Investimenti fissi lordi e acquisto di terreni;1;Beni materiali;9;Beni immobili;12;Infrastrutture stradali;15/06/2023
1861;1;9999999;35;35;A.N.A.C.;9799499266;08/06/2023;13452;1;507;2;Spese in conto capitale;2;Investimenti fissi lordi e acquisto di terreni;1;Beni materiali;9;Beni immobili;3;Fabbricati ad uso scolastico;15/06/2023
1862;1;9999999;30;30;A.N.A.C.;9496917FD1;08/06/2023;13451;2;1373;2;Spese in conto capitale;2;Investimenti fissi lordi e acquisto di terreni;1;Beni materiali;9;Beni immobili;3;Fabbricati ad uso scolastico;15/06/2023
1864;1;9999999;1.113,13;1.113,13;ABACO S.P.A.;9,44E+58;08/06/2023;1010;0;1259;1;Spese correnti;3;Acquisto di beni e servizi;2;Acquisto di servizi;3;Aggi di riscossione;999;Altri aggi di riscossione n.a.c.;13/06/2023
1865;1;9999999;31,93;31,93;DOLOMITI ENERGIA SPA;964666689C;08/06/2023;1346;0;499;1;Spese correnti;3;Acquisto di beni e servizi;2;Acquisto di servizi;5;Utenze e canoni;6;Gas;13/06/2023
1866;1;9999999;508,6;508,6;POSTE ITALIANE SPA;ZCE3502180;08/06/2023;1793;0;288;1;Spese correnti;3;Acquisto di beni e servizi;2;Acquisto di servizi;16;Servizi amministrativi;2;Spese postali;13/06/2023
1867;1;9999999;2,92;2.190,32;DOLOMITI ENERGIA SPA;964666689C;08/06/2023;1801;0;489;1;Spese correnti;3;Acquisto di beni e servizi;2;Acquisto di servizi;5;Utenze e canoni;6;Gas;13/06/2023
1867;2;9999999;5,52;2.190,32;DOLOMITI ENERGIA SPA;964666689C;08/06/2023;1801;0;489;1;Spese correnti;3;Acquisto di beni e servizi;2;Acquisto di servizi;5;Utenze e canoni;6;Gas;13/06/2023
1867;3;9999999;44,13;2.190,32;DOLOMITI ENERGIA SPA;964666689C;08/06/2023;1801;0;489;1;Spese correnti;3;Acquisto di beni e servizi;2;Acquisto di servizi;5;Utenze e canoni;6;Gas;13/06/2023
1867;4;9999999;106,32;2.190,32;DOLOMITI ENERGIA SPA;964666689C;08/06/2023;1801;0;489;1;Spese correnti;3;Acquisto di beni e servizi;2;Acquisto di servizi;5;Utenze e canoni;6;Gas;13/06/2023
1867;5;9999999;240,32;2.190,32;DOLOMITI ENERGIA SPA;964666689C;08/06/2023;1801;0;489;1;Spese correnti;3;Acquisto di beni e servizi;2;Acquisto di servizi;5;Utenze e canoni;6;Gas;13/06/2023
1867;6;9999999;1.791,11;2.190,32;DOLOMITI ENERGIA SPA;964666689C;08/06/2023;1801;0;489;1;Spese correnti;3;Acquisto di beni e servizi;2;Acquisto di servizi;5;Utenze e canoni;6;Gas;13/06/2023
1868;1;9999999;1.510,60;1.510,60;DOLOMITI ENERGIA SPA;964666689C;08/06/2023;2790;0;490;1;Spese correnti;3;Acquisto di beni e servizi;2;Acquisto di servizi;5;Utenze e canoni;6;Gas;13/06/2023
1869;1;9999999;531,74;531,74;DOLOMITI ENERGIA SPA;964666689C;08/06/2023;2792;0;491;1;Spese correnti;3;Acquisto di beni e servizi;2;Acquisto di servizi;5;Utenze e canoni;6;Gas;13/06/2023
1870;1;9999999;196,66;2.276,21;DOLOMITI ENERGIA SPA;964666689C;08/06/2023;2973;0;492;1;Spese correnti;3;Acquisto di beni e servizi;2;Acquisto di servizi;5;Utenze e canoni;6;Gas;13/06/2023
1870;2;9999999;275,6;2.276,21;DOLOMITI ENERGIA SPA;964666689C;08/06/2023;2973;0;492;1;Spese correnti;3;Acquisto di beni e servizi;2;Acquisto di servizi;5;Utenze e canoni;6;Gas;13/06/2023
1870;3;9999999;541,58;2.276,21;DOLOMITI ENERGIA SPA;964666689C;08/06/2023;2973;0;492;1;Spese correnti;3;Acquisto di beni e servizi;2;Acquisto di servizi;5;Utenze e canoni;6;Gas;13/06/2023
1870;4;9999999;550,94;2.276,21;DOLOMITI ENERGIA SPA;964666689C;08/06/2023;2973;0;492;1;Spese correnti;3;Acquisto di beni e servizi;2;Acquisto di servizi;5;Utenze e canoni;6;Gas;13/06/2023
1870;5;9999999;711,43;2.276,21;DOLOMITI ENERGIA SPA;964666689C;08/06/2023;2973;0;492;1;Spese correnti;3;Acquisto di beni e servizi;2;Acquisto di servizi;5;Utenze e canoni;6;Gas;13/06/2023
1871;1;9999999;3.042,94;3.042,94;DOLOMITI ENERGIA SPA;964666689C;08/06/2023;4020;0;493;1;Spese correnti;3;Acquisto di beni e servizi;2;Acquisto di servizi;5;Utenze e canoni;6;Gas;13/06/2023
1872;1;9999999;173,13;173,13;DOLOMITI ENERGIA SPA;964666689C;08/06/2023;4527;0;502;1;Spese correnti;3;Acquisto di beni e servizi;2;Acquisto di servizi;5;Utenze e canoni;6;Gas;13/06/2023
1873;1;9999999;14,69;14,69;DOLOMITI ENERGIA SPA;964666689C;08/06/2023;4686;0;494;1;Spese correnti;3;Acquisto di beni e servizi;2;Acquisto di servizi;5;Utenze e canoni;6;Gas;13/06/2023
1874;1;9999999;141,6;1.477,00;DOLOMITI ENERGIA SPA;964666689C;08/06/2023;5050;0;501;1;Spese correnti;3;Acquisto di beni e servizi;2;Acquisto di servizi;5;Utenze e canoni;6;Gas;13/06/2023
1874;2;9999999;213,05;1.477,00;DOLOMITI ENERGIA SPA;964666689C;08/06/2023;5050;0;501;1;Spese correnti;3;Acquisto di beni e servizi;2;Acquisto di servizi;5;Utenze e canoni;6;Gas;13/06/2023
1874;3;9999999;438,69;1.477,00;DOLOMITI ENERGIA SPA;964666689C;08/06/2023;5050;0;501;1;Spese correnti;3;Acquisto di beni e servizi;2;Acquisto di servizi;5;Utenze e canoni;6;Gas;13/06/2023
1874;4;9999999;683,66;1.477,00;DOLOMITI ENERGIA SPA;964666689C;08/06/2023;5050;0;501;1;Spese correnti;3;Acquisto di beni e servizi;2;Acquisto di servizi;5;Utenze e canoni;6;Gas;13/06/2023
1875;1;9999999;2,92;2,92;DOLOMITI ENERGIA SPA;964666689C;08/06/2023;5051;0;495;1;Spese correnti;3;Acquisto di beni e servizi;2;Acquisto di servizi;5;Utenze e canoni;6;Gas;13/06/2023
1876;1;9999999;165,54;165,54;DOLOMITI ENERGIA SPA;964666689C;08/06/2023;6461;0;496;1;Spese correnti;3;Acquisto di beni e servizi;2;Acquisto di servizi;5;Utenze e canoni;6;Gas;13/06/2023
1877;1;9999999;30,48;30,48;DOLOMITI ENERGIA SPA;964666689C;08/06/2023;6647;0;497;1;Spese correnti;3;Acquisto di beni e servizi;2;Acquisto di servizi;5;Utenze e canoni;6;Gas;13/06/2023
1878;1;9999999;354,49;1.361,56;DOLOMITI ENERGIA SPA;964666689C;08/06/2023;7552;1;500;1;Spese correnti;3;Acquisto di beni e servizi;2;Acquisto di servizi;5;Utenze e canoni;6;Gas;13/06/2023
1878;2;9999999;1.007,07;1.361,56;DOLOMITI ENERGIA SPA;964666689C;08/06/2023;7552;1;500;1;Spese correnti;3;Acquisto di beni e servizi;2;Acquisto di servizi;5;Utenze e canoni;6;Gas;13/06/2023
1879;1;9999999;2.287,50;2.287,50;BANCA MONTE DEI PASCHI DI SIENA S.P.A.;ZA926715C5;08/06/2023;820;0;1464;1;Spese correnti;3;Acquisto di beni e servizi;2;Acquisto di servizi;17;Servizi finanziari;2;Oneri per servizio di tesoreria;12/06/2023
1880;1;9999999;353,8;353,8;INIZIATIVE UNINDUSTRIA SRL; ;08/06/2023;8204;4;121;1;Spese correnti;3;Acquisto di beni e servizi;2;Acquisto di servizi;99;Altri servizi;999;Altri servizi diversi n.a.c.;13/06/2023
1881;1;9999999;9.142,21;9.142,21;CODESS SOCIALE-COOP. ONLUS;8855832FBD;13/06/2023;7560;1;771;1;Spese correnti;3;Acquisto di beni e servizi;2;Acquisto di servizi;15;Contratti di servizio pubblico;10;Contratti di servizio di asilo nido;16/06/2023
1882;1;9999999;13.029,81;13.029,81;CODESS SOCIALE-COOP. ONLUS;8855832FBD;13/06/2023;7560;1;771;1;Spese correnti;3;Acquisto di beni e servizi;2;Acquisto di servizi;15;Contratti di servizio pubblico;10;Contratti di servizio di asilo nido;16/06/2023
1883;1;9999999;20.551,38;20.551,38;CERVI ALESSANDRO;9187110302;13/06/2023;11302;3;1380;2;Spese in conto capitale;2;Investimenti fissi lordi e acquisto di terreni;1;Beni materiali;9;Beni immobili;19;Fabbricati ad uso strumentale;16/06/2023
1884;1;9999999;708,52;708,52;COMUNE DI MOGLIANO VENETO; ;13/06/2023;2452;1;307;1;Spese correnti;4;Trasferimenti correnti;1;Trasferimenti correnti a Amministrazioni Pubbliche;2;Trasferimenti correnti a Amministrazioni Locali;3;Trasferimenti correnti a Comuni;16/06/2023
1886;1;9999999;793;793;SOC. IMM. MURETTO S.N.C. DI CRESCENTE V. & C.; ;13/06/2023;1812;0;327;1;Spese correnti;3;Acquisto di beni e servizi;2;Acquisto di servizi;7;Utilizzo di beni di terzi;1;Locazione di beni immobili;16/06/2023
1887;1;9999999;27,95;27,95;BI ESSE SPA;Z7B398A8D1;13/06/2023;1147;1;156;1;Spese correnti;3;Acquisto di beni e servizi;1;Acquisto di beni;2;Altri beni di consumo;999;Altri beni e materiali di consumo n.a.c.;16/06/2023
1888;1;9999999;216,1;216,1;KUWAIT PETROLEUM ITALIA SPA;Z9C36EAB07;13/06/2023;1307;0;270;1;Spese correnti;3;Acquisto di beni e servizi;1;Acquisto di beni;2;Altri beni di consumo;2;Carburanti, combustibili e lubrificanti;16/06/2023
1889;1;9999999;300;300;GEDI DIGITAL SRL;Z7F39E62B7;13/06/2023;1791;0;260;1;Spese correnti;3;Acquisto di beni e servizi;2;Acquisto di servizi;5;Utenze e canoni;3;Accesso a banche dati e a pubblicazioni on line;16/06/2023
1890;1;9999999;327,43;327,43;KUWAIT PETROLEUM ITALIA SPA;Z9C36EAB07;13/06/2023;2197;0;271;1;Spese correnti;3;Acquisto di beni e servizi;1;Acquisto di beni;2;Altri beni di consumo;2;Carburanti, combustibili e lubrificanti;16/06/2023
1891;1;9999999;976;976;M2L SRLS;ZFA39B5AFB;13/06/2023;6277;0;210;1;Spese correnti;3;Acquisto di beni e servizi;2;Acquisto di servizi;19;Servizi informatici e di telecomunicazioni;999;Altri servizi informatici e di telecomunicazioni n.a.c.;16/06/2023
1892;1;9999999;72,02;72,02;KUWAIT PETROLEUM ITALIA SPA;Z9C36EAB07;13/06/2023;8132;0;272;1;Spese correnti;3;Acquisto di beni e servizi;1;Acquisto di beni;2;Altri beni di consumo;2;Carburanti, combustibili e lubrificanti;16/06/2023
1893;1;9999999;4.000,00;4.000,00;OMESSO NOMINATIVO NEL RISPETTO DELLA NORMATIVA SULLA PROTEZIONE DATI PERSONALI;Z6C3A303E2;13/06/2023;9441;0;317;1;Spese correnti;3;Acquisto di beni e servizi;2;Acquisto di servizi;11;Prestazioni professionali e specialistiche;9;Prestazioni tecnico-scientifiche a fini di ricerca;16/06/2023
1894;1;9999999;3.580,00;3.580,00;ORIBELLI S.A.S. DI ORIBELLI DIEGO & C.;9403598E8B;13/06/2023;15904;0;812;2;Spese in conto capitale;2;Investimenti fissi lordi e acquisto di terreni;1;Beni materiali;9;Beni immobili;12;Infrastrutture stradali;16/06/2023
1895;1;9999999;2.111,54;2.111,54;ORIBELLI S.A.S. DI ORIBELLI DIEGO & C.;9403598E8B;13/06/2023;15905;4;813;2;Spese in conto capitale;2;Investimenti fissi lordi e acquisto di terreni;1;Beni materiali;9;Beni immobili;12;Infrastrutture stradali;16/06/2023
1896;1;9999999;-20,93;943,46;LEGGERE S.R.L.;Z673A59373;13/06/2023;4506;0;478;1;Spese correnti;3;Acquisto di beni e servizi;1;Acquisto di beni;1;Giornali, riviste e pubblicazioni;2;Pubblicazioni;16/06/2023
1896;2;9999999;964,39;943,46;LEGGERE S.R.L.;Z673A59373;13/06/2023;4506;0;478;1;Spese correnti;3;Acquisto di beni e servizi;1;Acquisto di beni;1;Giornali, riviste e pubblicazioni;2;Pubblicazioni;16/06/2023
1897;1;9999999;5.610,00;5.610,00;ASSOCIAZIONE MUSICA D'ARTE - PREGANZIOL;ZB0363E284;13/06/2023;4710;0;518;1;Spese correnti;3;Acquisto di beni e servizi;2;Acquisto di servizi;99;Altri servizi;999;Altri servizi diversi n.a.c.;16/06/2023
1898;1;9999999;2.027,66;2.027,66;PRO LOCO PREGANZIOL; ;13/06/2023;5412;0;530;1;Spese correnti;4;Trasferimenti correnti;4;Trasferimenti correnti a Istituzioni Sociali Private;1;Trasferimenti correnti a Istituzioni Sociali Private;1;Trasferimenti correnti a Istituzioni Sociali Private;16/06/2023
1899;1;9999999;0,09;0,09;AGENZIA DELLE ENTRATE-RISCOSSIONE; ;13/06/2023;2351;1;370;1;Spese correnti;3;Acquisto di beni e servizi;2;Acquisto di servizi;3;Aggi di riscossione;999;Altri aggi di riscossione n.a.c.;16/06/2023
1900;1;9999999;0,06;0,06;AGENZIA DELLE ENTRATE-RISCOSSIONE; ;13/06/2023;2351;1;228;1;Spese correnti;3;Acquisto di beni e servizi;2;Acquisto di servizi;3;Aggi di riscossione;999;Altri aggi di riscossione n.a.c.;16/06/2023
1901;1;9999999;2,91;2,91;AGENZIA DELLE ENTRATE-RISCOSSIONE; ;13/06/2023;2351;1;249;1;Spese correnti;3;Acquisto di beni e servizi;2;Acquisto di servizi;3;Aggi di riscossione;999;Altri aggi di riscossione n.a.c.;16/06/2023
1902;1;9999999;7,44;7,44;AGENZIA DELLE ENTRATE-RISCOSSIONE; ;13/06/2023;2351;1;249;1;Spese correnti;3;Acquisto di beni e servizi;2;Acquisto di servizi;3;Aggi di riscossione;999;Altri aggi di riscossione n.a.c.;16/06/2023
1903;1;9999999;0,2;0,2;AGENZIA DELLE ENTRATE-RISCOSSIONE; ;13/06/2023;2351;1;249;1;Spese correnti;3;Acquisto di beni e servizi;2;Acquisto di servizi;3;Aggi di riscossione;999;Altri aggi di riscossione n.a.c.;16/06/2023
1904;1;9999999;1,6;1,6;AGENZIA DELLE ENTRATE-RISCOSSIONE; ;13/06/2023;2351;1;458;1;Spese correnti;3;Acquisto di beni e servizi;2;Acquisto di servizi;3;Aggi di riscossione;999;Altri aggi di riscossione n.a.c.;16/06/2023
1905;1;9999999;1,41;1,41;AGENZIA DELLE ENTRATE-RISCOSSIONE; ;13/06/2023;2351;1;292;1;Spese correnti;3;Acquisto di beni e servizi;2;Acquisto di servizi;3;Aggi di riscossione;999;Altri aggi di riscossione n.a.c.;16/06/2023
1906;1;9999999;0,15;0,15;AGENZIA DELLE ENTRATE-RISCOSSIONE; ;13/06/2023;2351;1;1063;1;Spese correnti;3;Acquisto di beni e servizi;2;Acquisto di servizi;3;Aggi di riscossione;999;Altri aggi di riscossione n.a.c.;16/06/2023
1907;1;9999999;0,13;0,13;AGENZIA DELLE ENTRATE-RISCOSSIONE; ;13/06/2023;2351;1;1531;1;Spese correnti;3;Acquisto di beni e servizi;2;Acquisto di servizi;3;Aggi di riscossione;999;Altri aggi di riscossione n.a.c.;16/06/2023
1908;1;9999999;0,91;0,91;AGENZIA DELLE ENTRATE-RISCOSSIONE; ;13/06/2023;2351;1;249;1;Spese correnti;3;Acquisto di beni e servizi;2;Acquisto di servizi;3;Aggi di riscossione;999;Altri aggi di riscossione n.a.c.;16/06/2023
1909;1;9999999;0,1;0,1;AGENZIA DELLE ENTRATE-RISCOSSIONE; ;13/06/2023;2351;1;249;1;Spese correnti;3;Acquisto di beni e servizi;2;Acquisto di servizi;3;Aggi di riscossione;999;Altri aggi di riscossione n.a.c.;16/06/2023
1910;1;9999999;1,5;1,5;AGENZIA DELLE ENTRATE-RISCOSSIONE; ;13/06/2023;2351;1;571;1;Spese correnti;3;Acquisto di beni e servizi;2;Acquisto di servizi;3;Aggi di riscossione;999;Altri aggi di riscossione n.a.c.;16/06/2023
1911;1;9999999;1,26;1,26;AGENZIA DELLE ENTRATE-RISCOSSIONE; ;13/06/2023;2351;1;370;1;Spese correnti;3;Acquisto di beni e servizi;2;Acquisto di servizi;3;Aggi di riscossione;999;Altri aggi di riscossione n.a.c.;16/06/2023
1912;1;9999999;44,69;44,69;AGENZIA DELLE ENTRATE-RISCOSSIONE; ;13/06/2023;2351;1;370;1;Spese correnti;3;Acquisto di beni e servizi;2;Acquisto di servizi;3;Aggi di riscossione;999;Altri aggi di riscossione n.a.c.;16/06/2023
1913;1;9999999;0,03;0,03;AGENZIA DELLE ENTRATE-RISCOSSIONE; ;13/06/2023;1010;0;982;1;Spese correnti;3;Acquisto di beni e servizi;2;Acquisto di servizi;3;Aggi di riscossione;999;Altri aggi di riscossione n.a.c.;16/06/2023
1914;1;9999999;0,69;0,69;AGENZIA DELLE ENTRATE-RISCOSSIONE; ;13/06/2023;1010;0;250;1;Spese correnti;3;Acquisto di beni e servizi;2;Acquisto di servizi;3;Aggi di riscossione;999;Altri aggi di riscossione n.a.c.;16/06/2023
1915;1;9999999;0,57;0,57;AGENZIA DELLE ENTRATE-RISCOSSIONE; ;13/06/2023;1010;0;250;1;Spese correnti;3;Acquisto di beni e servizi;2;Acquisto di servizi;3;Aggi di riscossione;999;Altri aggi di riscossione n.a.c.;16/06/2023
1916;1;9999999;15.914,00;15.914,00;CASSA DEPOSITI E PRESTITI; ;14/06/2023;1861;0;532;1;Spese correnti;7;Interessi passivi;5;Interessi su Mutui e altri finanziamenti a medio lungo termine;4;Interessi passivi su finanziamenti a medio lungo termine a Imprese;3;Interessi passivi a Cassa Depositi e Prestiti SPA su mutui e altri finanziamenti a medio lungo termine;29/06/2023
1917;1;9999999;1.277,95;5.448,97;CASSA DEPOSITI E PRESTITI; ;14/06/2023;2830;0;533;1;Spese correnti;7;Interessi passivi;5;Interessi su Mutui e altri finanziamenti a medio lungo termine;4;Interessi passivi su finanziamenti a medio lungo termine a Imprese;3;Interessi passivi a Cassa Depositi e Prestiti SPA su mutui e altri finanziamenti a medio lungo termine;29/06/2023
1917;2;9999999;4.171,02;5.448,97;CASSA DEPOSITI E PRESTITI; ;14/06/2023;2830;0;533;1;Spese correnti;7;Interessi passivi;5;Interessi su Mutui e altri finanziamenti a medio lungo termine;4;Interessi passivi su finanziamenti a medio lungo termine a Imprese;3;Interessi passivi a Cassa Depositi e Prestiti SPA su mutui e altri finanziamenti a medio lungo termine;29/06/2023
1918;1;9999999;665,45;665,45;CASSA DEPOSITI E PRESTITI; ;14/06/2023;5830;0;534;1;Spese correnti;7;Interessi passivi;5;Interessi su Mutui e altri finanziamenti a medio lungo termine;4;Interessi passivi su finanziamenti a medio lungo termine a Imprese;3;Interessi passivi a Cassa Depositi e Prestiti SPA su mutui e altri finanziamenti a medio lungo termine;29/06/2023
1919;1;9999999;1.939,75;1.939,75;CASSA DEPOSITI E PRESTITI; ;14/06/2023;7050;0;535;1;Spese correnti;7;Interessi passivi;5;Interessi su Mutui e altri finanziamenti a medio lungo termine;4;Interessi passivi su finanziamenti a medio lungo termine a Imprese;3;Interessi passivi a Cassa Depositi e Prestiti SPA su mutui e altri finanziamenti a medio lungo termine;29/06/2023
1920;1;9999999;3.635,43;3.635,43;CASSA DEPOSITI E PRESTITI; ;14/06/2023;7053;0;536;1;Spese correnti;7;Interessi passivi;5;Interessi su Mutui e altri finanziamenti a medio lungo termine;4;Interessi passivi su finanziamenti a medio lungo termine a Imprese;3;Interessi passivi a Cassa Depositi e Prestiti SPA su mutui e altri finanziamenti a medio lungo termine;29/06/2023
1921;1;9999999;2.751,01;2.751,01;CASSA DEPOSITI E PRESTITI; ;14/06/2023;7054;0;537;1;Spese correnti;7;Interessi passivi;5;Interessi su Mutui e altri finanziamenti a medio lungo termine;4;Interessi passivi su finanziamenti a medio lungo termine a Imprese;3;Interessi passivi a Cassa Depositi e Prestiti SPA su mutui e altri finanziamenti a medio lungo termine;29/06/2023
1924;1;9999999;1.417,64;1.417,64;GAMMASPORT S.R.L.;Z833B07896;16/06/2023;7440;0;465;1;Spese correnti;3;Acquisto di beni e servizi;2;Acquisto di servizi;9;Manutenzione ordinaria e riparazioni;11;Manutenzione ordinaria e riparazioni di altri beni materiali;20/06/2023
1925;1;9999999;18.263,40;18.263,40;DAVANZO SCAVI S.R.L.;Z4137C8D36;16/06/2023;15010;6;1263;2;Spese in conto capitale;2;Investimenti fissi lordi e acquisto di terreni;1;Beni materiali;9;Beni immobili;16;Impianti sportivi;20/06/2023
1927;1;9999999;1.384,69;1.384,69;ABACO S.P.A.;9,44E+58;16/06/2023;1010;0;1259;1;Spese correnti;3;Acquisto di beni e servizi;2;Acquisto di servizi;3;Aggi di riscossione;999;Altri aggi di riscossione n.a.c.;20/06/2023
1928;1;9999999;800;800;SOGEST ITALIA SRL;Z08372EAAD;16/06/2023;1185;1;715;1;Spese correnti;3;Acquisto di beni e servizi;2;Acquisto di servizi;9;Manutenzione ordinaria e riparazioni;4;Manutenzione ordinaria e riparazioni di impianti e macchinari;20/06/2023
1929;1;9999999;100;100;SOGEST ITALIA SRL;Z08372EAAD;16/06/2023;1185;2;716;1;Spese correnti;3;Acquisto di beni e servizi;2;Acquisto di servizi;9;Manutenzione ordinaria e riparazioni;4;Manutenzione ordinaria e riparazioni di impianti e macchinari;20/06/2023
1930;1;9999999;1.683,52;1.683,52;SOGEST ITALIA SRL;Z08372EAAD;16/06/2023;1805;0;714;1;Spese correnti;3;Acquisto di beni e servizi;2;Acquisto di servizi;13;Servizi ausiliari per il funzionamento dell'ente;1;Servizi di sorveglianza, custodia e accoglienza;20/06/2023
1931;1;9999999;1.082,24;1.082,24;INIZIATIVE UNINDUSTRIA SRL; ;16/06/2023;8204;4;121;1;Spese correnti;3;Acquisto di beni e servizi;2;Acquisto di servizi;99;Altri servizi;999;Altri servizi diversi n.a.c.;20/06/2023
1932;1;9999999;11.542,13;11.542,13;CODESS SOCIALE-COOP. ONLUS;9120417633;16/06/2023;8250;0;578;1;Spese correnti;3;Acquisto di beni e servizi;2;Acquisto di servizi;15;Contratti di servizio pubblico;9;Contratti di servizio di assistenza sociale domiciliare;20/06/2023
1933;1;9999999;1.309,00;1.309,00;TRE ZETA SERVIZI SNC DI ZANATTA NICOLA E LUCA;ZF73B3B6EF;16/06/2023;11302;8;477;2;Spese in conto capitale;2;Investimenti fissi lordi e acquisto di terreni;1;Beni materiali;9;Beni immobili;19;Fabbricati ad uso strumentale;20/06/2023
1934;1;9999999;4.800,00;4.800,00;OMESSO NOMINATIVO NEL RISPETTO DELLA NORMATIVA SULLA PROTEZIONE DATI PERSONALI; ;16/06/2023;9445;0;1074;1;Spese correnti;4;Trasferimenti correnti;3;Trasferimenti correnti a Imprese;99;Trasferimenti correnti a altre imprese;999;Trasferimenti correnti a altre imprese;20/06/2023
1935;1;9999999;719,84;719,84;ABACO S.P.A.;9,44E+58;16/06/2023;1010;0;1259;1;Spese correnti;3;Acquisto di beni e servizi;2;Acquisto di servizi;3;Aggi di riscossione;999;Altri aggi di riscossione n.a.c.;20/06/2023
1936;1;9999999;62.554,47;62.554,47;AZIENDA ULSS N.2 - MARCA TREVIGIANA; ;16/06/2023;8360;0;539;1;Spese correnti;4;Trasferimenti correnti;1;Trasferimenti correnti a Amministrazioni Pubbliche;2;Trasferimenti correnti a Amministrazioni Locali;11;Trasferimenti correnti a Aziende sanitarie locali  n.a.f.;20/06/2023
1939;1;9999999;11.294,41;11.294,41;AMMINISTRATORI COMUNALI; ;20/06/2023;74;0;141;1;Spese correnti;3;Acquisto di beni e servizi;2;Acquisto di servizi;1;Organi e incarichi istituzionali dell'amministrazione;1;Organi istituzionali dell'amministrazione - Indennità;23/06/2023
1984;1;9999999;19,4;19,4;DIPENDENTI DIVERSI (MISSIONI E RIMBORSO SPESE); ;20/06/2023;1786;0;211;1;Spese correnti;3;Acquisto di beni e servizi;2;Acquisto di servizi;2;Organizzazione eventi, pubblicita` e servizi per trasferta;1;Rimborso per viaggio e trasloco;23/06/2023
2043;1;9999999;107,59;107,59;ENEL ENERGIA SPA;9619395FDC;20/06/2023;1346;0;482;1;Spese correnti;3;Acquisto di beni e servizi;2;Acquisto di servizi;5;Utenze e canoni;4;Energia elettrica;23/06/2023
2044;1;9999999;45,66;2.936,75;ENEL ENERGIA SPA;9619395FDC;20/06/2023;1801;0;483;1;Spese correnti;3;Acquisto di beni e servizi;2;Acquisto di servizi;5;Utenze e canoni;4;Energia elettrica;23/06/2023
2044;2;9999999;135,12;2.936,75;ENEL ENERGIA SPA;9619395FDC;20/06/2023;1801;0;483;1;Spese correnti;3;Acquisto di beni e servizi;2;Acquisto di servizi;5;Utenze e canoni;4;Energia elettrica;23/06/2023
2044;3;9999999;238,06;2.936,75;ENEL ENERGIA SPA;9619395FDC;20/06/2023;1801;0;483;1;Spese correnti;3;Acquisto di beni e servizi;2;Acquisto di servizi;5;Utenze e canoni;4;Energia elettrica;23/06/2023
2044;4;9999999;419,56;2.936,75;ENEL ENERGIA SPA;9619395FDC;20/06/2023;1801;0;483;1;Spese correnti;3;Acquisto di beni e servizi;2;Acquisto di servizi;5;Utenze e canoni;4;Energia elettrica;23/06/2023
2044;5;9999999;594,05;2.936,75;ENEL ENERGIA SPA;9619395FDC;20/06/2023;1801;0;483;1;Spese correnti;3;Acquisto di beni e servizi;2;Acquisto di servizi;5;Utenze e canoni;4;Energia elettrica;23/06/2023
2044;6;9999999;1.504,30;2.936,75;ENEL ENERGIA SPA;9619395FDC;20/06/2023;1801;0;483;1;Spese correnti;3;Acquisto di beni e servizi;2;Acquisto di servizi;5;Utenze e canoni;4;Energia elettrica;23/06/2023
2045;1;9999999;453,84;453,84;SOGEST ITALIA SRL;Z08372EAAD;20/06/2023;1805;0;714;1;Spese correnti;3;Acquisto di beni e servizi;2;Acquisto di servizi;13;Servizi ausiliari per il funzionamento dell'ente;1;Servizi di sorveglianza, custodia e accoglienza;23/06/2023
2046;1;9999999;165,87;427,77;ENEL ENERGIA SPA;9619395FDC;20/06/2023;2973;0;484;1;Spese correnti;3;Acquisto di beni e servizi;2;Acquisto di servizi;5;Utenze e canoni;4;Energia elettrica;23/06/2023
2046;2;9999999;261,9;427,77;ENEL ENERGIA SPA;9619395FDC;20/06/2023;2973;0;484;1;Spese correnti;3;Acquisto di beni e servizi;2;Acquisto di servizi;5;Utenze e canoni;4;Energia elettrica;23/06/2023
2047;1;9999999;212,78;4.265,35;SERENISSIMA RISTORAZIONE SPA;932853027C;20/06/2023;4260;0;731;1;Spese correnti;3;Acquisto di beni e servizi;2;Acquisto di servizi;15;Contratti di servizio pubblico;6;Contratti di servizio per le mense scolastiche;23/06/2023
2047;2;9999999;217,62;4.265,35;SERENISSIMA RISTORAZIONE SPA;932853027C;20/06/2023;4260;0;731;1;Spese correnti;3;Acquisto di beni e servizi;2;Acquisto di servizi;15;Contratti di servizio pubblico;6;Contratti di servizio per le mense scolastiche;23/06/2023
2047;3;9999999;227,29;4.265,35;SERENISSIMA RISTORAZIONE SPA;932853027C;20/06/2023;4260;0;731;1;Spese correnti;3;Acquisto di beni e servizi;2;Acquisto di servizi;15;Contratti di servizio pubblico;6;Contratti di servizio per le mense scolastiche;23/06/2023
2047;4;9999999;710,89;4.265,35;SERENISSIMA RISTORAZIONE SPA;932853027C;20/06/2023;4260;0;731;1;Spese correnti;3;Acquisto di beni e servizi;2;Acquisto di servizi;15;Contratti di servizio pubblico;6;Contratti di servizio per le mense scolastiche;23/06/2023
2047;5;9999999;1.271,87;4.265,35;SERENISSIMA RISTORAZIONE SPA;932853027C;20/06/2023;4260;0;731;1;Spese correnti;3;Acquisto di beni e servizi;2;Acquisto di servizi;15;Contratti di servizio pubblico;6;Contratti di servizio per le mense scolastiche;23/06/2023
2047;6;9999999;1.624,90;4.265,35;SERENISSIMA RISTORAZIONE SPA;932853027C;20/06/2023;4260;0;731;1;Spese correnti;3;Acquisto di beni e servizi;2;Acquisto di servizi;15;Contratti di servizio pubblico;6;Contratti di servizio per le mense scolastiche;23/06/2023
2048;1;9999999;553,4;13.865,19;SERENISSIMA RISTORAZIONE SPA;932853027C;20/06/2023;4261;0;732;1;Spese correnti;3;Acquisto di beni e servizi;2;Acquisto di servizi;15;Contratti di servizio pubblico;6;Contratti di servizio per le mense scolastiche;23/06/2023
2048;2;9999999;554,24;13.865,19;SERENISSIMA RISTORAZIONE SPA;932853027C;20/06/2023;4261;0;732;1;Spese correnti;3;Acquisto di beni e servizi;2;Acquisto di servizi;15;Contratti di servizio pubblico;6;Contratti di servizio per le mense scolastiche;23/06/2023
2048;3;9999999;800,01;13.865,19;SERENISSIMA RISTORAZIONE SPA;932853027C;20/06/2023;4261;0;732;1;Spese correnti;3;Acquisto di beni e servizi;2;Acquisto di servizi;15;Contratti di servizio pubblico;6;Contratti di servizio per le mense scolastiche;23/06/2023
2048;4;9999999;1.067,98;13.865,19;SERENISSIMA RISTORAZIONE SPA;932853027C;20/06/2023;4261;0;732;1;Spese correnti;3;Acquisto di beni e servizi;2;Acquisto di servizi;15;Contratti di servizio pubblico;6;Contratti di servizio per le mense scolastiche;23/06/2023
2048;5;9999999;2.077,92;13.865,19;SERENISSIMA RISTORAZIONE SPA;932853027C;20/06/2023;4261;0;732;1;Spese correnti;3;Acquisto di beni e servizi;2;Acquisto di servizi;15;Contratti di servizio pubblico;6;Contratti di servizio per le mense scolastiche;23/06/2023
2048;6;9999999;3.923,96;13.865,19;SERENISSIMA RISTORAZIONE SPA;932853027C;20/06/2023;4261;0;732;1;Spese correnti;3;Acquisto di beni e servizi;2;Acquisto di servizi;15;Contratti di servizio pubblico;6;Contratti di servizio per le mense scolastiche;23/06/2023
2048;7;9999999;4.887,68;13.865,19;SERENISSIMA RISTORAZIONE SPA;932853027C;20/06/2023;4261;0;732;1;Spese correnti;3;Acquisto di beni e servizi;2;Acquisto di servizi;15;Contratti di servizio pubblico;6;Contratti di servizio per le mense scolastiche;23/06/2023
2049;1;9999999;943,51;943,51;ENEL ENERGIA SPA;9619395FDC;20/06/2023;4527;0;485;1;Spese correnti;3;Acquisto di beni e servizi;2;Acquisto di servizi;5;Utenze e canoni;4;Energia elettrica;23/06/2023
2050;1;9999999;59,07;59,07;ENEL ENERGIA SPA;9619395FDC;20/06/2023;4686;1;486;1;Spese correnti;3;Acquisto di beni e servizi;2;Acquisto di servizi;5;Utenze e canoni;4;Energia elettrica;23/06/2023
2051;1;9999999;5.000,00;5.000,00;FP LAVORI STRADALI SRL;Z11391D481;20/06/2023;5704;0;1228;1;Spese correnti;3;Acquisto di beni e servizi;2;Acquisto di servizi;9;Manutenzione ordinaria e riparazioni;8;Manutenzione ordinaria e riparazioni di beni immobili;23/06/2023
2052;1;9999999;9.550,00;9.550,00;FP LAVORI STRADALI SRL;Z11391D481;20/06/2023;5720;0;1227;1;Spese correnti;3;Acquisto di beni e servizi;2;Acquisto di servizi;9;Manutenzione ordinaria e riparazioni;8;Manutenzione ordinaria e riparazioni di beni immobili;23/06/2023
2053;1;9999999;18.958,40;18.958,40;FP LAVORI STRADALI SRL;Z11391D481;20/06/2023;5720;2;1226;1;Spese correnti;3;Acquisto di beni e servizi;2;Acquisto di servizi;9;Manutenzione ordinaria e riparazioni;8;Manutenzione ordinaria e riparazioni di beni immobili;23/06/2023
2054;1;9999999;-839,35;148,58;ENEL ENERGIA SPA;9619395FDC;20/06/2023;5930;0;481;1;Spese correnti;3;Acquisto di beni e servizi;2;Acquisto di servizi;5;Utenze e canoni;4;Energia elettrica;23/06/2023
2054;2;9999999;-50,97;148,58;ENEL ENERGIA SPA;9619395FDC;20/06/2023;5930;0;481;1;Spese correnti;3;Acquisto di beni e servizi;2;Acquisto di servizi;5;Utenze e canoni;4;Energia elettrica;23/06/2023
2054;3;9999999;-23,51;148,58;ENEL ENERGIA SPA;9619395FDC;20/06/2023;5930;0;481;1;Spese correnti;3;Acquisto di beni e servizi;2;Acquisto di servizi;5;Utenze e canoni;4;Energia elettrica;23/06/2023
2054;4;9999999;3,6;148,58;ENEL ENERGIA SPA;9619395FDC;20/06/2023;5930;0;481;1;Spese correnti;3;Acquisto di beni e servizi;2;Acquisto di servizi;5;Utenze e canoni;4;Energia elettrica;23/06/2023
2054;5;9999999;4,33;148,58;ENEL ENERGIA SPA;9619395FDC;20/06/2023;5930;0;481;1;Spese correnti;3;Acquisto di beni e servizi;2;Acquisto di servizi;5;Utenze e canoni;4;Energia elettrica;23/06/2023
2054;6;9999999;5,2;148,58;ENEL ENERGIA SPA;9619395FDC;20/06/2023;5930;0;481;1;Spese correnti;3;Acquisto di beni e servizi;2;Acquisto di servizi;5;Utenze e canoni;4;Energia elettrica;23/06/2023
2054;7;9999999;5,45;148,58;ENEL ENERGIA SPA;9619395FDC;20/06/2023;5930;0;481;1;Spese correnti;3;Acquisto di beni e servizi;2;Acquisto di servizi;5;Utenze e canoni;4;Energia elettrica;23/06/2023
2054;8;9999999;6,36;148,58;ENEL ENERGIA SPA;9619395FDC;20/06/2023;5930;0;481;1;Spese correnti;3;Acquisto di beni e servizi;2;Acquisto di servizi;5;Utenze e canoni;4;Energia elettrica;23/06/2023
2054;9;9999999;7,36;148,58;ENEL ENERGIA SPA;9619395FDC;20/06/2023;5930;0;481;1;Spese correnti;3;Acquisto di beni e servizi;2;Acquisto di servizi;5;Utenze e canoni;4;Energia elettrica;23/06/2023
2054;10;9999999;7,59;148,58;ENEL ENERGIA SPA;9619395FDC;20/06/2023;5930;0;481;1;Spese correnti;3;Acquisto di beni e servizi;2;Acquisto di servizi;5;Utenze e canoni;4;Energia elettrica;23/06/2023
2054;11;9999999;9,69;148,58;ENEL ENERGIA SPA;9619395FDC;20/06/2023;5930;0;481;1;Spese correnti;3;Acquisto di beni e servizi;2;Acquisto di servizi;5;Utenze e canoni;4;Energia elettrica;23/06/2023
2054;12;9999999;9,97;148,58;ENEL ENERGIA SPA;9619395FDC;20/06/2023;5930;0;481;1;Spese correnti;3;Acquisto di beni e servizi;2;Acquisto di servizi;5;Utenze e canoni;4;Energia elettrica;23/06/2023
2054;13;9999999;12,29;148,58;ENEL ENERGIA SPA;9619395FDC;20/06/2023;5930;0;481;1;Spese correnti;3;Acquisto di beni e servizi;2;Acquisto di servizi;5;Utenze e canoni;4;Energia elettrica;23/06/2023
2054;14;9999999;15,42;148,58;ENEL ENERGIA SPA;9619395FDC;20/06/2023;5930;0;481;1;Spese correnti;3;Acquisto di beni e servizi;2;Acquisto di servizi;5;Utenze e canoni;4;Energia elettrica;23/06/2023
2054;15;9999999;15,65;148,58;ENEL ENERGIA SPA;9619395FDC;20/06/2023;5930;0;481;1;Spese correnti;3;Acquisto di beni e servizi;2;Acquisto di servizi;5;Utenze e canoni;4;Energia elettrica;23/06/2023
2054;16;9999999;16,65;148,58;ENEL ENERGIA SPA;9619395FDC;20/06/2023;5930;0;481;1;Spese correnti;3;Acquisto di beni e servizi;2;Acquisto di servizi;5;Utenze e canoni;4;Energia elettrica;23/06/2023
2054;17;9999999;18,74;148,58;ENEL ENERGIA SPA;9619395FDC;20/06/2023;5930;0;481;1;Spese correnti;3;Acquisto di beni e servizi;2;Acquisto di servizi;5;Utenze e canoni;4;Energia elettrica;23/06/2023
2054;18;9999999;20,11;148,58;ENEL ENERGIA SPA;9619395FDC;20/06/2023;5930;0;481;1;Spese correnti;3;Acquisto di beni e servizi;2;Acquisto di servizi;5;Utenze e canoni;4;Energia elettrica;23/06/2023
2054;19;9999999;25,07;148,58;ENEL ENERGIA SPA;9619395FDC;20/06/2023;5930;0;481;1;Spese correnti;3;Acquisto di beni e servizi;2;Acquisto di servizi;5;Utenze e canoni;4;Energia elettrica;23/06/2023
2054;20;9999999;25,83;148,58;ENEL ENERGIA SPA;9619395FDC;20/06/2023;5930;0;481;1;Spese correnti;3;Acquisto di beni e servizi;2;Acquisto di servizi;5;Utenze e canoni;4;Energia elettrica;23/06/2023
2054;21;9999999;26,1;148,58;ENEL ENERGIA SPA;9619395FDC;20/06/2023;5930;0;481;1;Spese correnti;3;Acquisto di beni e servizi;2;Acquisto di servizi;5;Utenze e canoni;4;Energia elettrica;23/06/2023
2054;22;9999999;26,33;148,58;ENEL ENERGIA SPA;9619395FDC;20/06/2023;5930;0;481;1;Spese correnti;3;Acquisto di beni e servizi;2;Acquisto di servizi;5;Utenze e canoni;4;Energia elettrica;23/06/2023
2054;23;9999999;28,17;148,58;ENEL ENERGIA SPA;9619395FDC;20/06/2023;5930;0;481;1;Spese correnti;3;Acquisto di beni e servizi;2;Acquisto di servizi;5;Utenze e canoni;4;Energia elettrica;23/06/2023
2054;24;9999999;29,17;148,58;ENEL ENERGIA SPA;9619395FDC;20/06/2023;5930;0;481;1;Spese correnti;3;Acquisto di beni e servizi;2;Acquisto di servizi;5;Utenze e canoni;4;Energia elettrica;23/06/2023
2054;25;9999999;29,41;148,58;ENEL ENERGIA SPA;9619395FDC;20/06/2023;5930;0;481;1;Spese correnti;3;Acquisto di beni e servizi;2;Acquisto di servizi;5;Utenze e canoni;4;Energia elettrica;23/06/2023
2054;26;9999999;31;148,58;ENEL ENERGIA SPA;9619395FDC;20/06/2023;5930;0;481;1;Spese correnti;3;Acquisto di beni e servizi;2;Acquisto di servizi;5;Utenze e canoni;4;Energia elettrica;23/06/2023
2054;27;9999999;35,03;148,58;ENEL ENERGIA SPA;9619395FDC;20/06/2023;5930;0;481;1;Spese correnti;3;Acquisto di beni e servizi;2;Acquisto di servizi;5;Utenze e canoni;4;Energia elettrica;23/06/2023
2054;28;9999999;35,51;148,58;ENEL ENERGIA SPA;9619395FDC;20/06/2023;5930;0;481;1;Spese correnti;3;Acquisto di beni e servizi;2;Acquisto di servizi;5;Utenze e canoni;4;Energia elettrica;23/06/2023
2054;29;9999999;36,33;148,58;ENEL ENERGIA SPA;9619395FDC;20/06/2023;5930;0;481;1;Spese correnti;3;Acquisto di beni e servizi;2;Acquisto di servizi;5;Utenze e canoni;4;Energia elettrica;23/06/2023
2054;30;9999999;37,37;148,58;ENEL ENERGIA SPA;9619395FDC;20/06/2023;5930;0;481;1;Spese correnti;3;Acquisto di beni e servizi;2;Acquisto di servizi;5;Utenze e canoni;4;Energia elettrica;23/06/2023
2054;31;9999999;39,37;148,58;ENEL ENERGIA SPA;9619395FDC;20/06/2023;5930;0;481;1;Spese correnti;3;Acquisto di beni e servizi;2;Acquisto di servizi;5;Utenze e canoni;4;Energia elettrica;23/06/2023
2054;32;9999999;39,85;148,58;ENEL ENERGIA SPA;9619395FDC;20/06/2023;5930;0;481;1;Spese correnti;3;Acquisto di beni e servizi;2;Acquisto di servizi;5;Utenze e canoni;4;Energia elettrica;23/06/2023
2054;33;9999999;46,47;148,58;ENEL ENERGIA SPA;9619395FDC;20/06/2023;5930;0;481;1;Spese correnti;3;Acquisto di beni e servizi;2;Acquisto di servizi;5;Utenze e canoni;4;Energia elettrica;23/06/2023
2054;34;9999999;56,5;148,58;ENEL ENERGIA SPA;9619395FDC;20/06/2023;5930;0;481;1;Spese correnti;3;Acquisto di beni e servizi;2;Acquisto di servizi;5;Utenze e canoni;4;Energia elettrica;23/06/2023
2054;35;9999999;56,77;148,58;ENEL ENERGIA SPA;9619395FDC;20/06/2023;5930;0;481;1;Spese correnti;3;Acquisto di beni e servizi;2;Acquisto di servizi;5;Utenze e canoni;4;Energia elettrica;23/06/2023
2054;36;9999999;56,88;148,58;ENEL ENERGIA SPA;9619395FDC;20/06/2023;5930;0;481;1;Spese correnti;3;Acquisto di beni e servizi;2;Acquisto di servizi;5;Utenze e canoni;4;Energia elettrica;23/06/2023
2054;37;9999999;58,24;148,58;ENEL ENERGIA SPA;9619395FDC;20/06/2023;5930;0;481;1;Spese correnti;3;Acquisto di beni e servizi;2;Acquisto di servizi;5;Utenze e canoni;4;Energia elettrica;23/06/2023
2054;38;9999999;58,83;148,58;ENEL ENERGIA SPA;9619395FDC;20/06/2023;5930;0;481;1;Spese correnti;3;Acquisto di beni e servizi;2;Acquisto di servizi;5;Utenze e canoni;4;Energia elettrica;23/06/2023
2054;39;9999999;60,37;148,58;ENEL ENERGIA SPA;9619395FDC;20/06/2023;5930;0;481;1;Spese correnti;3;Acquisto di beni e servizi;2;Acquisto di servizi;5;Utenze e canoni;4;Energia elettrica;23/06/2023
2054;40;9999999;65,4;148,58;ENEL ENERGIA SPA;9619395FDC;20/06/2023;5930;0;481;1;Spese correnti;3;Acquisto di beni e servizi;2;Acquisto di servizi;5;Utenze e canoni;4;Energia elettrica;23/06/2023
2055;1;9999999;70,63;8.584,57;ENEL ENERGIA SPA;9619395FDC;20/06/2023;5930;0;481;1;Spese correnti;3;Acquisto di beni e servizi;2;Acquisto di servizi;5;Utenze e canoni;4;Energia elettrica;23/06/2023
2055;2;9999999;72,8;8.584,57;ENEL ENERGIA SPA;9619395FDC;20/06/2023;5930;0;481;1;Spese correnti;3;Acquisto di beni e servizi;2;Acquisto di servizi;5;Utenze e canoni;4;Energia elettrica;23/06/2023
2055;3;9999999;73,9;8.584,57;ENEL ENERGIA SPA;9619395FDC;20/06/2023;5930;0;481;1;Spese correnti;3;Acquisto di beni e servizi;2;Acquisto di servizi;5;Utenze e canoni;4;Energia elettrica;23/06/2023
2055;4;9999999;75,64;8.584,57;ENEL ENERGIA SPA;9619395FDC;20/06/2023;5930;0;481;1;Spese correnti;3;Acquisto di beni e servizi;2;Acquisto di servizi;5;Utenze e canoni;4;Energia elettrica;23/06/2023
2055;5;9999999;75,64;8.584,57;ENEL ENERGIA SPA;9619395FDC;20/06/2023;5930;0;481;1;Spese correnti;3;Acquisto di beni e servizi;2;Acquisto di servizi;5;Utenze e canoni;4;Energia elettrica;23/06/2023
2055;6;9999999;79,84;8.584,57;ENEL ENERGIA SPA;9619395FDC;20/06/2023;5930;0;481;1;Spese correnti;3;Acquisto di beni e servizi;2;Acquisto di servizi;5;Utenze e canoni;4;Energia elettrica;23/06/2023
2055;7;9999999;85,81;8.584,57;ENEL ENERGIA SPA;9619395FDC;20/06/2023;5930;0;481;1;Spese correnti;3;Acquisto di beni e servizi;2;Acquisto di servizi;5;Utenze e canoni;4;Energia elettrica;23/06/2023
2055;8;9999999;86,68;8.584,57;ENEL ENERGIA SPA;9619395FDC;20/06/2023;5930;0;481;1;Spese correnti;3;Acquisto di beni e servizi;2;Acquisto di servizi;5;Utenze e canoni;4;Energia elettrica;23/06/2023
2055;9;9999999;105,93;8.584,57;ENEL ENERGIA SPA;9619395FDC;20/06/2023;5930;0;481;1;Spese correnti;3;Acquisto di beni e servizi;2;Acquisto di servizi;5;Utenze e canoni;4;Energia elettrica;23/06/2023
2055;10;9999999;111,48;8.584,57;ENEL ENERGIA SPA;9619395FDC;20/06/2023;5930;0;481;1;Spese correnti;3;Acquisto di beni e servizi;2;Acquisto di servizi;5;Utenze e canoni;4;Energia elettrica;23/06/2023
2055;11;9999999;111,83;8.584,57;ENEL ENERGIA SPA;9619395FDC;20/06/2023;5930;0;481;1;Spese correnti;3;Acquisto di beni e servizi;2;Acquisto di servizi;5;Utenze e canoni;4;Energia elettrica;23/06/2023
2055;12;9999999;113,98;8.584,57;ENEL ENERGIA SPA;9619395FDC;20/06/2023;5930;0;481;1;Spese correnti;3;Acquisto di beni e servizi;2;Acquisto di servizi;5;Utenze e canoni;4;Energia elettrica;23/06/2023
2055;13;9999999;123,05;8.584,57;ENEL ENERGIA SPA;9619395FDC;20/06/2023;5930;0;481;1;Spese correnti;3;Acquisto di beni e servizi;2;Acquisto di servizi;5;Utenze e canoni;4;Energia elettrica;23/06/2023
2055;14;9999999;126,81;8.584,57;ENEL ENERGIA SPA;9619395FDC;20/06/2023;5930;0;481;1;Spese correnti;3;Acquisto di beni e servizi;2;Acquisto di servizi;5;Utenze e canoni;4;Energia elettrica;23/06/2023
2055;15;9999999;128,92;8.584,57;ENEL ENERGIA SPA;9619395FDC;20/06/2023;5930;0;481;1;Spese correnti;3;Acquisto di beni e servizi;2;Acquisto di servizi;5;Utenze e canoni;4;Energia elettrica;23/06/2023
2055;16;9999999;131,49;8.584,57;ENEL ENERGIA SPA;9619395FDC;20/06/2023;5930;0;481;1;Spese correnti;3;Acquisto di beni e servizi;2;Acquisto di servizi;5;Utenze e canoni;4;Energia elettrica;23/06/2023
2055;17;9999999;145,29;8.584,57;ENEL ENERGIA SPA;9619395FDC;20/06/2023;5930;0;481;1;Spese correnti;3;Acquisto di beni e servizi;2;Acquisto di servizi;5;Utenze e canoni;4;Energia elettrica;23/06/2023
2055;18;9999999;148,64;8.584,57;ENEL ENERGIA SPA;9619395FDC;20/06/2023;5930;0;481;1;Spese correnti;3;Acquisto di beni e servizi;2;Acquisto di servizi;5;Utenze e canoni;4;Energia elettrica;23/06/2023
2055;19;9999999;150,62;8.584,57;ENEL ENERGIA SPA;9619395FDC;20/06/2023;5930;0;481;1;Spese correnti;3;Acquisto di beni e servizi;2;Acquisto di servizi;5;Utenze e canoni;4;Energia elettrica;23/06/2023
2055;20;9999999;162,38;8.584,57;ENEL ENERGIA SPA;9619395FDC;20/06/2023;5930;0;481;1;Spese correnti;3;Acquisto di beni e servizi;2;Acquisto di servizi;5;Utenze e canoni;4;Energia elettrica;23/06/2023
2055;21;9999999;175,42;8.584,57;ENEL ENERGIA SPA;9619395FDC;20/06/2023;5930;0;481;1;Spese correnti;3;Acquisto di beni e servizi;2;Acquisto di servizi;5;Utenze e canoni;4;Energia elettrica;23/06/2023
2055;22;9999999;182,56;8.584,57;ENEL ENERGIA SPA;9619395FDC;20/06/2023;5930;0;481;1;Spese correnti;3;Acquisto di beni e servizi;2;Acquisto di servizi;5;Utenze e canoni;4;Energia elettrica;23/06/2023
2055;23;9999999;221,41;8.584,57;ENEL ENERGIA SPA;9619395FDC;20/06/2023;5930;0;481;1;Spese correnti;3;Acquisto di beni e servizi;2;Acquisto di servizi;5;Utenze e canoni;4;Energia elettrica;23/06/2023
2055;24;9999999;246,73;8.584,57;ENEL ENERGIA SPA;9619395FDC;20/06/2023;5930;0;481;1;Spese correnti;3;Acquisto di beni e servizi;2;Acquisto di servizi;5;Utenze e canoni;4;Energia elettrica;23/06/2023
2055;25;9999999;272,4;8.584,57;ENEL ENERGIA SPA;9619395FDC;20/06/2023;5930;0;481;1;Spese correnti;3;Acquisto di beni e servizi;2;Acquisto di servizi;5;Utenze e canoni;4;Energia elettrica;23/06/2023
2055;26;9999999;283,52;8.584,57;ENEL ENERGIA SPA;9619395FDC;20/06/2023;5930;0;481;1;Spese correnti;3;Acquisto di beni e servizi;2;Acquisto di servizi;5;Utenze e canoni;4;Energia elettrica;23/06/2023
2055;27;9999999;297,92;8.584,57;ENEL ENERGIA SPA;9619395FDC;20/06/2023;5930;0;481;1;Spese correnti;3;Acquisto di beni e servizi;2;Acquisto di servizi;5;Utenze e canoni;4;Energia elettrica;23/06/2023
2055;28;9999999;389,52;8.584,57;ENEL ENERGIA SPA;9619395FDC;20/06/2023;5930;0;481;1;Spese correnti;3;Acquisto di beni e servizi;2;Acquisto di servizi;5;Utenze e canoni;4;Energia elettrica;23/06/2023
2055;29;9999999;395,6;8.584,57;ENEL ENERGIA SPA;9619395FDC;20/06/2023;5930;0;481;1;Spese correnti;3;Acquisto di beni e servizi;2;Acquisto di servizi;5;Utenze e canoni;4;Energia elettrica;23/06/2023
2055;30;9999999;397,06;8.584,57;ENEL ENERGIA SPA;9619395FDC;20/06/2023;5930;0;481;1;Spese correnti;3;Acquisto di beni e servizi;2;Acquisto di servizi;5;Utenze e canoni;4;Energia elettrica;23/06/2023
2055;31;9999999;435,45;8.584,57;ENEL ENERGIA SPA;9619395FDC;20/06/2023;5930;0;481;1;Spese correnti;3;Acquisto di beni e servizi;2;Acquisto di servizi;5;Utenze e canoni;4;Energia elettrica;23/06/2023
2055;32;9999999;503,99;8.584,57;ENEL ENERGIA SPA;9619395FDC;20/06/2023;5930;0;481;1;Spese correnti;3;Acquisto di beni e servizi;2;Acquisto di servizi;5;Utenze e canoni;4;Energia elettrica;23/06/2023
2055;33;9999999;526,23;8.584,57;ENEL ENERGIA SPA;9619395FDC;20/06/2023;5930;0;481;1;Spese correnti;3;Acquisto di beni e servizi;2;Acquisto di servizi;5;Utenze e canoni;4;Energia elettrica;23/06/2023
2055;34;9999999;531,92;8.584,57;ENEL ENERGIA SPA;9619395FDC;20/06/2023;5930;0;481;1;Spese correnti;3;Acquisto di beni e servizi;2;Acquisto di servizi;5;Utenze e canoni;4;Energia elettrica;23/06/2023
2055;35;9999999;639,35;8.584,57;ENEL ENERGIA SPA;9619395FDC;20/06/2023;5930;0;481;1;Spese correnti;3;Acquisto di beni e servizi;2;Acquisto di servizi;5;Utenze e canoni;4;Energia elettrica;23/06/2023
2055;36;9999999;904,13;8.584,57;ENEL ENERGIA SPA;9619395FDC;20/06/2023;5930;0;481;1;Spese correnti;3;Acquisto di beni e servizi;2;Acquisto di servizi;5;Utenze e canoni;4;Energia elettrica;23/06/2023
2056;1;9999999;0,29;679,89;ENEL ENERGIA SPA;9619395FDC;20/06/2023;5931;0;488;1;Spese correnti;3;Acquisto di beni e servizi;2;Acquisto di servizi;5;Utenze e canoni;4;Energia elettrica;23/06/2023
2056;2;9999999;11,64;679,89;ENEL ENERGIA SPA;9619395FDC;20/06/2023;5931;0;488;1;Spese correnti;3;Acquisto di beni e servizi;2;Acquisto di servizi;5;Utenze e canoni;4;Energia elettrica;23/06/2023
2056;3;9999999;18,45;679,89;ENEL ENERGIA SPA;9619395FDC;20/06/2023;5931;0;488;1;Spese correnti;3;Acquisto di beni e servizi;2;Acquisto di servizi;5;Utenze e canoni;4;Energia elettrica;23/06/2023
2056;4;9999999;70,63;679,89;ENEL ENERGIA SPA;9619395FDC;20/06/2023;5931;0;488;1;Spese correnti;3;Acquisto di beni e servizi;2;Acquisto di servizi;5;Utenze e canoni;4;Energia elettrica;23/06/2023
2056;5;9999999;71,93;679,89;ENEL ENERGIA SPA;9619395FDC;20/06/2023;5931;0;488;1;Spese correnti;3;Acquisto di beni e servizi;2;Acquisto di servizi;5;Utenze e canoni;4;Energia elettrica;23/06/2023
2056;6;9999999;92,28;679,89;ENEL ENERGIA SPA;9619395FDC;20/06/2023;5931;0;488;1;Spese correnti;3;Acquisto di beni e servizi;2;Acquisto di servizi;5;Utenze e canoni;4;Energia elettrica;23/06/2023
2056;7;9999999;95,22;679,89;ENEL ENERGIA SPA;9619395FDC;20/06/2023;5931;0;488;1;Spese correnti;3;Acquisto di beni e servizi;2;Acquisto di servizi;5;Utenze e canoni;4;Energia elettrica;23/06/2023
2056;8;9999999;96,6;679,89;ENEL ENERGIA SPA;9619395FDC;20/06/2023;5931;0;488;1;Spese correnti;3;Acquisto di beni e servizi;2;Acquisto di servizi;5;Utenze e canoni;4;Energia elettrica;23/06/2023
2056;9;9999999;96,82;679,89;ENEL ENERGIA SPA;9619395FDC;20/06/2023;5931;0;488;1;Spese correnti;3;Acquisto di beni e servizi;2;Acquisto di servizi;5;Utenze e canoni;4;Energia elettrica;23/06/2023
2056;10;9999999;126,03;679,89;ENEL ENERGIA SPA;9619395FDC;20/06/2023;5931;0;488;1;Spese correnti;3;Acquisto di beni e servizi;2;Acquisto di servizi;5;Utenze e canoni;4;Energia elettrica;23/06/2023
2057;1;9999999;59,56;124,92;ENEL ENERGIA SPA;9619395FDC;20/06/2023;6461;0;487;1;Spese correnti;3;Acquisto di beni e servizi;2;Acquisto di servizi;5;Utenze e canoni;4;Energia elettrica;23/06/2023
2057;2;9999999;65,36;124,92;ENEL ENERGIA SPA;9619395FDC;20/06/2023;6461;0;487;1;Spese correnti;3;Acquisto di beni e servizi;2;Acquisto di servizi;5;Utenze e canoni;4;Energia elettrica;23/06/2023
2058;1;9999999;295,5;2.572,16;SERENISSIMA RISTORAZIONE SPA;932853027C;20/06/2023;7553;1;733;1;Spese correnti;3;Acquisto di beni e servizi;2;Acquisto di servizi;15;Contratti di servizio pubblico;6;Contratti di servizio per le mense scolastiche;23/06/2023
2058;2;9999999;976,76;2.572,16;SERENISSIMA RISTORAZIONE SPA;932853027C;20/06/2023;7553;1;733;1;Spese correnti;3;Acquisto di beni e servizi;2;Acquisto di servizi;15;Contratti di servizio pubblico;6;Contratti di servizio per le mense scolastiche;23/06/2023
2058;3;9999999;1.299,90;2.572,16;SERENISSIMA RISTORAZIONE SPA;932853027C;20/06/2023;7553;1;733;1;Spese correnti;3;Acquisto di beni e servizi;2;Acquisto di servizi;15;Contratti di servizio pubblico;6;Contratti di servizio per le mense scolastiche;23/06/2023
2059;1;9999999;12.000,00;12.000,00;ASS. VOLONTARI PROTEZIONE CIVILE PREGANZIOL; ;20/06/2023;6710;0;540;1;Spese correnti;4;Trasferimenti correnti;4;Trasferimenti correnti a Istituzioni Sociali Private;1;Trasferimenti correnti a Istituzioni Sociali Private;1;Trasferimenti correnti a Istituzioni Sociali Private;23/06/2023
2061;1;9999999;450;450;OMESSO NOMINATIVO NEL RISPETTO DELLA NORMATIVA SULLA PROTEZIONE DATI PERSONALI; ;20/06/2023;8361;0;548;1;Spese correnti;4;Trasferimenti correnti;2;Trasferimenti correnti a Famiglie;2;Interventi assistenziali;999;Altri assegni e sussidi assistenziali;23/06/2023
2062;1;9999999;633,02;633,02;OMESSO NOMINATIVO NEL RISPETTO DELLA NORMATIVA SULLA PROTEZIONE DATI PERSONALI; ;20/06/2023;8361;2;552;1;Spese correnti;4;Trasferimenti correnti;4;Trasferimenti correnti a Istituzioni Sociali Private;1;Trasferimenti correnti a Istituzioni Sociali Private;1;Trasferimenti correnti a Istituzioni Sociali Private;23/06/2023
2063;1;9999999;773,43;773,43;OMESSO NOMINATIVO NEL RISPETTO DELLA NORMATIVA SULLA PROTEZIONE DATI PERSONALI; ;20/06/2023;8361;2;551;1;Spese correnti;4;Trasferimenti correnti;4;Trasferimenti correnti a Istituzioni Sociali Private;1;Trasferimenti correnti a Istituzioni Sociali Private;1;Trasferimenti correnti a Istituzioni Sociali Private;23/06/2023
2064;1;9999999;2.328,18;2.328,18;OMESSO NOMINATIVO NEL RISPETTO DELLA NORMATIVA SULLA PROTEZIONE DATI PERSONALI; ;20/06/2023;8361;2;550;1;Spese correnti;4;Trasferimenti correnti;4;Trasferimenti correnti a Istituzioni Sociali Private;1;Trasferimenti correnti a Istituzioni Sociali Private;1;Trasferimenti correnti a Istituzioni Sociali Private;23/06/2023
2065;1;9999999;661,62;661,62;OMESSO NOMINATIVO NEL RISPETTO DELLA NORMATIVA SULLA PROTEZIONE DATI PERSONALI; ;20/06/2023;8361;2;549;1;Spese correnti;4;Trasferimenti correnti;4;Trasferimenti correnti a Istituzioni Sociali Private;1;Trasferimenti correnti a Istituzioni Sociali Private;1;Trasferimenti correnti a Istituzioni Sociali Private;23/06/2023
2066;1;9999999;2.304,79;2.304,79;TELECOM ITALIA S.P.A.;9,29E+10;22/06/2023;1801;1;610;1;Spese correnti;3;Acquisto di beni e servizi;2;Acquisto di servizi;5;Utenze e canoni;999;Utenze e canoni per altri servizi n.a.c.;27/06/2023
2067;1;9999999;318,12;318,12;TELECOM ITALIA S.P.A.;Z523435997;22/06/2023;1801;1;430;1;Spese correnti;3;Acquisto di beni e servizi;2;Acquisto di servizi;5;Utenze e canoni;2;Telefonia mobile;27/06/2023
2068;1;9999999;442,88;442,88;TELECOM ITALIA S.P.A.;9,29E+10;22/06/2023;2790;1;613;1;Spese correnti;3;Acquisto di beni e servizi;2;Acquisto di servizi;5;Utenze e canoni;999;Utenze e canoni per altri servizi n.a.c.;27/06/2023
2069;1;9999999;132,88;132,88;TELECOM ITALIA S.P.A.;9,29E+10;22/06/2023;2792;1;611;1;Spese correnti;3;Acquisto di beni e servizi;2;Acquisto di servizi;5;Utenze e canoni;999;Utenze e canoni per altri servizi n.a.c.;27/06/2023
2070;1;9999999;1.841,43;1.841,43;TELECOM ITALIA S.P.A.;9,29E+10;22/06/2023;2973;1;612;1;Spese correnti;3;Acquisto di beni e servizi;2;Acquisto di servizi;5;Utenze e canoni;999;Utenze e canoni per altri servizi n.a.c.;27/06/2023
2071;1;9999999;151,04;151,04;TELECOM ITALIA S.P.A.;9,29E+10;22/06/2023;6642;0;838;1;Spese correnti;3;Acquisto di beni e servizi;2;Acquisto di servizi;5;Utenze e canoni;1;Telefonia fissa;27/06/2023
2072;1;9999999;108,63;108,63;VERITAS  S.P.A.; ;22/06/2023;6905;0;206;1;Spese correnti;3;Acquisto di beni e servizi;2;Acquisto di servizi;5;Utenze e canoni;5;Acqua;27/06/2023
2073;1;9999999;170.260,10;170.260,10;COSTRUZIONI MANUTENZIONI CECCHIN S.R.L.;91356977A7;22/06/2023;11302;3;1380;2;Spese in conto capitale;2;Investimenti fissi lordi e acquisto di terreni;1;Beni materiali;9;Beni immobili;19;Fabbricati ad uso strumentale;27/06/2023
2074;1;9999999;35.214,60;35.214,60;COSTRUZIONI MANUTENZIONI CECCHIN S.R.L.;91356977A7;22/06/2023;11302;3;1380;2;Spese in conto capitale;2;Investimenti fissi lordi e acquisto di terreni;1;Beni materiali;9;Beni immobili;19;Fabbricati ad uso strumentale;27/06/2023
2075;1;9999999;20.000,00;20.000,00;COSTRUZIONI MANUTENZIONI CECCHIN S.R.L.;91356977A7;22/06/2023;11302;3;1380;2;Spese in conto capitale;2;Investimenti fissi lordi e acquisto di terreni;1;Beni materiali;9;Beni immobili;19;Fabbricati ad uso strumentale;27/06/2023
2076;1;9999999;315;315;S.E.P.E.L.SRL;ZA3308337E;22/06/2023;1779;0;212;1;Spese correnti;3;Acquisto di beni e servizi;1;Acquisto di beni;1;Giornali, riviste e pubblicazioni;1;Giornali e riviste;27/06/2023
2077;1;9999999;103;209;IL SOLE 24 ORE SPA;ZF739EF6C1;22/06/2023;1779;0;256;1;Spese correnti;3;Acquisto di beni e servizi;1;Acquisto di beni;1;Giornali, riviste e pubblicazioni;1;Giornali e riviste;27/06/2023
2077;2;9999999;106;209;IL SOLE 24 ORE SPA;ZF739EF6C1;22/06/2023;1779;0;256;1;Spese correnti;3;Acquisto di beni e servizi;1;Acquisto di beni;1;Giornali, riviste e pubblicazioni;1;Giornali e riviste;27/06/2023
2078;1;9999999;158,6;158,6;HOTEL MAGNOLIA SNC;Z6D3B0B168;22/06/2023;4740;0;454;1;Spese correnti;3;Acquisto di beni e servizi;2;Acquisto di servizi;7;Utilizzo di beni di terzi;1;Locazione di beni immobili;27/06/2023
2079;1;9999999;400;400;OMESSO NOMINATIVO NEL RISPETTO DELLA NORMATIVA SULLA PROTEZIONE DATI PERSONALI; ;22/06/2023;4742;0;466;1;Spese correnti;4;Trasferimenti correnti;3;Trasferimenti correnti a Imprese;99;Trasferimenti correnti a altre imprese;999;Trasferimenti correnti a altre imprese;27/06/2023
2080;1;9999999;337,17;337,17;KUWAIT PETROLEUM ITALIA SPA;Z9C36EAB07;26/06/2023;1307;0;270;1;Spese correnti;3;Acquisto di beni e servizi;1;Acquisto di beni;2;Altri beni di consumo;2;Carburanti, combustibili e lubrificanti;28/06/2023
2081;1;9999999;4.231,69;4.231,69;KIT UFFICIO SNC DI CODATO M.&C.;Z013B148B4;26/06/2023;1778;0;479;1;Spese correnti;3;Acquisto di beni e servizi;1;Acquisto di beni;2;Altri beni di consumo;1;Carta, cancelleria e stampati;28/06/2023
2082;1;9999999;1.103,78;1.103,78;SHARP ELECTRONICS ITALIA SPA;7286031EF9;26/06/2023;1813;0;130;1;Spese correnti;3;Acquisto di beni e servizi;2;Acquisto di servizi;7;Utilizzo di beni di terzi;4;Noleggi di hardware;28/06/2023
2083;1;9999999;137,83;137,83;KUWAIT PETROLEUM ITALIA SPA;Z9C36EAB07;26/06/2023;2197;0;271;1;Spese correnti;3;Acquisto di beni e servizi;1;Acquisto di beni;2;Altri beni di consumo;2;Carburanti, combustibili e lubrificanti;28/06/2023
2084;1;9999999;3.290,95;3.290,95;DAVANZO SCAVI S.R.L.;Z4137C8D36;26/06/2023;15010;6;1210;2;Spese in conto capitale;2;Investimenti fissi lordi e acquisto di terreni;1;Beni materiali;9;Beni immobili;16;Impianti sportivi;28/06/2023
2085;1;9999999;7.040,00;7.040,00;IDRAULIC-THERM DI MENONCELLO PAOLO;Z983B3A627;26/06/2023;11302;8;477;2;Spese in conto capitale;2;Investimenti fissi lordi e acquisto di terreni;1;Beni materiali;9;Beni immobili;19;Fabbricati ad uso strumentale;28/06/2023
2086;1;9999999;161;161;EDITORIALE SCIENZA SRL;Z453AE4BA3;27/06/2023;31;1;447;1;Spese correnti;3;Acquisto di beni e servizi;1;Acquisto di beni;2;Altri beni di consumo;9;Beni per attività di rappresentanza;30/06/2023
2087;1;9999999;14,54;14,54;DOLOMITI ENERGIA SPA;964666689C;27/06/2023;1346;0;499;1;Spese correnti;3;Acquisto di beni e servizi;2;Acquisto di servizi;5;Utenze e canoni;6;Gas;30/06/2023
2088;1;9999999;3,78;153,14;DOLOMITI ENERGIA SPA;964666689C;27/06/2023;1801;0;489;1;Spese correnti;3;Acquisto di beni e servizi;2;Acquisto di servizi;5;Utenze e canoni;6;Gas;30/06/2023
2088;2;9999999;4,64;153,14;DOLOMITI ENERGIA SPA;964666689C;27/06/2023;1801;0;489;1;Spese correnti;3;Acquisto di beni e servizi;2;Acquisto di servizi;5;Utenze e canoni;6;Gas;30/06/2023
2088;3;9999999;13,32;153,14;DOLOMITI ENERGIA SPA;964666689C;27/06/2023;1801;0;489;1;Spese correnti;3;Acquisto di beni e servizi;2;Acquisto di servizi;5;Utenze e canoni;6;Gas;30/06/2023
2088;4;9999999;20,35;153,14;DOLOMITI ENERGIA SPA;964666689C;27/06/2023;1801;0;489;1;Spese correnti;3;Acquisto di beni e servizi;2;Acquisto di servizi;5;Utenze e canoni;6;Gas;30/06/2023
2088;5;9999999;35,27;153,14;DOLOMITI ENERGIA SPA;964666689C;27/06/2023;1801;0;489;1;Spese correnti;3;Acquisto di beni e servizi;2;Acquisto di servizi;5;Utenze e canoni;6;Gas;30/06/2023
2088;6;9999999;75,78;153,14;DOLOMITI ENERGIA SPA;964666689C;27/06/2023;1801;0;489;1;Spese correnti;3;Acquisto di beni e servizi;2;Acquisto di servizi;5;Utenze e canoni;6;Gas;30/06/2023
2089;1;9999999;436,92;436,92;DOLOMITI ENERGIA SPA;964666689C;27/06/2023;2790;0;490;1;Spese correnti;3;Acquisto di beni e servizi;2;Acquisto di servizi;5;Utenze e canoni;6;Gas;30/06/2023
2090;1;9999999;257,04;257,04;DOLOMITI ENERGIA SPA;964666689C;27/06/2023;2792;0;491;1;Spese correnti;3;Acquisto di beni e servizi;2;Acquisto di servizi;5;Utenze e canoni;6;Gas;30/06/2023
2091;1;9999999;48,25;563,87;DOLOMITI ENERGIA SPA;964666689C;27/06/2023;2973;0;492;1;Spese correnti;3;Acquisto di beni e servizi;2;Acquisto di servizi;5;Utenze e canoni;6;Gas;30/06/2023
2091;2;9999999;131,02;563,87;DOLOMITI ENERGIA SPA;964666689C;27/06/2023;2973;0;492;1;Spese correnti;3;Acquisto di beni e servizi;2;Acquisto di servizi;5;Utenze e canoni;6;Gas;30/06/2023
2091;3;9999999;142,82;563,87;DOLOMITI ENERGIA SPA;964666689C;27/06/2023;2973;0;492;1;Spese correnti;3;Acquisto di beni e servizi;2;Acquisto di servizi;5;Utenze e canoni;6;Gas;30/06/2023
2091;4;9999999;241,78;563,87;DOLOMITI ENERGIA SPA;964666689C;27/06/2023;2973;0;492;1;Spese correnti;3;Acquisto di beni e servizi;2;Acquisto di servizi;5;Utenze e canoni;6;Gas;30/06/2023
2092;1;9999999;688,08;688,08;DOLOMITI ENERGIA SPA;964666689C;27/06/2023;4020;0;493;1;Spese correnti;3;Acquisto di beni e servizi;2;Acquisto di servizi;5;Utenze e canoni;6;Gas;30/06/2023
2093;1;9999999;75,11;75,11;DOLOMITI ENERGIA SPA;964666689C;27/06/2023;4527;0;502;1;Spese correnti;3;Acquisto di beni e servizi;2;Acquisto di servizi;5;Utenze e canoni;6;Gas;30/06/2023
2094;1;9999999;12,16;12,16;DOLOMITI ENERGIA SPA;964666689C;27/06/2023;4686;0;494;1;Spese correnti;3;Acquisto di beni e servizi;2;Acquisto di servizi;5;Utenze e canoni;6;Gas;30/06/2023
2095;1;9999999;18,96;646,72;DOLOMITI ENERGIA SPA;964666689C;27/06/2023;5050;0;501;1;Spese correnti;3;Acquisto di beni e servizi;2;Acquisto di servizi;5;Utenze e canoni;6;Gas;30/06/2023
2095;2;9999999;42,21;646,72;DOLOMITI ENERGIA SPA;964666689C;27/06/2023;5050;0;501;1;Spese correnti;3;Acquisto di beni e servizi;2;Acquisto di servizi;5;Utenze e canoni;6;Gas;30/06/2023
2095;3;9999999;52,27;646,72;DOLOMITI ENERGIA SPA;964666689C;27/06/2023;5050;0;501;1;Spese correnti;3;Acquisto di beni e servizi;2;Acquisto di servizi;5;Utenze e canoni;6;Gas;30/06/2023
2095;4;9999999;533,28;646,72;DOLOMITI ENERGIA SPA;964666689C;27/06/2023;5050;0;501;1;Spese correnti;3;Acquisto di beni e servizi;2;Acquisto di servizi;5;Utenze e canoni;6;Gas;30/06/2023
2096;1;9999999;2,92;2,92;DOLOMITI ENERGIA SPA;964666689C;27/06/2023;5051;0;495;1;Spese correnti;3;Acquisto di beni e servizi;2;Acquisto di servizi;5;Utenze e canoni;6;Gas;30/06/2023
2097;1;9999999;115,82;115,82;DOLOMITI ENERGIA SPA;964666689C;27/06/2023;6461;0;496;1;Spese correnti;3;Acquisto di beni e servizi;2;Acquisto di servizi;5;Utenze e canoni;6;Gas;30/06/2023
2098;1;9999999;12,37;12,37;DOLOMITI ENERGIA SPA;964666689C;27/06/2023;6647;0;497;1;Spese correnti;3;Acquisto di beni e servizi;2;Acquisto di servizi;5;Utenze e canoni;6;Gas;30/06/2023
2099;1;9999999;171,36;462,64;DOLOMITI ENERGIA SPA;964666689C;27/06/2023;7552;1;500;1;Spese correnti;3;Acquisto di beni e servizi;2;Acquisto di servizi;5;Utenze e canoni;6;Gas;30/06/2023
2099;2;9999999;291,28;462,64;DOLOMITI ENERGIA SPA;964666689C;27/06/2023;7552;1;500;1;Spese correnti;3;Acquisto di beni e servizi;2;Acquisto di servizi;5;Utenze e canoni;6;Gas;30/06/2023
2100;1;9999999;1.016,72;1.016,72;ARCH. PIETRO BROVAZZO;Z553A83224;27/06/2023;13450;2;1377;2;Spese in conto capitale;2;Investimenti fissi lordi e acquisto di terreni;1;Beni materiali;9;Beni immobili;3;Fabbricati ad uso scolastico;30/06/2023
2101;1;9999999;4.313,92;4.313,92;ALBERTIN & COMPANY S.R.L.;Z08367460D;27/06/2023;13215;0;1339;2;Spese in conto capitale;2;Investimenti fissi lordi e acquisto di terreni;1;Beni materiali;9;Beni immobili;3;Fabbricati ad uso scolastico;30/06/2023
